Workbook

Sheet Title Page
B8: JEN 2027-31 - ACS Standardised Metering Pricing Model
B10: Version | C10: 1.02
B11: Date | C11: 2022-01-14
B14: Status
B16: Notes:
B17: Current model version contains test data.
C19: Locked Sheets Pwd:
B25: Version Summary
B27: Date | C27: Version | D27: Author | E27: Changes
B29: 2022-01-14 | C29: 1.02 | D29: AER | E29: Updates following consultation
B30: 2021-10-25 | C30: 1 | D30: AER | E30: Consultation version (contains anonymised input data)

Sheet Change Log
B1: AMI Pricing Model
B2: Change Log
B4: Model change log
C6: Starting model name ----> | D6: AER – Metering pricing model – Draft decision – Jemena distribution determination 2026–31 – September 2025
C8: Model changes to above model
C10: Model sheet | D10: Reference | E10: Cell reference | F10: Type | G10: Legend | H10: Comments
C12: =SheetName('Inputs | General'!A1) -> Inputs | General | D12: 1 | E12: =CellReference('Inputs | General'!G9) -> G9 | F12: Input | H12: Changed state to revised proposal
C13: =SheetName('Inputs | General'!A2) -> Inputs | General | D13: =+D12+1 -> 2 | E13: =CellReference('Inputs | General'!G24:H37) -> G24:H37 | F13: Input | H13: Shifted tables two columns right to include FY24 and FY25 inflation values
C14: =SheetName('Inputs | General'!A4) -> Inputs | General | D14: =+D13+1 -> 3 | E14: =CellReference('Inputs | General'!J26:N26) -> J26:N26 | F14: Input | H14: Updated forecast inflation to align with PTRM
C15: =SheetName('Inputs | General'!A6) -> Inputs | General | D15: =+D14+1 -> 4 | E15: =CellReference('Inputs | General'!G29:N29) -> G29:N29 | F15: Formula | H15: Included Cumulative inflation for FY24 to Nominal
C16: =SheetName('Inputs | General'!A8) -> Inputs | General | D16: =+D15+1 -> 5 | E16: =CellReference('Inputs | General'!J33:N33) -> J33:N33 | F16: Input | H16: Updated forecast labour escalation
C17: =SheetName('Inputs | General'!A9) -> Inputs | General | D17: =+D16+1 -> 6 | E17: =CellReference('Inputs | General'!H35:I35) -> H35:I35 | F17: Input | H17: Included historical labour escalation
C18: =SheetName('Inputs | General'!A10) -> Inputs | General | D18: 7 | E18: =CellReference('Inputs | General'!G36:N36) -> G36:N36 | F18: Formula | H18: Included Cumulative labour escalation for FY24 to Nominal
C21: Model sheet | D21: Reference | E21: Cell reference | F21: Type | G21: Legend | H21: Comments
C23: =SheetName('Input | Exit Fees'!A1) -> Input | Exit Fees | D23: =D18+1 -> 8 | E23: =CellReference('Input | Exit Fees'!F8:F23)&", "&CellReference('Input | Exit Fees'!F126:F141)&", "&CellReference('Input | Exit Fees'!G28)&", "&CellReference('Input | Exit Fees'!J96:J120) -> F8:F23, F126:F141, G28, J96:J120 | F23: Labelling | H23: Specified dollar basis
C24: =SheetName('Input | Exit Fees'!A2) -> Input | Exit Fees | D24: =+D23+1 -> 9 | E24: =CellReference('Input | Exit Fees'!G9:M11)&", "&CellReference('Input | Exit Fees'!G16:M18) -> G9:M11, G16:M18 | F24: Input | H24: Updates to opening RAB and capex data to align with PTRM
C25: =SheetName('Input | Exit Fees'!A4) -> Input | Exit Fees | D25: 10 | E25: Rows 12, 19, 23 | F25: Input | H25: Added Closing RAB to align with the AER's preferred modelling treatment
C26: =SheetName('Input | Exit Fees'!A3) -> Input | Exit Fees | D26: 11 | E26: =CellReference('Input | Exit Fees'!N9:N19) -> N9:N19 | F26: Labelling | H26: Updated labelling to improve transparency
C27: =SheetName('Input | Exit Fees'!A5) -> Input | Exit Fees | D27: 12 | E27: =CellReference('Input | Exit Fees'!B14)&", "&CellReference('Input | Exit Fees'!B132)&", "&CellReference('Input | Exit Fees'!N127:N137) -> B14, B132, N127:N137 | F27: Labelling | H27: Improved labelling for clarity
C28: =SheetName('Input | Exit Fees'!A11) -> Input | Exit Fees | D28: 13 | E28: =CellReference('Input | Exit Fees'!K50:L53) -> K50:L53 | F28: Input | H28: Updated value to consider weighted calculation
C29: =SheetName('Input | Exit Fees'!A14) -> Input | Exit Fees | D29: 14 | E29: =CellReference('Input | Exit Fees'!J70:O73) -> J70:O73 | F29: Input | H29: Updated gross meter populations to align with Metering expenditure model
C30: =SheetName('Input | Exit Fees'!A15) -> Input | Exit Fees | D30: =+D29+1 -> 15 | E30: =CellReference('Input | Exit Fees'!E91:G92) -> E91:G92 | F30: Input | H30: Updated hourly rate and included basis
C31: =SheetName('Input | Exit Fees'!A16) -> Input | Exit Fees | D31: 16 | E31: =CellReference('Input | Exit Fees'!K97:O102) -> K97:O102 | F31: Formula | H31: Updated calculation to consider the escalation to Nominal costs
C32: =SheetName('Input | Exit Fees'!A17) -> Input | Exit Fees | D32: 17 | E32: =CellReference('Input | Exit Fees'!K103:O105) -> K103:O105 | F32: Formula | H32: Updated input value
C33: =SheetName('Input | Exit Fees'!A19) -> Input | Exit Fees | D33: 18 | E33: =CellReference('Input | Exit Fees'!G127:L129)&", "&CellReference('Input | Exit Fees'!G134:M136) -> G127:L129, G134:M136 | F33: Input | H33: Updates to opening TAB and capex data to align with PTRM
C34: =SheetName('Input | Exit Fees'!A21) -> Input | Exit Fees | D34: 19 | E34: Rows 130, 137, 141 | F34: Input | H34: Added Closing TAB to align with the AER's preferred modelling treatment
C37: Model sheet | D37: Reference | E37: Cell reference | F37: Type | G37: Legend | H37: Comments
C39: =SheetName('Calc | Exit Fees'!A1) -> Calc | Exit Fees | D39: =D34+1 -> 20 | E39: =CellReference('Calc | Exit Fees'!H45:H109)&", "&CellReference('Calc | Exit Fees'!G116)&", "&CellReference('Calc | Exit Fees'!H185:H218)&", "&CellReference('Calc | Exit Fees'!G225) -> H45:H109, G116, H185:H218, G225 | F39: Labelling | H39: Specified dollar basis
C40: =SheetName('Calc | Exit Fees'!A2) -> Calc | Exit Fees | D40: =+D39+1 -> 21 | E40: =CellReference('Calc | Exit Fees'!K46:O55) -> K46:O55 | F40: Formula | H40: Updated calculation to consider the escalation to Nominal costs
C41: =SheetName('Calc | Exit Fees'!A3) -> Calc | Exit Fees | D41: =+D40+1 -> 22 | E41: =CellReference('Calc | Exit Fees'!K77:O86)&", "&CellReference('Calc | Exit Fees'!K109:O109)&", "&CellReference('Calc | Exit Fees'!K186:O195)&", "&CellReference('Calc | Exit Fees'!K218:O218) -> K77:O86, K109:O109, K186:O195, K218:O218 | F41: Formula | H41: Updated calculation formula to refer to average of closing RAB
C42: =SheetName('Calc | Exit Fees'!A5) -> Calc | Exit Fees | D42: =+D41+1 -> 23 | E42: =CellReference('Calc | Exit Fees'!B103)&", "&CellReference('Calc | Exit Fees'!C105)&", "&CellReference('Calc | Exit Fees'!F109)&", "&CellReference('Calc | Exit Fees'!E120)&", "&CellReference('Calc | Exit Fees'!C214)&", "&CellReference('Calc | Exit Fees'!F218) -> B103, C105, F109, E120, C214, F218 | F42: Labelling | H42: Improved labelling for clarity
C43: =SheetName('Calc | Exit Fees'!A9) -> Calc | Exit Fees | D43: 24 | E43: =CellReference('Calc | Exit Fees'!K109:O109)&", "&CellReference('Calc | Exit Fees'!K218:O218) -> K109:O109, K218:O218 | F43: Formula | H43: Updated calculation to consider the escalation to Nominal costs
C46: Model sheet | D46: Reference | E46: Cell reference | F46: Type | G46: Legend | H46: Comments
C48: =SheetName('Calc | Tax Allowance'!A3) -> Calc | Tax Allowance | D48: =D43+1 -> 25 | E48: =CellReference('Calc | Tax Allowance'!G8) -> G8 | F48: Input | H48: Specified dollar basis
C49: =SheetName('Calc | Tax Allowance'!A4) -> Calc | Tax Allowance | D49: =+D48+1 -> 26 | E49: =CellReference('Calc | Tax Allowance'!E13:E82) -> E13:E82 | F49: Labelling | H49: Improved labelling for clarity
B51: End

Sheet AER Change log
B2: Worksheet | C2: Cells | D2: Description of change
B3: Throughout workbook | D3: Added cost basis labelling
B4: Inputs | General | C4: G9 | D4: Updated decision stage
B5: Inputs | General | C5: H26:L26 | D5: Update forecast inflation
B6: Inputs | General | C6: H32:L32 | D6: Update opex price change to reflect Input prices
B7: Inputs | Exit Fees | C7: G9:L18 | D7: Updated RAB inputs
B8: Inputs | Exit Fees | C8: D29:D31 | D8: Updated titles for Single Phase and Three Phase to include DC
B9: Inputs | Exit Fees | C9: G29:G32 | D9: Corrected base year exit fees
B10: Inputs | Exit Fees | C10: K49:L63 | D10: Updated meter unit costs
B11: Inputs | Exit Fees | C11: K71:O71 | D11: Updated meter end year populations
B12: Inputs | Exit Fees | C12: K102:O103 | D12: Updated admin labour tasks
B13: Inputs | Exit Fees | C13: G126:L135 | D13: Updated TAB inputs

Sheet Inputs | General
B1: ='Title Page'!B8&" v"&'Title Page'!$C$10 -> JEN 2027-31 - ACS Standardised Metering Pricing Model v1.02 | V1: Worksheet check: | W1: =IF(COUNTA($X$14:$X$48)=COUNTIF($X14:$X49,"OK"),"OK","Check") -> OK
B2: =MID(CELL("filename",A1),FIND("]",CELL("filename",A1))+1,255) -> Inputs | General | I2: Key: | J2: Input | K2: External Link | M2: Internal Link | O2: Jemena modification | P2: JEN - RP
B5: 1. Inputs - General
C7: Inputs | D7: Source | E7: Input Format | G7: Value
C8: NSP name | D8: NSP | G8: JEN - ACS
C9: Decision stage | D9: NSP | G9: revised proposal
C11: Forecast regulatory control period, first year | D11: NSP | E11: YYYY-YY | G11: 2026-27
C12: Forecast regulatory control period, last year | D12: NSP | G12: =LEFT(FPFirstYear,4)+4&"-"&RIGHT(FPFirstYear,2)+4 -> 2030-31
C14: Regulatory Period Length, Yrs | G14: =LEFT(G12,4)-LEFT(FPFirstYear,4)+1 -> 5
C16: Model Used For (Price Cap or Vic Exit Fees?) | G16: Exit Fees (Vic)
B21: =LEFT('Inputs | General'!B5,1)+1&". Linked Inputs - Inflation" -> 2. Linked Inputs - Inflation
I24: Base year | J24: Regulatory period
C25: Year | E25: Units | G25: =LEFT(H25,4)-1&"-"&RIGHT(H25,2)-1 -> 2023-24 | H25: 2024-25 | I25: =LEFT(J25,4)-1&"-"&RIGHT(J25,2)-1 -> 2025-26 | J25: =FPFirstYear -> 2026-27 | K25: =LEFT(J25,4)+1&"-"&RIGHT(J25,2)+1 -> 2027-28 | L25: =LEFT(K25,4)+1&"-"&RIGHT(K25,2)+1 -> 2028-29 | M25: =LEFT(L25,4)+1&"-"&RIGHT(L25,2)+1 -> 2029-30 | N25: =LEFT(M25,4)+1&"-"&RIGHT(M25,2)+1 -> 2030-31
C26: Inflation Assumption (CPI % increase) | E26: % | J26: ='[1]Input| Prices'!M$23 -> 0.02659759351 | K26: ='[1]Input| Prices'!N$23 -> 0.02659759351 | L26: ='[1]Input| Prices'!O$23 -> 0.02659759351 | M26: ='[1]Input| Prices'!P$23 -> 0.02659759351 | N26: ='[1]Input| Prices'!Q$23 -> 0.02659759351
C27: Cumulative Inflation Index (CPI end period) | E27: Index | I27: 1 | J27: =I27*(1+J26) -> 1.026597594 | K27: =J27*(1+K26) -> 1.053902619 | L27: =K27*(1+L26) -> 1.081933892 | M27: =L27*(1+M26) -> 1.11071073 | N27: =M27*(1+N26) -> 1.140252963
C28: Historical Inflation (CPI % increase) | E28: % | H28: ='[1]Input| Prices'!K$23 -> 0.0242468773 | I28: ='[1]Input| Prices'!L$23 -> 0.03
C29: Cumulative Inflation Index (Jun 2024 to Nominal) | E29: Index | G29: 1 | H29: =G29*(1+H28) -> 1.024246877 | I29: =H29*(1+I28) -> 1.054974284 | J29: =I29*(1+J26) -> 1.083034061 | K29: =J29*(1+K26) -> 1.11184016 | L29: 1.141412433 | M29: 1.171771257 | N29: 1.202937553
I31: Base year | J31: Regulatory period
C32: Year | E32: Units | G32: =LEFT(H32,4)-1&"-"&RIGHT(H32,2)-1 -> 2023-24 | H32: 2024-25 | I32: =LEFT(J32,4)-1&"-"&RIGHT(J32,2)-1 -> 2025-26 | J32: =FPFirstYear -> 2026-27 | K32: =LEFT(J32,4)+1&"-"&RIGHT(J32,2)+1 -> 2027-28 | L32: =LEFT(K32,4)+1&"-"&RIGHT(K32,2)+1 -> 2028-29 | M32: =LEFT(L32,4)+1&"-"&RIGHT(L32,2)+1 -> 2029-30 | N32: =LEFT(M32,4)+1&"-"&RIGHT(M32,2)+1 -> 2030-31
C33: Weighted average of Opex Price Change (% increase) | E33: % | J33: ='[1]Input| Prices'!M$43 -> 0.008120818073 | K33: ='[1]Input| Prices'!N$43 -> 0.009550582168 | L33: ='[1]Input| Prices'!O$43 -> 0.0111993349 | M33: ='[1]Input| Prices'!P$43 -> 0.01227436192 | N33: ='[1]Input| Prices'!Q$43 -> 0.01202541615
C34: Real Price index to input year | E34: Index | I34: 1 | J34: =I34*(1+J33) -> 1.008120818 | K34: =J34*(1+K33) -> 1.017748959 | L34: =K34*(1+L33) -> 1.02914707 | M34: =L34*(1+M33) -> 1.041779194 | N34: =M34*(1+N33) -> 1.054307022
C35: Historical Real input cost escalation (% increase) | E35: % | H35: ='[1]Input| Prices'!K$43 -> 0.01825166827 | I35: ='[1]Input| Prices'!L$43 -> 0.01276076614
C36: Cumulative Real input cost escalation Index (Jun 2024 to Nominal) | E36: Index | G36: 1 | H36: =G36*(1+H35) -> 1.018251668 | I36: =H36*(1+I35) -> 1.03124534 | J36: =I36*(1+J33) -> 1.039619895 | K36: =J36*(1+K33) -> 1.049548871 | L36: 1.06130312 | M36: 1.074329939 | N36: 1.087249203
B38: =LEFT('Inputs | General'!B21,1)+1&". Linked Inputs - Return and tax assumptions" -> 3. Linked Inputs - Return and tax assumptions
I41: Base year | J41: Regulatory period
C42: Assumption | E42: Units | I42: =LEFT(J42,4)-1&"-"&RIGHT(J42,2)-1 -> 2025-26 | J42: =FPFirstYear -> 2026-27 | K42: =LEFT(J42,4)+1&"-"&RIGHT(J42,2)+1 -> 2027-28 | L42: =LEFT(K42,4)+1&"-"&RIGHT(K42,2)+1 -> 2028-29 | M42: =LEFT(L42,4)+1&"-"&RIGHT(L42,2)+1 -> 2029-30 | N42: =LEFT(M42,4)+1&"-"&RIGHT(M42,2)+1 -> 2030-31
C43: Value of imputation credits | E43: % | I43: 0.585 | J43: 0.57 | K43: 0.57 | L43: 0.57 | M43: 0.57 | N43: 0.57
C44: Corporate tax rate | E44: % | I44: 0.3 | J44: 0.3 | K44: 0.3 | L44: 0.3 | M44: 0.3 | N44: 0.3

Sheet Exit Fees >

Sheet Input | Exit Fees
B1: ='Title Page'!B8&" v"&'Title Page'!$C$10 -> JEN 2027-31 - ACS Standardised Metering Pricing Model v1.02 | M1: DNSP: | N1: =IF('Inputs | General'!$G$16="Price Cap","NOT USED",NSP) -> JEN - ACS
B2: =MID(CELL("filename",A1),FIND("]",CELL("filename",A1))+1,255) -> Input | Exit Fees | H2: Key: | I2: Input | J2: External Link | K2: Internal Link | L2: Jemena modification | M2: JEN - RP
B5: =LEFT('Inputs | General'!B21,1)+1&". Linked Input - RAB" -> 3. Linked Input - RAB | J5: =IF('Inputs | General'!$G$16="Price Cap","NOT USED","") -> 
B7: Linked Input - RAB Meters | G7: Base Year | H7: Regulatory Period
E8: Units | F8: Basis | G8: =LEFT(H8,4)-1&"-"&RIGHT(H8,2)-1 -> 2025-26 | H8: =FPFirstYear -> 2026-27 | I8: =LEFT(H8,4)+1&"-"&RIGHT(H8,2)+1 -> 2027-28 | J8: =LEFT(I8,4)+1&"-"&RIGHT(I8,2)+1 -> 2028-29 | K8: =LEFT(J8,4)+1&"-"&RIGHT(J8,2)+1 -> 2029-30 | L8: =LEFT(K8,4)+1&"-"&RIGHT(K8,2)+1 -> 2030-31 | M8: =LEFT(L8,4)+1&"-"&RIGHT(L8,2)+1 -> 2031-32
C9: Opening RAB | E9: $m | F9: Nominal | H9: =+G12 -> 48.426387 | I9: =+H12 -> 67.58559211 | J9: 92.64856507 | K9: 121.6766883 | L9: 153.3170451 | M9: 188.8685532 | N9: Opening balance of METERS row in PTRM inputs sheet of PTRM
C10: Gross capital expenditure | E10: $m | F10: Nominal | H10: =[2]Assets!G$64 -> 23.28909405 | I10: =[2]Assets!H$64 -> 30.42127849 | J10: =[2]Assets!I$64 -> 35.99217164 | K10: =[2]Assets!J$64 -> 40.54639499 | L10: =[2]Assets!K$64 -> 46.71393482 | N10: Gross capex from METERS row in ASSETS sheet of PTRM
C11: Regulatory depreciation | E11: $m | F11: Nominal | H11: =[2]Assets!G$154*[2]Assets!G$7-H9*[2]Assets!G$6 -> 4.129888942 | I11: =[2]Assets!H$154*[2]Assets!H$7-I9*[2]Assets!H$6 -> 5.358305536 | J11: =[2]Assets!I$154*[2]Assets!I$7-J9*[2]Assets!I$6 -> 6.96404843 | K11: =[2]Assets!J$154*[2]Assets!J$7-K9*[2]Assets!J$6 -> 8.906038148 | L11: =[2]Assets!K$154*[2]Assets!K$7-L9*[2]Assets!K$6 -> 11.16242673 | N11: Depreciation from METERS row in ASSETS sheet of PTRM
C12: Closing RAB | E12: $m | F12: Nominal | G12: =[2]!A3value -> 48.426387 | H12: =+H9+H10-H11 -> 67.58559211 | I12: =+I9+I10-I11 -> 92.64856507 | J12: 121.6766883 | K12: 153.3170451 | L12: 188.8685532 | N12: Closing balance of METERS row in PTRM inputs sheet of PTRM
B14: Linked Input - RAB Comms, IT, Inhouse software & Equity Raising Costs
E15: Units | F15: Basis | G15: =LEFT(H15,4)-1&"-"&RIGHT(H15,2)-1 -> 2025-26 | H15: =FPFirstYear -> 2026-27 | I15: =LEFT(H15,4)+1&"-"&RIGHT(H15,2)+1 -> 2027-28 | J15: =LEFT(I15,4)+1&"-"&RIGHT(I15,2)+1 -> 2028-29 | K15: =LEFT(J15,4)+1&"-"&RIGHT(J15,2)+1 -> 2029-30 | L15: =LEFT(K15,4)+1&"-"&RIGHT(K15,2)+1 -> 2030-31 | M15: =LEFT(L15,4)+1&"-"&RIGHT(L15,2)+1 -> 2031-32
C16: Opening RAB | E16: $m | F16: Nominal | H16: =+G19 -> 6.042465836 | I16: =+H19 -> 16.11293255 | J16: 22.00524213 | K16: 26.04470855 | L16: 31.61695581 | M16: 33.85129974 | N16: Opening balance of COMMS & IT & Inhouse Software & Equity Raising Costs rows from PTRM INPUTS sheet of PTRM
C17: Gross capital expenditure | E17: $m | F17: Nominal | H17: =[2]Assets!G$61-H10 -> 11.33944119 | I17: =[2]Assets!H$61-I10 -> 8.640350966 | J17: =[2]Assets!I$61-J10 -> 7.758839672 | K17: =[2]Assets!J$61-K10 -> 10.33512204 | L17: =[2]Assets!K$61-L10 -> 8.510506323 | N17: Gross capex from COMMS & IT & Inhouse Software & Equity Raising Costs rows in ASSETS sheet of PTRM
C18: Regulatory depreciation | E18: $m | F18: Nominal | H18: =-[2]Assets!G$1436-[2]Assets!G$1437-H11 -> 1.268974481 | I18: =-[2]Assets!H$1436-[2]Assets!H$1437-I11 -> 2.748041378 | J18: =-[2]Assets!I$1436-[2]Assets!I$1437-J11 -> 3.71937326 | K18: =-[2]Assets!J$1436-[2]Assets!J$1437-K11 -> 4.762874774 | L18: =-[2]Assets!K$1436-[2]Assets!K$1437-L11 -> 6.276162397 | N18: Depreciation from COMMS & IT & Inhouse Software & Equity Raising Costs rows in ASSETS sheet of PTRM
C19: Closing RAB | E19: $m | F19: Nominal | G19: =[2]!RAB-G12 -> 6.042465836 | H19: =+H16+H17-H18 -> 16.11293255 | I19: =+I16+I17-I18 -> 22.00524213 | J19: =+J16+J17-J18 -> 26.04470855 | K19: =+K16+K17-K18 -> 31.61695581 | L19: =+L16+L17-L18 -> 33.85129974 | N19: Closing balance of COMMS & IT & Inhouse Software & Equity Raising Costs rows from PTRM INPUTS sheet of PTRM
E21: Units | F21: Basis | G21: =LEFT(H21,4)-1&"-"&RIGHT(H21,2)-1 -> 2025-26 | H21: =FPFirstYear -> 2026-27 | I21: =LEFT(H21,4)+1&"-"&RIGHT(H21,2)+1 -> 2027-28 | J21: =LEFT(I21,4)+1&"-"&RIGHT(I21,2)+1 -> 2028-29 | K21: =LEFT(J21,4)+1&"-"&RIGHT(J21,2)+1 -> 2029-30 | L21: =LEFT(K21,4)+1&"-"&RIGHT(K21,2)+1 -> 2030-31 | M21: =LEFT(L21,4)+1&"-"&RIGHT(L21,2)+1 -> 2031-32
B22: TOTAL Opening RAB | E22: $m | F22: Nominal | G22: =G9+G16 -> 0 | H22: 54.46885284 | I22: 83.69852466 | J22: 114.6538072 | K22: 147.7213968 | L22: 184.9340009 | M22: 222.7198529
B23: TOTAL Closing RAB | E23: $m | F23: Nominal | G23: =G12+G19 -> 54.46885284 | H23: =H12+H19 -> 83.69852466 | I23: 114.6538072 | J23: 147.7213968 | K23: 184.9340009 | L23: 222.7198529
B26: =LEFT(B5,1)+1&". Input | Define Exit Fees" -> 4. Input | Define Exit Fees
B28: Enter Allowed Exit Fee in final year of current Regulatory Period | G28: Exit Fee $2025–26
D29: Exit Fee Name | F29: Units | G29: Last Year - Current RP
D30: Single Phase (inc. DC) | F30: $dollars | G30: 191.64
D31: Single Phase, Two Element | F31: $dollars | G31: 191.64
D32: Three Phase (inc. DC) | F32: $dollars | G32: 191.64
D33: Three Phase CT | F33: $dollars | G33: 191.64
D34: 0 | F34: $dollars
D35: 0 | F35: $dollars | G35: 0
D36: 0 | F36: $dollars | G36: 0
D37: 0 | F37: $dollars | G37: 0
D38: 0 | F38: $dollars | G38: 0
D39: 0 | F39: $dollars | G39: 0
B43: =LEFT(B26,1)+1&". Input | from Metering ACS Model" -> 5. Input | from Metering ACS Model
B45: METERS
B47: a | C47: Inputs - Designated Exit Fee by Meter Type | G47: b | H47: Linked Input - Meter Types & Unit Costs
K48: Equipment Cost | L48: Labour Cost | M48: Total Cost
D49: Designated Exit Fee | H49: Meter Type | I49: Units | J49: Basis | K49: New Meter Installations | L49: New Meter Installations | M49: New Meter Installations | Q49: Link from Metering - ACS Model
D50: Single Phase (inc. DC) | H50: =+D50 -> Single Phase (inc. DC) | I50: $dollars | J50: 2024-06-01 | K50: =('[1]Input | Meters Vols & Costs'!P125*'[1]Input | Meters Vols & Costs'!M150/SUM('[1]Input | Meters Vols & Costs'!$M$150,'[1]Input | Meters Vols & Costs'!$M$153)+'[1]Input | Meters Vols & Costs'!P128*'[1]Input | Meters Vols & Costs'!M153/SUM('[1]Input | Meters Vols & Costs'!$M$150,'[1]Input | Meters Vols & Costs'!$M$153)) -> 224.2051416 | L50: =('[1]Input | Meters Vols & Costs'!W103*'[1]Input | Meters Vols & Costs'!M150/SUM('[1]Input | Meters Vols & Costs'!$M$150,'[1]Input | Meters Vols & Costs'!$M$153)+'[1]Input | Meters Vols & Costs'!W106*'[1]Input | Meters Vols & Costs'!M153/SUM('[1]Input | Meters Vols & Costs'!$M$150,'[1]Input | Meters Vols & Costs'!$M$153)) -> 211.1524025 | M50: =K50+L50 -> 435.3575441
D51: Single Phase, Two Element | H51: =+D51 -> Single Phase, Two Element | I51: $dollars | J51: 2024-06-01 | K51: =('[1]Input | Meters Vols & Costs'!P126) -> 261.36 | L51: =('[1]Input | Meters Vols & Costs'!W104) -> 211.1524025 | M51: 472.5124025
D52: Three Phase (inc. DC) | H52: =+D52 -> Three Phase (inc. DC) | I52: $dollars | J52: 2024-06-01 | K52: =('[1]Input | Meters Vols & Costs'!P127*'[1]Input | Meters Vols & Costs'!M152/SUM('[1]Input | Meters Vols & Costs'!$M$152,'[1]Input | Meters Vols & Costs'!$M$154)+'[1]Input | Meters Vols & Costs'!P129*'[1]Input | Meters Vols & Costs'!M154/SUM('[1]Input | Meters Vols & Costs'!$M$152,'[1]Input | Meters Vols & Costs'!$M$154)) -> 386.9856666 | L52: =('[1]Input | Meters Vols & Costs'!W105*'[1]Input | Meters Vols & Costs'!M152/SUM('[1]Input | Meters Vols & Costs'!$M$152,'[1]Input | Meters Vols & Costs'!$M$154)+'[1]Input | Meters Vols & Costs'!W107*'[1]Input | Meters Vols & Costs'!M154/SUM('[1]Input | Meters Vols & Costs'!$M$152,'[1]Input | Meters Vols & Costs'!$M$154)) -> 226.3415899 | M52: 613.3272565
D53: Three Phase CT | H53: =+D53 -> Three Phase CT | I53: $dollars | J53: 2024-06-01 | K53: =('[1]Input | Meters Vols & Costs'!P130) -> 502.94 | L53: =('[1]Input | Meters Vols & Costs'!W108) -> 401.1895647 | M53: 904.1295647
I54: $dollars | M54: 0
D55: 0 | I55: $dollars | M55: 0
D56: 0 | I56: $dollars
D57: 0 | I57: $dollars
D58: 0 | I58: $dollars
D59: 0 | I59: $dollars
D60: 0 | I60: $dollars
D61: 0 | I61: $dollars
D62: 0 | H62: 0 | I62: $dollars
D63: 0 | H63: 0 | I63: $dollars
D64: 0 | H64: 0 | I64: $dollars
B67: e | C67: Linked Input - Gross Meter Population (Year End), by meter type
J68: Number of meters in year
H69: =H49 -> Meter Type | I69: Units | J69: =LEFT(K69,4)-1&"-"&RIGHT(K69,2)-1 -> 2025-26 | K69: =FPFirstYear -> 2026-27 | L69: =LEFT(K69,4)+1&"-"&RIGHT(K69,2)+1 -> 2027-28 | M69: =LEFT(L69,4)+1&"-"&RIGHT(L69,2)+1 -> 2028-29 | N69: =LEFT(M69,4)+1&"-"&RIGHT(M69,2)+1 -> 2029-30 | O69: =LEFT(N69,4)+1&"-"&RIGHT(N69,2)+1 -> 2030-31 | Q69: Link from Metering - ACS Model
H70: Single Phase (inc. DC) | I70: No. | J70: =SUM('[1]Input | Meters Vols & Costs'!P$412,'[1]Input | Meters Vols & Costs'!P$415) -> 310245.3349 | K70: =SUM('[1]Input | Meters Vols & Costs'!Q$412,'[1]Input | Meters Vols & Costs'!Q$415) -> 309729.9255 | L70: =SUM('[1]Input | Meters Vols & Costs'!R$412,'[1]Input | Meters Vols & Costs'!R$415) -> 308375.1359 | M70: =SUM('[1]Input | Meters Vols & Costs'!S$412,'[1]Input | Meters Vols & Costs'!S$415) -> 307003.7986 | N70: =SUM('[1]Input | Meters Vols & Costs'!T$412,'[1]Input | Meters Vols & Costs'!T$415) -> 305615.9109 | O70: =SUM('[1]Input | Meters Vols & Costs'!U$412,'[1]Input | Meters Vols & Costs'!U$415) -> 304211.4697
H71: Single Phase, Two Element | I71: No. | J71: ='[1]Input | Meters Vols & Costs'!P$413 -> 20745.71889 | K71: ='[1]Input | Meters Vols & Costs'!Q$413 -> 20479.172 | L71: ='[1]Input | Meters Vols & Costs'!R$413 -> 20209.32978 | M71: ='[1]Input | Meters Vols & Costs'!S$413 -> 19936.19165 | N71: ='[1]Input | Meters Vols & Costs'!T$413 -> 19659.75705 | O71: ='[1]Input | Meters Vols & Costs'!U$413 -> 19380.02538
H72: Three Phase (inc. DC) | I72: No. | J72: =SUM('[1]Input | Meters Vols & Costs'!P$414,'[1]Input | Meters Vols & Costs'!P$416) -> 64099.48148 | K72: =SUM('[1]Input | Meters Vols & Costs'!Q$414,'[1]Input | Meters Vols & Costs'!Q$416) -> 72599.14628 | L72: =SUM('[1]Input | Meters Vols & Costs'!R$414,'[1]Input | Meters Vols & Costs'!R$416) -> 82004.23394 | M72: =SUM('[1]Input | Meters Vols & Costs'!S$414,'[1]Input | Meters Vols & Costs'!S$416) -> 91524.19732 | N72: =SUM('[1]Input | Meters Vols & Costs'!T$414,'[1]Input | Meters Vols & Costs'!T$416) -> 101159.0559 | O72: =SUM('[1]Input | Meters Vols & Costs'!U$414,'[1]Input | Meters Vols & Costs'!U$416) -> 110908.8302
H73: Three Phase CT | I73: No. | J73: ='[1]Input | Meters Vols & Costs'!P$417 -> 2635.21887 | K73: ='[1]Input | Meters Vols & Costs'!Q$417 -> 2826.56257 | L73: ='[1]Input | Meters Vols & Costs'!R$417 -> 3028.686084 | M73: ='[1]Input | Meters Vols & Costs'!S$417 -> 3233.278377 | N73: ='[1]Input | Meters Vols & Costs'!T$417 -> 3440.339867 | O73: ='[1]Input | Meters Vols & Costs'!U$417 -> 3649.870999
H74: 0 | I74: No.
I75: No.
H76: =H56 -> 0 | I76: No.
H77: 0 | I77: No.
H78: 0 | I78: No.
H79: 0 | I79: No.
H80: 0 | I80: No.
H81: 0 | I81: No.
H82: 0 | I82: No.
H83: 0 | I83: No.
H84: 0 | I84: No. | J84: 0 | K84: 0 | L84: 0 | M84: 0 | N84: 0 | O84: 0
H85: Total | I85: No. | J85: =SUM(J70:J84) -> 397725.7541 | K85: 405634.8063 | L85: 413617.3857 | M85: 421697.466 | N85: 429875.0636 | O85: 438150.1963
B88: =LEFT(B43,1)+1&". INPUT | Admin and handling" -> 6. INPUT | Admin and handling
B90: a | C90: Inputs - Admin Hourly Rate
D91: Admin Fees | E91: Units | F91: Basis | G91: Rate
D92: Hourly Rate | E92: $dollars/hr | F92: 2024-06-01 | G92: 76.33284131
B95: b | C95: Inputs - Admin & Handling Costs (Execution costs)
D96: Admin Process Description | G96: Amount ($Fixed or Hours) | H96: Calculated or Entered | I96: Proportion required | J96: Basis | K96: =FPFirstYear -> 2026-27 | L96: =LEFT(K96,4)+1&"-"&RIGHT(K96,2)+1 -> 2027-28 | M96: =LEFT(L96,4)+1&"-"&RIGHT(L96,2)+1 -> 2028-29 | N96: =LEFT(M96,4)+1&"-"&RIGHT(M96,2)+1 -> 2029-30 | O96: =LEFT(N96,4)+1&"-"&RIGHT(N96,2)+1 -> 2030-31
D97: Validate B2B and paperwork | G97: 0.08333333333 | H97: Entered | I97: 1 | J97: Nominal | K97: =$G$92*$G97*$I97*'Inputs | General'!J$29*'Inputs | General'!J$36 -> 7.162207178 | L97: =$G$92*$G97*$I97*'Inputs | General'!K$29*'Inputs | General'!K$36 -> 7.422927263 | M97: =$G$92*$G97*$I97*'Inputs | General'!L$29*'Inputs | General'!L$36 -> 7.70570222 | N97: =$G$92*$G97*$I97*'Inputs | General'!M$29*'Inputs | General'!M$36 -> 8.007753603 | O97: =$G$92*$G97*$I97*'Inputs | General'!N$29*'Inputs | General'!N$36 -> 8.319598404
D98: Write off meter from AMI SAP | G98: 0.08333333333 | H98: Entered | I98: 1 | J98: Nominal | K98: =$G$92*$G98*$I98*'Inputs | General'!J$29*'Inputs | General'!J$36 -> 7.162207178 | L98: =$G$92*$G98*$I98*'Inputs | General'!K$29*'Inputs | General'!K$36 -> 7.422927263 | M98: =$G$92*$G98*$I98*'Inputs | General'!L$29*'Inputs | General'!L$36 -> 7.70570222 | N98: =$G$92*$G98*$I98*'Inputs | General'!M$29*'Inputs | General'!M$36 -> 8.007753603 | O98: =$G$92*$G98*$I98*'Inputs | General'!N$29*'Inputs | General'!N$36 -> 8.319598404
D99: Update new meter detail in ERP SAP | G99: 0.08333333333 | H99: Entered | I99: 1 | J99: Nominal | K99: =$G$92*$G99*$I99*'Inputs | General'!J$29*'Inputs | General'!J$36 -> 7.162207178 | L99: =$G$92*$G99*$I99*'Inputs | General'!K$29*'Inputs | General'!K$36 -> 7.422927263 | M99: =$G$92*$G99*$I99*'Inputs | General'!L$29*'Inputs | General'!L$36 -> 7.70570222 | N99: =$G$92*$G99*$I99*'Inputs | General'!M$29*'Inputs | General'!M$36 -> 8.007753603 | O99: =$G$92*$G99*$I99*'Inputs | General'!N$29*'Inputs | General'!N$36 -> 8.319598404
D100: SAP ERP internal Service Order creation and close out | G100: 0.08333333333 | H100: Entered | I100: 1 | J100: Nominal | K100: =$G$92*$G100*$I100*'Inputs | General'!J$29*'Inputs | General'!J$36 -> 7.162207178 | L100: =$G$92*$G100*$I100*'Inputs | General'!K$29*'Inputs | General'!K$36 -> 7.422927263 | M100: =$G$92*$G100*$I100*'Inputs | General'!L$29*'Inputs | General'!L$36 -> 7.70570222 | N100: =$G$92*$G100*$I100*'Inputs | General'!M$29*'Inputs | General'!M$36 -> 8.007753603 | O100: =$G$92*$G100*$I100*'Inputs | General'!N$29*'Inputs | General'!N$36 -> 8.319598404
D101: Manage system exceptions, errors and reporting | G101: 0.25 | H101: Entered | I101: 0.2 | J101: Nominal | K101: =$G$92*$G101*$I101*'Inputs | General'!J$29*'Inputs | General'!J$36 -> 4.297324307 | L101: =$G$92*$G101*$I101*'Inputs | General'!K$29*'Inputs | General'!K$36 -> 4.453756358 | M101: =$G$92*$G101*$I101*'Inputs | General'!L$29*'Inputs | General'!L$36 -> 4.623421332 | N101: =$G$92*$G101*$I101*'Inputs | General'!M$29*'Inputs | General'!M$36 -> 4.804652162 | O101: =$G$92*$G101*$I101*'Inputs | General'!N$29*'Inputs | General'!N$36 -> 4.991759043
D102: Manage phone calls and inquiries | G102: 0.1666666667 | H102: Entered | I102: 0.2 | J102: Nominal | K102: =$G$92*$G102*$I102*'Inputs | General'!J$29*'Inputs | General'!J$36 -> 2.864882871 | L102: =$G$92*$G102*$I102*'Inputs | General'!K$29*'Inputs | General'!K$36 -> 2.969170905 | M102: =$G$92*$G102*$I102*'Inputs | General'!L$29*'Inputs | General'!L$36 -> 3.082280888 | N102: =$G$92*$G102*$I102*'Inputs | General'!M$29*'Inputs | General'!M$36 -> 3.203101441 | O102: =$G$92*$G102*$I102*'Inputs | General'!N$29*'Inputs | General'!N$36 -> 3.327839362
D103: Relays (Equipment and installation cost) | H103: Entered | J103: Nominal | K103: 5.602388141 | L103: 5.651751704 | M103: 5.704709056 | N103: 5.760486428 | O103: 5.817446595
D104: Access Points (Equipment and installation cost) | H104: Entered | J104: Nominal | K104: 10.36999063 | L104: 13.51585423 | M104: 16.22858184 | N104: 18.49855403 | O104: 20.93001252
D105: Decommission and meter disposal cost by Vendor | H105: Entered | J105: Nominal | K105: 27.07585152 | L105: 27.79600401 | M105: 28.53531083 | N105: 29.29428143 | O105: 30.07343882
J106: Nominal
B108: c | C108: Admin & Handling Cost Calculation (Autofilled)
D109: Admin Process Description | G109: Amount (Fixed or Hours) | H109: Calculated or Entered | I109: Proportion required | J109: Basis | K109: =FPFirstYear -> 2026-27 | L109: =LEFT(K109,4)+1&"-"&RIGHT(K109,2)+1 -> 2027-28 | M109: =LEFT(L109,4)+1&"-"&RIGHT(L109,2)+1 -> 2028-29 | N109: =LEFT(M109,4)+1&"-"&RIGHT(M109,2)+1 -> 2029-30 | O109: =LEFT(N109,4)+1&"-"&RIGHT(N109,2)+1 -> 2030-31
D110: =D97 -> Validate B2B and paperwork | G110: =G97 -> 0.08333333333 | H110: Entered | I110: 1 | J110: Nominal | K110: =IF($H110="Calc-Fixed",$I110*$G110,IF($H110="Calc-Hourly",$G$92*$G110*$I110,IF($H110="Entered",K97,0))) -> 7.162207178 | L110: =IF($H110="Calc-Fixed",$I110*$G110,IF($H110="Calc-Hourly",$G$92*$G110*$I110,IF($H110="Entered",L97,0))) -> 7.422927263 | M110: =IF($H110="Calc-Fixed",$I110*$G110,IF($H110="Calc-Hourly",$G$92*$G110*$I110,IF($H110="Entered",M97,0))) -> 7.70570222 | N110: 8.007753603 | O110: 8.319598404
D111: Write off meter from AMI SAP | G111: 0.08333333333 | H111: Entered | I111: 1 | J111: Nominal | K111: 7.162207178 | L111: 7.422927263 | M111: 7.70570222 | N111: 8.007753603 | O111: 8.319598404
D112: Update new meter detail in ERP SAP | G112: 0.08333333333 | H112: Entered | I112: 1 | J112: Nominal | K112: 7.162207178 | L112: 7.422927263 | M112: 7.70570222 | N112: 8.007753603 | O112: 8.319598404
D113: SAP ERP internal Service Order creation and close out | G113: 0.08333333333 | H113: Entered | I113: 1 | J113: Nominal | K113: 7.162207178 | L113: 7.422927263 | M113: 7.70570222 | N113: 8.007753603 | O113: 8.319598404
D114: Manage system exceptions, errors and reporting | G114: 0.25 | H114: Entered | I114: 0.2 | J114: Nominal | K114: 4.297324307 | L114: 4.453756358 | M114: 4.623421332 | N114: 4.804652162 | O114: 4.991759043
D115: Manage phone calls and inquiries | G115: 0.1666666667 | H115: Entered | I115: 0.2 | J115: Nominal | K115: 2.864882871 | L115: 2.969170905 | M115: 3.082280888 | N115: 3.203101441 | O115: 3.327839362
D116: Relays (Equipment and installation cost) | G116: 0 | H116: Entered | I116: 0 | J116: Nominal | K116: 5.602388141 | L116: 5.651751704 | M116: 5.704709056 | N116: 5.760486428 | O116: 5.817446595
D117: Access Points (Equipment and installation cost) | G117: =G104 -> 0 | H117: Entered | I117: 0 | J117: Nominal | K117: =IF($H117="Calc-Fixed",$I117*$G117,IF($H117="Calc-Hourly",$G$92*$G117*$I117,IF($H117="Entered",K104,0))) -> 10.36999063 | L117: 13.51585423 | M117: 16.22858184 | N117: 18.49855403 | O117: 20.93001252
D118: Decommission and meter disposal cost by Vendor | G118: 0 | H118: Entered | I118: 0 | J118: Nominal | K118: 27.07585152 | L118: 27.79600401 | M118: 28.53531083 | N118: 29.29428143 | O118: 30.07343882
D119: 0 | G119: 0 | H119: 0 | I119: 0 | J119: Nominal | K119: 0 | L119: 0 | M119: 0 | N119: 0 | O119: 0
D120: TOTAL ADMIN and Handling | J120: Nominal | K120: =SUM(K110:K119) -> 78.85926618 | L120: =SUM(L110:L119) -> 84.07824626 | M120: =SUM(M110:M119) -> 88.99711282 | N120: =SUM(N110:N119) -> 93.59208989 | O120: =SUM(O110:O119) -> 98.41888995
B123: =LEFT('Input | Exit Fees'!B88,1)+1&". Linked Input - TAB" -> 7. Linked Input - TAB | J123: =IF('Inputs | General'!$G$16="Price Cap","NOT USED","") -> 
B125: Linked Input - TAB Meters | G125: Base Year | H125: Regulatory Period
E126: Units | F126: Basis | G126: =LEFT(H126,4)-1&"-"&RIGHT(H126,2)-1 -> 2025-26 | H126: =FPFirstYear -> 2026-27 | I126: =LEFT(H126,4)+1&"-"&RIGHT(H126,2)+1 -> 2027-28 | J126: =LEFT(I126,4)+1&"-"&RIGHT(I126,2)+1 -> 2028-29 | K126: =LEFT(J126,4)+1&"-"&RIGHT(J126,2)+1 -> 2029-30 | L126: =LEFT(K126,4)+1&"-"&RIGHT(K126,2)+1 -> 2030-31 | M126: =LEFT(L126,4)+1&"-"&RIGHT(L126,2)+1 -> 2031-32
C127: Opening TAB | E127: $m | F127: Nominal | H127: =+G130 -> 33.91890096 | I127: =+H130 -> 51.23316031 | J127: 72.94590247 | K127: 96.93180066 | L127: 122.0247173 | M127: 151.6470044 | N127: Opening tax balance of METERS row in PTRM inputs sheet of PTRM
C128: Gross capital expenditure | E128: $m | F128: Nominal | H128: ='[2]PTRM input'!G$279*[2]Assets!G$7 -> 22.917198 | I128: ='[2]PTRM input'!H$279*[2]Assets!H$7 -> 29.92741251 | J128: ='[2]PTRM input'!I$279*[2]Assets!I$7 -> 35.39876464 | K128: ='[2]PTRM input'!J$279*[2]Assets!J$7 -> 39.86197737 | L128: ='[2]PTRM input'!K$279*[2]Assets!K$7 -> 45.89224942 | N128: Gross capex from METERS row in PTRM input sheet of PTRM
C129: Tax depreciation | E129: $m | F129: Nominal | H129: =[2]Assets!G$818 -> 5.60293865 | I129: =[2]Assets!H$818 -> 8.214670362 | J129: =[2]Assets!I$818 -> 11.41286645 | K129: =[2]Assets!J$818 -> 14.76906078 | L129: =[2]Assets!K$818 -> 16.2699623 | N129: Tax Depreciation from METERS row in ASSETS sheet of PTRM
C130: Closing TAB | E130: $m | F130: Nominal | G130: =[2]!A3taxvalue -> 33.91890096 | H130: =+H127+H128-H129 -> 51.23316031 | I130: =+I127+I128-I129 -> 72.94590247 | J130: 96.93180066 | K130: 122.0247173 | L130: 151.6470044 | N130: Closing tax balance of METERS row in PTRM inputs sheet of PTRM
B132: Linked Input - TAB Comms, IT, Inhouse software & Equity Raising Costs
E133: Units | F133: Basis | G133: =LEFT(H133,4)-1&"-"&RIGHT(H133,2)-1 -> 2025-26 | H133: =FPFirstYear -> 2026-27 | I133: =LEFT(H133,4)+1&"-"&RIGHT(H133,2)+1 -> 2027-28 | J133: =LEFT(I133,4)+1&"-"&RIGHT(I133,2)+1 -> 2028-29 | K133: =LEFT(J133,4)+1&"-"&RIGHT(J133,2)+1 -> 2029-30 | L133: =LEFT(K133,4)+1&"-"&RIGHT(K133,2)+1 -> 2030-31 | M133: =LEFT(L133,4)+1&"-"&RIGHT(L133,2)+1 -> 2031-32
C134: Opening RAB | E134: $m | F134: Nominal | H134: =+G137 -> 2.898613121 | I134: =+H137 -> 12.30321078 | J134: 14.68407807 | K134: 14.35078324 | L134: 16.05436438 | M134: 15.23162426 | N134: Opening tax balance of COMMS & IT & Inhouse Software & Equity Raising Costs rows from PTRM INPUTS sheet of PTRM
C135: Gross capital expenditure less disposals | E135: $m | F135: Nominal | H135: ='[2]PTRM input'!G$327*[2]Assets!G$7-H128 -> 11.15836531 | I135: ='[2]PTRM input'!H$327*[2]Assets!H$7-I128 -> 8.500081536 | J135: ='[2]PTRM input'!I$327*[2]Assets!I$7-J128 -> 7.630918806 | K135: ='[2]PTRM input'!J$327*[2]Assets!J$7-K128 -> 10.16066659 | L135: ='[2]PTRM input'!K$327*[2]Assets!K$7-L128 -> 8.360808832 | N135: Gross capex from COMMS & IT & Inhouse Software & Equity Raising Costs rows in PTRM input sheet of PTRM
C136: Tax depreciation | E136: $m | F136: Nominal | H136: =+-[2]Assets!G$1446-H129 -> 1.753767649 | I136: =+-[2]Assets!H$1446-I129 -> 6.119214248 | J136: =+-[2]Assets!I$1446-J129 -> 7.964213632 | K136: =+-[2]Assets!J$1446-K129 -> 8.457085444 | L136: =+-[2]Assets!K$1446-L129 -> 9.183548955 | N136: Tax Depreciation from COMMS & IT & Inhouse Software & Equity Raising Costs rows in ASSETS sheet of PTRM
C137: Closing TAB | E137: $m | F137: Nominal | G137: ='[2]PTRM input'!$N$57-G130 -> 2.898613121 | H137: =+H134+H135-H136 -> 12.30321078 | I137: =+I134+I135-I136 -> 14.68407807 | J137: =+J134+J135-J136 -> 14.35078324 | K137: =+K134+K135-K136 -> 16.05436438 | L137: =+L134+L135-L136 -> 15.23162426 | N137: Closing tax balance of COMMS & IT & Inhouse Software & Equity Raising Costs rows from PTRM INPUTS sheet of PTRM
E139: Units | F139: Basis | G139: =LEFT(H139,4)-1&"-"&RIGHT(H139,2)-1 -> 2025-26 | H139: =FPFirstYear -> 2026-27 | I139: =LEFT(H139,4)+1&"-"&RIGHT(H139,2)+1 -> 2027-28 | J139: =LEFT(I139,4)+1&"-"&RIGHT(I139,2)+1 -> 2028-29 | K139: =LEFT(J139,4)+1&"-"&RIGHT(J139,2)+1 -> 2029-30 | L139: =LEFT(K139,4)+1&"-"&RIGHT(K139,2)+1 -> 2030-31 | M139: =LEFT(L139,4)+1&"-"&RIGHT(L139,2)+1 -> 2031-32
B140: TOTAL Opening TAB | E140: $m | F140: Nominal | G140: =G127+G134 -> 0 | H140: 36.81751408 | I140: 63.53637109 | J140: 87.62998053 | K140: 111.2825839 | L140: 138.0790816 | M140: 166.8786286
B141: TOTAL Closing TAB | E141: $m | F141: Nominal | G141: =G130+G137 -> 36.81751408 | H141: =H130+H137 -> 63.53637109 | I141: 87.62998053 | J141: 111.2825839 | K141: 138.0790816 | L141: 166.8786286

Sheet Calc | Exit Fees
B1: ='Title Page'!B8&" v"&'Title Page'!$C$10 -> JEN 2027-31 - ACS Standardised Metering Pricing Model v1.02 | M1: DNSP: | N1: =IF('Inputs | General'!$G$16="Price Cap","NOT USED",NSP) -> JEN - ACS
B2: =MID(CELL("filename",A1),FIND("]",CELL("filename",A1))+1,255) -> Calc | Exit Fees | H2: Key: | I2: Input | J2: External Link | K2: Internal Link | L2: Jemena modification | M2: JEN - RP
B5: CALCULATION | Meters
B7: Calculation of Allocated Meters RAB by Designated Exit Fee
E10: Average number of meters (Year, Year-1) | K10: Average number of meters (Year, Year-1)
F11: ='Input | Exit Fees'!H69 -> Meter Type | G11: ='Input | Exit Fees'!I69 -> Units | H11: Designated Exit Fee | K11: =FPFirstYear -> 2026-27 | L11: =LEFT(K11,4)+1&"-"&RIGHT(K11,2)+1 -> 2027-28 | M11: =LEFT(L11,4)+1&"-"&RIGHT(L11,2)+1 -> 2028-29 | N11: =LEFT(M11,4)+1&"-"&RIGHT(M11,2)+1 -> 2029-30 | O11: =LEFT(N11,4)+1&"-"&RIGHT(N11,2)+1 -> 2030-31
F12: ='Input | Exit Fees'!H70 -> Single Phase (inc. DC) | G12: No. | H12: ='Input | Exit Fees'!D50 -> Single Phase (inc. DC) | K12: =IFERROR(AVERAGE('Input | Exit Fees'!J70:K70),0) -> 309987.6302 | L12: =IFERROR(AVERAGE('Input | Exit Fees'!K70:L70),0) -> 309052.5307 | M12: =IFERROR(AVERAGE('Input | Exit Fees'!L70:M70),0) -> 307689.4673 | N12: =IFERROR(AVERAGE('Input | Exit Fees'!M70:N70),0) -> 306309.8547 | O12: =IFERROR(AVERAGE('Input | Exit Fees'!N70:O70),0) -> 304913.6903
F13: ='Input | Exit Fees'!H71 -> Single Phase, Two Element | G13: No. | H13: ='Input | Exit Fees'!D51 -> Single Phase, Two Element | K13: =IFERROR(AVERAGE('Input | Exit Fees'!J71:K71),0) -> 20612.44545 | L13: =IFERROR(AVERAGE('Input | Exit Fees'!K71:L71),0) -> 20344.25089 | M13: =IFERROR(AVERAGE('Input | Exit Fees'!L71:M71),0) -> 20072.76071 | N13: =IFERROR(AVERAGE('Input | Exit Fees'!M71:N71),0) -> 19797.97435 | O13: =IFERROR(AVERAGE('Input | Exit Fees'!N71:O71),0) -> 19519.89121
F14: ='Input | Exit Fees'!H72 -> Three Phase (inc. DC) | G14: No. | H14: ='Input | Exit Fees'!D52 -> Three Phase (inc. DC) | K14: =IFERROR(AVERAGE('Input | Exit Fees'!J72:K72),0) -> 68349.31388 | L14: =IFERROR(AVERAGE('Input | Exit Fees'!K72:L72),0) -> 77301.69011 | M14: =IFERROR(AVERAGE('Input | Exit Fees'!L72:M72),0) -> 86764.21563 | N14: =IFERROR(AVERAGE('Input | Exit Fees'!M72:N72),0) -> 96341.62658 | O14: =IFERROR(AVERAGE('Input | Exit Fees'!N72:O72),0) -> 106033.943
F15: ='Input | Exit Fees'!H73 -> Three Phase CT | G15: No. | H15: ='Input | Exit Fees'!D53 -> Three Phase CT | K15: =IFERROR(AVERAGE('Input | Exit Fees'!J73:K73),0) -> 2730.89072 | L15: =IFERROR(AVERAGE('Input | Exit Fees'!K73:L73),0) -> 2927.624327 | M15: =IFERROR(AVERAGE('Input | Exit Fees'!L73:M73),0) -> 3130.982231 | N15: =IFERROR(AVERAGE('Input | Exit Fees'!M73:N73),0) -> 3336.809122 | O15: =IFERROR(AVERAGE('Input | Exit Fees'!N73:O73),0) -> 3545.105433
F16: ='Input | Exit Fees'!H74 -> 0 | G16: No. | H16: ='Input | Exit Fees'!D54 -> 0 | K16: =IFERROR(AVERAGE('Input | Exit Fees'!J74:K74),0) -> 0 | L16: =IFERROR(AVERAGE('Input | Exit Fees'!K74:L74),0) -> 0 | M16: =IFERROR(AVERAGE('Input | Exit Fees'!L74:M74),0) -> 0 | N16: =IFERROR(AVERAGE('Input | Exit Fees'!M74:N74),0) -> 0 | O16: =IFERROR(AVERAGE('Input | Exit Fees'!N74:O74),0) -> 0
F17: ='Input | Exit Fees'!H75 -> 0 | G17: No. | H17: ='Input | Exit Fees'!D55 -> 0 | K17: =IFERROR(AVERAGE('Input | Exit Fees'!J75:K75),0) -> 0 | L17: =IFERROR(AVERAGE('Input | Exit Fees'!K75:L75),0) -> 0 | M17: =IFERROR(AVERAGE('Input | Exit Fees'!L75:M75),0) -> 0 | N17: =IFERROR(AVERAGE('Input | Exit Fees'!M75:N75),0) -> 0 | O17: =IFERROR(AVERAGE('Input | Exit Fees'!N75:O75),0) -> 0
F18: ='Input | Exit Fees'!H76 -> 0 | G18: No. | H18: ='Input | Exit Fees'!D56 -> 0 | K18: =IFERROR(AVERAGE('Input | Exit Fees'!J76:K76),0) -> 0 | L18: =IFERROR(AVERAGE('Input | Exit Fees'!K76:L76),0) -> 0 | M18: =IFERROR(AVERAGE('Input | Exit Fees'!L76:M76),0) -> 0 | N18: =IFERROR(AVERAGE('Input | Exit Fees'!M76:N76),0) -> 0 | O18: =IFERROR(AVERAGE('Input | Exit Fees'!N76:O76),0) -> 0
F19: ='Input | Exit Fees'!H77 -> 0 | G19: No. | H19: ='Input | Exit Fees'!D57 -> 0 | K19: =IFERROR(AVERAGE('Input | Exit Fees'!J77:K77),0) -> 0 | L19: =IFERROR(AVERAGE('Input | Exit Fees'!K77:L77),0) -> 0 | M19: =IFERROR(AVERAGE('Input | Exit Fees'!L77:M77),0) -> 0 | N19: =IFERROR(AVERAGE('Input | Exit Fees'!M77:N77),0) -> 0 | O19: =IFERROR(AVERAGE('Input | Exit Fees'!N77:O77),0) -> 0
F20: ='Input | Exit Fees'!H78 -> 0 | G20: No. | H20: ='Input | Exit Fees'!D58 -> 0 | K20: =IFERROR(AVERAGE('Input | Exit Fees'!J78:K78),0) -> 0 | L20: =IFERROR(AVERAGE('Input | Exit Fees'!K78:L78),0) -> 0 | M20: =IFERROR(AVERAGE('Input | Exit Fees'!L78:M78),0) -> 0 | N20: =IFERROR(AVERAGE('Input | Exit Fees'!M78:N78),0) -> 0 | O20: =IFERROR(AVERAGE('Input | Exit Fees'!N78:O78),0) -> 0
F21: ='Input | Exit Fees'!H79 -> 0 | G21: No. | H21: ='Input | Exit Fees'!D59 -> 0 | K21: =IFERROR(AVERAGE('Input | Exit Fees'!J79:K79),0) -> 0 | L21: =IFERROR(AVERAGE('Input | Exit Fees'!K79:L79),0) -> 0 | M21: =IFERROR(AVERAGE('Input | Exit Fees'!L79:M79),0) -> 0 | N21: =IFERROR(AVERAGE('Input | Exit Fees'!M79:N79),0) -> 0 | O21: =IFERROR(AVERAGE('Input | Exit Fees'!N79:O79),0) -> 0
F22: ='Input | Exit Fees'!H80 -> 0 | G22: No. | H22: ='Input | Exit Fees'!D60 -> 0 | K22: =IFERROR(AVERAGE('Input | Exit Fees'!J80:K80),0) -> 0 | L22: =IFERROR(AVERAGE('Input | Exit Fees'!K80:L80),0) -> 0 | M22: =IFERROR(AVERAGE('Input | Exit Fees'!L80:M80),0) -> 0 | N22: =IFERROR(AVERAGE('Input | Exit Fees'!M80:N80),0) -> 0 | O22: =IFERROR(AVERAGE('Input | Exit Fees'!N80:O80),0) -> 0
F23: ='Input | Exit Fees'!H81 -> 0 | G23: No. | H23: ='Input | Exit Fees'!D61 -> 0 | K23: =IFERROR(AVERAGE('Input | Exit Fees'!J81:K81),0) -> 0 | L23: =IFERROR(AVERAGE('Input | Exit Fees'!K81:L81),0) -> 0 | M23: =IFERROR(AVERAGE('Input | Exit Fees'!L81:M81),0) -> 0 | N23: =IFERROR(AVERAGE('Input | Exit Fees'!M81:N81),0) -> 0 | O23: =IFERROR(AVERAGE('Input | Exit Fees'!N81:O81),0) -> 0
F24: ='Input | Exit Fees'!H82 -> 0 | G24: No. | H24: ='Input | Exit Fees'!D62 -> 0 | K24: =IFERROR(AVERAGE('Input | Exit Fees'!J82:K82),0) -> 0 | L24: =IFERROR(AVERAGE('Input | Exit Fees'!K82:L82),0) -> 0 | M24: =IFERROR(AVERAGE('Input | Exit Fees'!L82:M82),0) -> 0 | N24: =IFERROR(AVERAGE('Input | Exit Fees'!M82:N82),0) -> 0 | O24: =IFERROR(AVERAGE('Input | Exit Fees'!N82:O82),0) -> 0
F25: ='Input | Exit Fees'!H83 -> 0 | G25: No. | H25: ='Input | Exit Fees'!D63 -> 0 | K25: =IFERROR(AVERAGE('Input | Exit Fees'!J83:K83),0) -> 0 | L25: =IFERROR(AVERAGE('Input | Exit Fees'!K83:L83),0) -> 0 | M25: =IFERROR(AVERAGE('Input | Exit Fees'!L83:M83),0) -> 0 | N25: =IFERROR(AVERAGE('Input | Exit Fees'!M83:N83),0) -> 0 | O25: =IFERROR(AVERAGE('Input | Exit Fees'!N83:O83),0) -> 0
F26: ='Input | Exit Fees'!H84 -> 0 | G26: No. | H26: ='Input | Exit Fees'!D64 -> 0 | K26: =IFERROR(AVERAGE('Input | Exit Fees'!J84:K84),0) -> 0 | L26: =IFERROR(AVERAGE('Input | Exit Fees'!K84:L84),0) -> 0 | M26: =IFERROR(AVERAGE('Input | Exit Fees'!L84:M84),0) -> 0 | N26: =IFERROR(AVERAGE('Input | Exit Fees'!M84:N84),0) -> 0 | O26: =IFERROR(AVERAGE('Input | Exit Fees'!N84:O84),0) -> 0
F27: ='Input | Exit Fees'!H85 -> Total | G27: No. | K27: =SUM(K12:K26) -> 401680.2802 | L27: =SUM(L12:L26) -> 409626.096 | M27: =SUM(M12:M26) -> 417657.4258 | N27: =SUM(N12:N26) -> 425786.2648 | O27: =SUM(O12:O26) -> 434012.63
E29: Volume of meters | J29: End Year Vol | K29: Regulatory period
F30: Exit Fee | G30: Units | J30: =LEFT(K30,4)-1&"-"&RIGHT(K30,2)-1 -> 2025-26 | K30: =FPFirstYear -> 2026-27 | L30: =LEFT(K30,4)+1&"-"&RIGHT(K30,2)+1 -> 2027-28 | M30: =LEFT(L30,4)+1&"-"&RIGHT(L30,2)+1 -> 2028-29 | N30: =LEFT(M30,4)+1&"-"&RIGHT(M30,2)+1 -> 2029-30 | O30: =LEFT(N30,4)+1&"-"&RIGHT(N30,2)+1 -> 2030-31
F31: ='Input | Exit Fees'!$D30 -> Single Phase (inc. DC) | G31: No. | J31: =IF($F31=0,0,SUMPRODUCT('Input | Exit Fees'!$J$70:$J$84,($H$12:$H$26=$F31)/1)) -> 310245.3349 | K31: =IF($F31=0,0,SUMPRODUCT(K$12:K$26,($H$12:$H$26=$F31)/1)) -> 309987.6302 | L31: =IF($F31=0,0,SUMPRODUCT(L$12:L$26,($H$12:$H$26=$F31)/1)) -> 309052.5307 | M31: =IF($F31=0,0,SUMPRODUCT(M$12:M$26,($H$12:$H$26=$F31)/1)) -> 307689.4673 | N31: =IF($F31=0,0,SUMPRODUCT(N$12:N$26,($H$12:$H$26=$F31)/1)) -> 306309.8547 | O31: =IF($F31=0,0,SUMPRODUCT(O$12:O$26,($H$12:$H$26=$F31)/1)) -> 304913.6903
F32: ='Input | Exit Fees'!$D31 -> Single Phase, Two Element | G32: No. | J32: =IF($F32=0,0,SUMPRODUCT('Input | Exit Fees'!$J$70:$J$84,($H$12:$H$26=$F32)/1)) -> 20745.71889 | K32: =IF($F32=0,0,SUMPRODUCT(K$12:K$26,($H$12:$H$26=$F32)/1)) -> 20612.44545 | L32: =IF($F32=0,0,SUMPRODUCT(L$12:L$26,($H$12:$H$26=$F32)/1)) -> 20344.25089 | M32: =IF($F32=0,0,SUMPRODUCT(M$12:M$26,($H$12:$H$26=$F32)/1)) -> 20072.76071 | N32: =IF($F32=0,0,SUMPRODUCT(N$12:N$26,($H$12:$H$26=$F32)/1)) -> 19797.97435 | O32: =IF($F32=0,0,SUMPRODUCT(O$12:O$26,($H$12:$H$26=$F32)/1)) -> 19519.89121
F33: ='Input | Exit Fees'!$D32 -> Three Phase (inc. DC) | G33: No. | J33: =IF($F33=0,0,SUMPRODUCT('Input | Exit Fees'!$J$70:$J$84,($H$12:$H$26=$F33)/1)) -> 64099.48148 | K33: =IF($F33=0,0,SUMPRODUCT(K$12:K$26,($H$12:$H$26=$F33)/1)) -> 68349.31388 | L33: =IF($F33=0,0,SUMPRODUCT(L$12:L$26,($H$12:$H$26=$F33)/1)) -> 77301.69011 | M33: =IF($F33=0,0,SUMPRODUCT(M$12:M$26,($H$12:$H$26=$F33)/1)) -> 86764.21563 | N33: =IF($F33=0,0,SUMPRODUCT(N$12:N$26,($H$12:$H$26=$F33)/1)) -> 96341.62658 | O33: =IF($F33=0,0,SUMPRODUCT(O$12:O$26,($H$12:$H$26=$F33)/1)) -> 106033.943
F34: ='Input | Exit Fees'!$D33 -> Three Phase CT | G34: No. | J34: =IF($F34=0,0,SUMPRODUCT('Input | Exit Fees'!$J$70:$J$84,($H$12:$H$26=$F34)/1)) -> 2635.21887 | K34: =IF($F34=0,0,SUMPRODUCT(K$12:K$26,($H$12:$H$26=$F34)/1)) -> 2730.89072 | L34: =IF($F34=0,0,SUMPRODUCT(L$12:L$26,($H$12:$H$26=$F34)/1)) -> 2927.624327 | M34: =IF($F34=0,0,SUMPRODUCT(M$12:M$26,($H$12:$H$26=$F34)/1)) -> 3130.982231 | N34: =IF($F34=0,0,SUMPRODUCT(N$12:N$26,($H$12:$H$26=$F34)/1)) -> 3336.809122 | O34: =IF($F34=0,0,SUMPRODUCT(O$12:O$26,($H$12:$H$26=$F34)/1)) -> 3545.105433
F35: ='Input | Exit Fees'!$D34 -> 0 | G35: No. | J35: =IF($F35=0,0,SUMPRODUCT('Input | Exit Fees'!$J$70:$J$84,($H$12:$H$26=$F35)/1)) -> 0 | K35: =IF($F35=0,0,SUMPRODUCT(K$12:K$26,($H$12:$H$26=$F35)/1)) -> 0 | L35: =IF($F35=0,0,SUMPRODUCT(L$12:L$26,($H$12:$H$26=$F35)/1)) -> 0 | M35: =IF($F35=0,0,SUMPRODUCT(M$12:M$26,($H$12:$H$26=$F35)/1)) -> 0 | N35: =IF($F35=0,0,SUMPRODUCT(N$12:N$26,($H$12:$H$26=$F35)/1)) -> 0 | O35: =IF($F35=0,0,SUMPRODUCT(O$12:O$26,($H$12:$H$26=$F35)/1)) -> 0
F36: ='Input | Exit Fees'!$D35 -> 0 | G36: No. | J36: =IF($F36=0,0,SUMPRODUCT('Input | Exit Fees'!$J$70:$J$84,($H$12:$H$26=$F36)/1)) -> 0 | K36: =IF($F36=0,0,SUMPRODUCT(K$12:K$26,($H$12:$H$26=$F36)/1)) -> 0 | L36: =IF($F36=0,0,SUMPRODUCT(L$12:L$26,($H$12:$H$26=$F36)/1)) -> 0 | M36: =IF($F36=0,0,SUMPRODUCT(M$12:M$26,($H$12:$H$26=$F36)/1)) -> 0 | N36: =IF($F36=0,0,SUMPRODUCT(N$12:N$26,($H$12:$H$26=$F36)/1)) -> 0 | O36: =IF($F36=0,0,SUMPRODUCT(O$12:O$26,($H$12:$H$26=$F36)/1)) -> 0
F37: ='Input | Exit Fees'!$D36 -> 0 | G37: No. | J37: =IF($F37=0,0,SUMPRODUCT('Input | Exit Fees'!$J$70:$J$84,($H$12:$H$26=$F37)/1)) -> 0 | K37: =IF($F37=0,0,SUMPRODUCT(K$12:K$26,($H$12:$H$26=$F37)/1)) -> 0 | L37: =IF($F37=0,0,SUMPRODUCT(L$12:L$26,($H$12:$H$26=$F37)/1)) -> 0 | M37: =IF($F37=0,0,SUMPRODUCT(M$12:M$26,($H$12:$H$26=$F37)/1)) -> 0 | N37: =IF($F37=0,0,SUMPRODUCT(N$12:N$26,($H$12:$H$26=$F37)/1)) -> 0 | O37: =IF($F37=0,0,SUMPRODUCT(O$12:O$26,($H$12:$H$26=$F37)/1)) -> 0
F38: ='Input | Exit Fees'!$D37 -> 0 | G38: No. | J38: =IF($F38=0,0,SUMPRODUCT('Input | Exit Fees'!$J$70:$J$84,($H$12:$H$26=$F38)/1)) -> 0 | K38: =IF($F38=0,0,SUMPRODUCT(K$12:K$26,($H$12:$H$26=$F38)/1)) -> 0 | L38: =IF($F38=0,0,SUMPRODUCT(L$12:L$26,($H$12:$H$26=$F38)/1)) -> 0 | M38: =IF($F38=0,0,SUMPRODUCT(M$12:M$26,($H$12:$H$26=$F38)/1)) -> 0 | N38: =IF($F38=0,0,SUMPRODUCT(N$12:N$26,($H$12:$H$26=$F38)/1)) -> 0 | O38: =IF($F38=0,0,SUMPRODUCT(O$12:O$26,($H$12:$H$26=$F38)/1)) -> 0
F39: ='Input | Exit Fees'!$D38 -> 0 | G39: No. | J39: =IF($F39=0,0,SUMPRODUCT('Input | Exit Fees'!$J$70:$J$84,($H$12:$H$26=$F39)/1)) -> 0 | K39: =IF($F39=0,0,SUMPRODUCT(K$12:K$26,($H$12:$H$26=$F39)/1)) -> 0 | L39: =IF($F39=0,0,SUMPRODUCT(L$12:L$26,($H$12:$H$26=$F39)/1)) -> 0 | M39: =IF($F39=0,0,SUMPRODUCT(M$12:M$26,($H$12:$H$26=$F39)/1)) -> 0 | N39: =IF($F39=0,0,SUMPRODUCT(N$12:N$26,($H$12:$H$26=$F39)/1)) -> 0 | O39: =IF($F39=0,0,SUMPRODUCT(O$12:O$26,($H$12:$H$26=$F39)/1)) -> 0
F40: ='Input | Exit Fees'!$D39 -> 0 | G40: No. | J40: =IF($F40=0,0,SUMPRODUCT('Input | Exit Fees'!$J$70:$J$84,($H$12:$H$26=$F40)/1)) -> 0 | K40: =IF($F40=0,0,SUMPRODUCT(K$12:K$26,($H$12:$H$26=$F40)/1)) -> 0 | L40: =IF($F40=0,0,SUMPRODUCT(L$12:L$26,($H$12:$H$26=$F40)/1)) -> 0 | M40: =IF($F40=0,0,SUMPRODUCT(M$12:M$26,($H$12:$H$26=$F40)/1)) -> 0 | N40: =IF($F40=0,0,SUMPRODUCT(N$12:N$26,($H$12:$H$26=$F40)/1)) -> 0 | O40: =IF($F40=0,0,SUMPRODUCT(O$12:O$26,($H$12:$H$26=$F40)/1)) -> 0
F41: Total | G41: No. | J41: =SUM(J31:J40) -> 397725.7541 | K41: 401680.2802 | L41: 409626.096 | M41: 417657.4258 | N41: 425786.2648 | O41: 434012.63
E44: Cost-Weighted Volume of Meters | K44: Regulatory period
F45: Exit Fee | G45: Units | H45: Basis | K45: =FPFirstYear -> 2026-27 | L45: =LEFT(K45,4)+1&"-"&RIGHT(K45,2)+1 -> 2027-28 | M45: =LEFT(L45,4)+1&"-"&RIGHT(L45,2)+1 -> 2028-29 | N45: =LEFT(M45,4)+1&"-"&RIGHT(M45,2)+1 -> 2029-30 | O45: =LEFT(N45,4)+1&"-"&RIGHT(N45,2)+1 -> 2030-31
F46: ='Input | Exit Fees'!$D30 -> Single Phase (inc. DC) | G46: $dollars | H46: Nominal | K46: =SUMPRODUCT('Input | Exit Fees'!$K$50:$K$64,K$12:K$26,($H$12:$H$26=$F46)/1)*'Inputs | General'!J$29+SUMPRODUCT('Input | Exit Fees'!$L$50:$L$64,K$12:K$26,($H$12:$H$26=$F46)/1)*'Inputs | General'!J$29*'Inputs | General'!J$36 -> 148969991.1 | L46: =SUMPRODUCT('Input | Exit Fees'!$K$50:$K$64,L$12:L$26,($H$12:$H$26=$F46)/1)*'Inputs | General'!K$29+SUMPRODUCT('Input | Exit Fees'!$L$50:$L$64,L$12:L$26,($H$12:$H$26=$F46)/1)*'Inputs | General'!K$29*'Inputs | General'!K$36 -> 153191305.9 | M46: =SUMPRODUCT('Input | Exit Fees'!$K$50:$K$64,M$12:M$26,($H$12:$H$26=$F46)/1)*'Inputs | General'!L$29+SUMPRODUCT('Input | Exit Fees'!$L$50:$L$64,M$12:M$26,($H$12:$H$26=$F46)/1)*'Inputs | General'!L$29*'Inputs | General'!L$36 -> 157443869.6 | N46: =SUMPRODUCT('Input | Exit Fees'!$K$50:$K$64,N$12:N$26,($H$12:$H$26=$F46)/1)*'Inputs | General'!M$29+SUMPRODUCT('Input | Exit Fees'!$L$50:$L$64,N$12:N$26,($H$12:$H$26=$F46)/1)*'Inputs | General'!M$29*'Inputs | General'!M$36 -> 161894052.4 | O46: =SUMPRODUCT('Input | Exit Fees'!$K$50:$K$64,O$12:O$26,($H$12:$H$26=$F46)/1)*'Inputs | General'!N$29+SUMPRODUCT('Input | Exit Fees'!$L$50:$L$64,O$12:O$26,($H$12:$H$26=$F46)/1)*'Inputs | General'!N$29*'Inputs | General'!N$36 -> 166443087.1
F47: ='Input | Exit Fees'!$D31 -> Single Phase, Two Element | G47: $dollars | H47: Nominal | K47: =SUMPRODUCT('Input | Exit Fees'!$K$50:$K$64,K$12:K$26,($H$12:$H$26=$F47)/1)*'Inputs | General'!J$29+SUMPRODUCT('Input | Exit Fees'!$L$50:$L$64,K$12:K$26,($H$12:$H$26=$F47)/1)*'Inputs | General'!J$29*'Inputs | General'!J$36 -> 10735116.42 | L47: =SUMPRODUCT('Input | Exit Fees'!$K$50:$K$64,L$12:L$26,($H$12:$H$26=$F47)/1)*'Inputs | General'!K$29+SUMPRODUCT('Input | Exit Fees'!$L$50:$L$64,L$12:L$26,($H$12:$H$26=$F47)/1)*'Inputs | General'!K$29*'Inputs | General'!K$36 -> 10924674.36 | M47: =SUMPRODUCT('Input | Exit Fees'!$K$50:$K$64,M$12:M$26,($H$12:$H$26=$F47)/1)*'Inputs | General'!L$29+SUMPRODUCT('Input | Exit Fees'!$L$50:$L$64,M$12:M$26,($H$12:$H$26=$F47)/1)*'Inputs | General'!L$29*'Inputs | General'!L$36 -> 11122443.51 | N47: =SUMPRODUCT('Input | Exit Fees'!$K$50:$K$64,N$12:N$26,($H$12:$H$26=$F47)/1)*'Inputs | General'!M$29+SUMPRODUCT('Input | Exit Fees'!$L$50:$L$64,N$12:N$26,($H$12:$H$26=$F47)/1)*'Inputs | General'!M$29*'Inputs | General'!M$36 -> 11325774.47 | O47: =SUMPRODUCT('Input | Exit Fees'!$K$50:$K$64,O$12:O$26,($H$12:$H$26=$F47)/1)*'Inputs | General'!N$29+SUMPRODUCT('Input | Exit Fees'!$L$50:$L$64,O$12:O$26,($H$12:$H$26=$F47)/1)*'Inputs | General'!N$29*'Inputs | General'!N$36 -> 11527754.52
F48: ='Input | Exit Fees'!$D32 -> Three Phase (inc. DC) | G48: $dollars | H48: Nominal | K48: =SUMPRODUCT('Input | Exit Fees'!$K$50:$K$64,K$12:K$26,($H$12:$H$26=$F48)/1)*'Inputs | General'!J$29+SUMPRODUCT('Input | Exit Fees'!$L$50:$L$64,K$12:K$26,($H$12:$H$26=$F48)/1)*'Inputs | General'!J$29*'Inputs | General'!J$36 -> 46065151.82 | L48: =SUMPRODUCT('Input | Exit Fees'!$K$50:$K$64,L$12:L$26,($H$12:$H$26=$F48)/1)*'Inputs | General'!K$29+SUMPRODUCT('Input | Exit Fees'!$L$50:$L$64,L$12:L$26,($H$12:$H$26=$F48)/1)*'Inputs | General'!K$29*'Inputs | General'!K$36 -> 53677607.91 | M48: =SUMPRODUCT('Input | Exit Fees'!$K$50:$K$64,M$12:M$26,($H$12:$H$26=$F48)/1)*'Inputs | General'!L$29+SUMPRODUCT('Input | Exit Fees'!$L$50:$L$64,M$12:M$26,($H$12:$H$26=$F48)/1)*'Inputs | General'!L$29*'Inputs | General'!L$36 -> 62114238.41 | N48: =SUMPRODUCT('Input | Exit Fees'!$K$50:$K$64,N$12:N$26,($H$12:$H$26=$F48)/1)*'Inputs | General'!M$29+SUMPRODUCT('Input | Exit Fees'!$L$50:$L$64,N$12:N$26,($H$12:$H$26=$F48)/1)*'Inputs | General'!M$29*'Inputs | General'!M$36 -> 71137990.28 | O48: =SUMPRODUCT('Input | Exit Fees'!$K$50:$K$64,O$12:O$26,($H$12:$H$26=$F48)/1)*'Inputs | General'!N$29+SUMPRODUCT('Input | Exit Fees'!$L$50:$L$64,O$12:O$26,($H$12:$H$26=$F48)/1)*'Inputs | General'!N$29*'Inputs | General'!N$36 -> 80750165.03
F49: ='Input | Exit Fees'!$D33 -> Three Phase CT | G49: $dollars | H49: Nominal | K49: =SUMPRODUCT('Input | Exit Fees'!$K$50:$K$64,K$12:K$26,($H$12:$H$26=$F49)/1)*'Inputs | General'!J$29+SUMPRODUCT('Input | Exit Fees'!$L$50:$L$64,K$12:K$26,($H$12:$H$26=$F49)/1)*'Inputs | General'!J$29*'Inputs | General'!J$36 -> 2721108.768 | L49: =SUMPRODUCT('Input | Exit Fees'!$K$50:$K$64,L$12:L$26,($H$12:$H$26=$F49)/1)*'Inputs | General'!K$29+SUMPRODUCT('Input | Exit Fees'!$L$50:$L$64,L$12:L$26,($H$12:$H$26=$F49)/1)*'Inputs | General'!K$29*'Inputs | General'!K$36 -> 3007692.697 | M49: =SUMPRODUCT('Input | Exit Fees'!$K$50:$K$64,M$12:M$26,($H$12:$H$26=$F49)/1)*'Inputs | General'!L$29+SUMPRODUCT('Input | Exit Fees'!$L$50:$L$64,M$12:M$26,($H$12:$H$26=$F49)/1)*'Inputs | General'!L$29*'Inputs | General'!L$36 -> 3319019.067 | N49: =SUMPRODUCT('Input | Exit Fees'!$K$50:$K$64,N$12:N$26,($H$12:$H$26=$F49)/1)*'Inputs | General'!M$29+SUMPRODUCT('Input | Exit Fees'!$L$50:$L$64,N$12:N$26,($H$12:$H$26=$F49)/1)*'Inputs | General'!M$29*'Inputs | General'!M$36 -> 3651722.882 | O49: =SUMPRODUCT('Input | Exit Fees'!$K$50:$K$64,O$12:O$26,($H$12:$H$26=$F49)/1)*'Inputs | General'!N$29+SUMPRODUCT('Input | Exit Fees'!$L$50:$L$64,O$12:O$26,($H$12:$H$26=$F49)/1)*'Inputs | General'!N$29*'Inputs | General'!N$36 -> 4004970.817
F50: ='Input | Exit Fees'!$D34 -> 0 | G50: $dollars | H50: Nominal | K50: =SUMPRODUCT('Input | Exit Fees'!$K$50:$K$64,K$12:K$26,($H$12:$H$26=$F50)/1)*'Inputs | General'!J$29+SUMPRODUCT('Input | Exit Fees'!$L$50:$L$64,K$12:K$26,($H$12:$H$26=$F50)/1)*'Inputs | General'!J$29*'Inputs | General'!J$36 -> 0 | L50: =SUMPRODUCT('Input | Exit Fees'!$K$50:$K$64,L$12:L$26,($H$12:$H$26=$F50)/1)*'Inputs | General'!K$29+SUMPRODUCT('Input | Exit Fees'!$L$50:$L$64,L$12:L$26,($H$12:$H$26=$F50)/1)*'Inputs | General'!K$29*'Inputs | General'!K$36 -> 0 | M50: =SUMPRODUCT('Input | Exit Fees'!$K$50:$K$64,M$12:M$26,($H$12:$H$26=$F50)/1)*'Inputs | General'!L$29+SUMPRODUCT('Input | Exit Fees'!$L$50:$L$64,M$12:M$26,($H$12:$H$26=$F50)/1)*'Inputs | General'!L$29*'Inputs | General'!L$36 -> 0 | N50: =SUMPRODUCT('Input | Exit Fees'!$K$50:$K$64,N$12:N$26,($H$12:$H$26=$F50)/1)*'Inputs | General'!M$29+SUMPRODUCT('Input | Exit Fees'!$L$50:$L$64,N$12:N$26,($H$12:$H$26=$F50)/1)*'Inputs | General'!M$29*'Inputs | General'!M$36 -> 0 | O50: =SUMPRODUCT('Input | Exit Fees'!$K$50:$K$64,O$12:O$26,($H$12:$H$26=$F50)/1)*'Inputs | General'!N$29+SUMPRODUCT('Input | Exit Fees'!$L$50:$L$64,O$12:O$26,($H$12:$H$26=$F50)/1)*'Inputs | General'!N$29*'Inputs | General'!N$36 -> 0
F51: ='Input | Exit Fees'!$D35 -> 0 | G51: $dollars | H51: Nominal | K51: =SUMPRODUCT('Input | Exit Fees'!$K$50:$K$64,K$12:K$26,($H$12:$H$26=$F51)/1)*'Inputs | General'!J$29+SUMPRODUCT('Input | Exit Fees'!$L$50:$L$64,K$12:K$26,($H$12:$H$26=$F51)/1)*'Inputs | General'!J$29*'Inputs | General'!J$36 -> 0 | L51: =SUMPRODUCT('Input | Exit Fees'!$K$50:$K$64,L$12:L$26,($H$12:$H$26=$F51)/1)*'Inputs | General'!K$29+SUMPRODUCT('Input | Exit Fees'!$L$50:$L$64,L$12:L$26,($H$12:$H$26=$F51)/1)*'Inputs | General'!K$29*'Inputs | General'!K$36 -> 0 | M51: =SUMPRODUCT('Input | Exit Fees'!$K$50:$K$64,M$12:M$26,($H$12:$H$26=$F51)/1)*'Inputs | General'!L$29+SUMPRODUCT('Input | Exit Fees'!$L$50:$L$64,M$12:M$26,($H$12:$H$26=$F51)/1)*'Inputs | General'!L$29*'Inputs | General'!L$36 -> 0 | N51: =SUMPRODUCT('Input | Exit Fees'!$K$50:$K$64,N$12:N$26,($H$12:$H$26=$F51)/1)*'Inputs | General'!M$29+SUMPRODUCT('Input | Exit Fees'!$L$50:$L$64,N$12:N$26,($H$12:$H$26=$F51)/1)*'Inputs | General'!M$29*'Inputs | General'!M$36 -> 0 | O51: =SUMPRODUCT('Input | Exit Fees'!$K$50:$K$64,O$12:O$26,($H$12:$H$26=$F51)/1)*'Inputs | General'!N$29+SUMPRODUCT('Input | Exit Fees'!$L$50:$L$64,O$12:O$26,($H$12:$H$26=$F51)/1)*'Inputs | General'!N$29*'Inputs | General'!N$36 -> 0
F52: ='Input | Exit Fees'!$D36 -> 0 | G52: $dollars | H52: Nominal | K52: =SUMPRODUCT('Input | Exit Fees'!$K$50:$K$64,K$12:K$26,($H$12:$H$26=$F52)/1)*'Inputs | General'!J$29+SUMPRODUCT('Input | Exit Fees'!$L$50:$L$64,K$12:K$26,($H$12:$H$26=$F52)/1)*'Inputs | General'!J$29*'Inputs | General'!J$36 -> 0 | L52: =SUMPRODUCT('Input | Exit Fees'!$K$50:$K$64,L$12:L$26,($H$12:$H$26=$F52)/1)*'Inputs | General'!K$29+SUMPRODUCT('Input | Exit Fees'!$L$50:$L$64,L$12:L$26,($H$12:$H$26=$F52)/1)*'Inputs | General'!K$29*'Inputs | General'!K$36 -> 0 | M52: =SUMPRODUCT('Input | Exit Fees'!$K$50:$K$64,M$12:M$26,($H$12:$H$26=$F52)/1)*'Inputs | General'!L$29+SUMPRODUCT('Input | Exit Fees'!$L$50:$L$64,M$12:M$26,($H$12:$H$26=$F52)/1)*'Inputs | General'!L$29*'Inputs | General'!L$36 -> 0 | N52: =SUMPRODUCT('Input | Exit Fees'!$K$50:$K$64,N$12:N$26,($H$12:$H$26=$F52)/1)*'Inputs | General'!M$29+SUMPRODUCT('Input | Exit Fees'!$L$50:$L$64,N$12:N$26,($H$12:$H$26=$F52)/1)*'Inputs | General'!M$29*'Inputs | General'!M$36 -> 0 | O52: =SUMPRODUCT('Input | Exit Fees'!$K$50:$K$64,O$12:O$26,($H$12:$H$26=$F52)/1)*'Inputs | General'!N$29+SUMPRODUCT('Input | Exit Fees'!$L$50:$L$64,O$12:O$26,($H$12:$H$26=$F52)/1)*'Inputs | General'!N$29*'Inputs | General'!N$36 -> 0
F53: ='Input | Exit Fees'!$D37 -> 0 | G53: $dollars | H53: Nominal | K53: =SUMPRODUCT('Input | Exit Fees'!$K$50:$K$64,K$12:K$26,($H$12:$H$26=$F53)/1)*'Inputs | General'!J$29+SUMPRODUCT('Input | Exit Fees'!$L$50:$L$64,K$12:K$26,($H$12:$H$26=$F53)/1)*'Inputs | General'!J$29*'Inputs | General'!J$36 -> 0 | L53: =SUMPRODUCT('Input | Exit Fees'!$K$50:$K$64,L$12:L$26,($H$12:$H$26=$F53)/1)*'Inputs | General'!K$29+SUMPRODUCT('Input | Exit Fees'!$L$50:$L$64,L$12:L$26,($H$12:$H$26=$F53)/1)*'Inputs | General'!K$29*'Inputs | General'!K$36 -> 0 | M53: =SUMPRODUCT('Input | Exit Fees'!$K$50:$K$64,M$12:M$26,($H$12:$H$26=$F53)/1)*'Inputs | General'!L$29+SUMPRODUCT('Input | Exit Fees'!$L$50:$L$64,M$12:M$26,($H$12:$H$26=$F53)/1)*'Inputs | General'!L$29*'Inputs | General'!L$36 -> 0 | N53: =SUMPRODUCT('Input | Exit Fees'!$K$50:$K$64,N$12:N$26,($H$12:$H$26=$F53)/1)*'Inputs | General'!M$29+SUMPRODUCT('Input | Exit Fees'!$L$50:$L$64,N$12:N$26,($H$12:$H$26=$F53)/1)*'Inputs | General'!M$29*'Inputs | General'!M$36 -> 0 | O53: =SUMPRODUCT('Input | Exit Fees'!$K$50:$K$64,O$12:O$26,($H$12:$H$26=$F53)/1)*'Inputs | General'!N$29+SUMPRODUCT('Input | Exit Fees'!$L$50:$L$64,O$12:O$26,($H$12:$H$26=$F53)/1)*'Inputs | General'!N$29*'Inputs | General'!N$36 -> 0
F54: ='Input | Exit Fees'!$D38 -> 0 | G54: $dollars | H54: Nominal | K54: =SUMPRODUCT('Input | Exit Fees'!$K$50:$K$64,K$12:K$26,($H$12:$H$26=$F54)/1)*'Inputs | General'!J$29+SUMPRODUCT('Input | Exit Fees'!$L$50:$L$64,K$12:K$26,($H$12:$H$26=$F54)/1)*'Inputs | General'!J$29*'Inputs | General'!J$36 -> 0 | L54: =SUMPRODUCT('Input | Exit Fees'!$K$50:$K$64,L$12:L$26,($H$12:$H$26=$F54)/1)*'Inputs | General'!K$29+SUMPRODUCT('Input | Exit Fees'!$L$50:$L$64,L$12:L$26,($H$12:$H$26=$F54)/1)*'Inputs | General'!K$29*'Inputs | General'!K$36 -> 0 | M54: =SUMPRODUCT('Input | Exit Fees'!$K$50:$K$64,M$12:M$26,($H$12:$H$26=$F54)/1)*'Inputs | General'!L$29+SUMPRODUCT('Input | Exit Fees'!$L$50:$L$64,M$12:M$26,($H$12:$H$26=$F54)/1)*'Inputs | General'!L$29*'Inputs | General'!L$36 -> 0 | N54: =SUMPRODUCT('Input | Exit Fees'!$K$50:$K$64,N$12:N$26,($H$12:$H$26=$F54)/1)*'Inputs | General'!M$29+SUMPRODUCT('Input | Exit Fees'!$L$50:$L$64,N$12:N$26,($H$12:$H$26=$F54)/1)*'Inputs | General'!M$29*'Inputs | General'!M$36 -> 0 | O54: =SUMPRODUCT('Input | Exit Fees'!$K$50:$K$64,O$12:O$26,($H$12:$H$26=$F54)/1)*'Inputs | General'!N$29+SUMPRODUCT('Input | Exit Fees'!$L$50:$L$64,O$12:O$26,($H$12:$H$26=$F54)/1)*'Inputs | General'!N$29*'Inputs | General'!N$36 -> 0
F55: ='Input | Exit Fees'!$D39 -> 0 | G55: $dollars | H55: Nominal | K55: =SUMPRODUCT('Input | Exit Fees'!$K$50:$K$64,K$12:K$26,($H$12:$H$26=$F55)/1)*'Inputs | General'!J$29+SUMPRODUCT('Input | Exit Fees'!$L$50:$L$64,K$12:K$26,($H$12:$H$26=$F55)/1)*'Inputs | General'!J$29*'Inputs | General'!J$36 -> 0 | L55: =SUMPRODUCT('Input | Exit Fees'!$K$50:$K$64,L$12:L$26,($H$12:$H$26=$F55)/1)*'Inputs | General'!K$29+SUMPRODUCT('Input | Exit Fees'!$L$50:$L$64,L$12:L$26,($H$12:$H$26=$F55)/1)*'Inputs | General'!K$29*'Inputs | General'!K$36 -> 0 | M55: =SUMPRODUCT('Input | Exit Fees'!$K$50:$K$64,M$12:M$26,($H$12:$H$26=$F55)/1)*'Inputs | General'!L$29+SUMPRODUCT('Input | Exit Fees'!$L$50:$L$64,M$12:M$26,($H$12:$H$26=$F55)/1)*'Inputs | General'!L$29*'Inputs | General'!L$36 -> 0 | N55: =SUMPRODUCT('Input | Exit Fees'!$K$50:$K$64,N$12:N$26,($H$12:$H$26=$F55)/1)*'Inputs | General'!M$29+SUMPRODUCT('Input | Exit Fees'!$L$50:$L$64,N$12:N$26,($H$12:$H$26=$F55)/1)*'Inputs | General'!M$29*'Inputs | General'!M$36 -> 0 | O55: =SUMPRODUCT('Input | Exit Fees'!$K$50:$K$64,O$12:O$26,($H$12:$H$26=$F55)/1)*'Inputs | General'!N$29+SUMPRODUCT('Input | Exit Fees'!$L$50:$L$64,O$12:O$26,($H$12:$H$26=$F55)/1)*'Inputs | General'!N$29*'Inputs | General'!N$36 -> 0
F56: Total | G56: $dollars | H56: Nominal | K56: =SUM(K46:K55) -> 208491368.1 | L56: =SUM(L46:L55) -> 220801280.8 | M56: =SUM(M46:M55) -> 233999570.6 | N56: =SUM(N46:N55) -> 248009540 | O56: =SUM(O46:O55) -> 262725977.5
E59: Proportionate Volume-Weighted Costs | K59: Regulatory period
F60: Exit Fee | G60: Units | K60: =FPFirstYear -> 2026-27 | L60: =LEFT(K60,4)+1&"-"&RIGHT(K60,2)+1 -> 2027-28 | M60: =LEFT(L60,4)+1&"-"&RIGHT(L60,2)+1 -> 2028-29 | N60: =LEFT(M60,4)+1&"-"&RIGHT(M60,2)+1 -> 2029-30 | O60: =LEFT(N60,4)+1&"-"&RIGHT(N60,2)+1 -> 2030-31
F61: ='Input | Exit Fees'!$D30 -> Single Phase (inc. DC) | G61: % | K61: =K46/K$56 -> 0.7145139506 | L61: 0.6937971795 | M61: 0.6728382843 | N61: 0.6527734875 | O61: 0.6335235241
F62: ='Input | Exit Fees'!$D31 -> Single Phase, Two Element | G62: % | K62: 0.05148950058 | L62: 0.04947740482 | M62: 0.04753189711 | N62: 0.04566668875 | O62: 0.04387748265
F63: ='Input | Exit Fees'!$D32 -> Three Phase (inc. DC) | G63: % | K63: 0.2209451271 | L63: 0.2431036981 | M63: 0.2654459504 | N63: 0.2868357011 | O63: 0.3073550846
F64: ='Input | Exit Fees'!$D33 -> Three Phase CT | G64: % | K64: 0.01305142171 | L64: 0.01362171762 | M64: 0.0141838682 | N64: 0.01472412264 | O64: 0.01524390871
F65: ='Input | Exit Fees'!$D34 -> 0 | G65: % | K65: 0 | L65: 0 | M65: 0 | N65: 0 | O65: 0
F66: ='Input | Exit Fees'!$D35 -> 0 | G66: % | K66: 0 | L66: 0 | M66: 0 | N66: 0 | O66: 0
F67: ='Input | Exit Fees'!$D36 -> 0 | G67: % | K67: 0 | L67: 0 | M67: 0 | N67: 0 | O67: 0
F68: ='Input | Exit Fees'!$D37 -> 0 | G68: % | K68: 0 | L68: 0 | M68: 0 | N68: 0 | O68: 0
F69: ='Input | Exit Fees'!$D38 -> 0 | G69: % | K69: 0 | L69: 0 | M69: 0 | N69: 0 | O69: 0
F70: ='Input | Exit Fees'!$D39 -> 0 | G70: % | K70: 0 | L70: 0 | M70: 0 | N70: 0 | O70: 0
F71: Total | G71: % | K71: =SUM(K61:K70) -> 1 | L71: =SUM(L61:L70) -> 1 | M71: =SUM(M61:M70) -> 1 | N71: =SUM(N61:N70) -> 1 | O71: =SUM(O61:O70) -> 1
A72: =PRODUCT(J72:O72) -> 1 | K72: =(K71=1)/1 -> 1 | L72: =(L71=1)/1 -> 1 | M72: =(M71=1)/1 -> 1 | N72: =(N71=1)/1 -> 1 | O72: =(O71=1)/1 -> 1
E75: Allocated Meter RAB by Designated Exit Fee | K75: Regulatory period
F76: Exit Fee | G76: Units | H76: Basis | K76: =FPFirstYear -> 2026-27 | L76: =LEFT(K76,4)+1&"-"&RIGHT(K76,2)+1 -> 2027-28 | M76: =LEFT(L76,4)+1&"-"&RIGHT(L76,2)+1 -> 2028-29 | N76: =LEFT(M76,4)+1&"-"&RIGHT(M76,2)+1 -> 2029-30 | O76: =LEFT(N76,4)+1&"-"&RIGHT(N76,2)+1 -> 2030-31
F77: ='Input | Exit Fees'!$D30 -> Single Phase (inc. DC) | G77: $m | H77: Nominal | K77: =AVERAGE('Input | Exit Fees'!G$12:H$12)*'Calc | Exit Fees'!K61 -> 41.44608876 | L77: =AVERAGE('Input | Exit Fees'!H$12:I$12)*'Calc | Exit Fees'!L61 -> 55.58500315 | M77: =AVERAGE('Input | Exit Fees'!I$12:J$12)*'Calc | Exit Fees'!M61 -> 72.10311787 | N77: =AVERAGE('Input | Exit Fees'!J$12:K$12)*'Calc | Exit Fees'!N61 -> 89.75430919 | O77: =AVERAGE('Input | Exit Fees'!K$12:L$12)*'Calc | Exit Fees'!O61 -> 108.3913131
F78: ='Input | Exit Fees'!$D31 -> Single Phase, Two Element | G78: $m | H78: Nominal | K78: =AVERAGE('Input | Exit Fees'!G$12:H$12)*'Calc | Exit Fees'!K62 -> 2.986699433 | L78: =AVERAGE('Input | Exit Fees'!H$12:I$12)*'Calc | Exit Fees'!L62 -> 3.963985131 | M78: =AVERAGE('Input | Exit Fees'!I$12:J$12)*'Calc | Exit Fees'!M62 -> 5.093642945 | N78: =AVERAGE('Input | Exit Fees'!J$12:K$12)*'Calc | Exit Fees'!N62 -> 6.279026615 | O78: =AVERAGE('Input | Exit Fees'!K$12:L$12)*'Calc | Exit Fees'!O62 -> 7.507121327
F79: ='Input | Exit Fees'!$D32 -> Three Phase (inc. DC) | G79: $m | H79: Nominal | K79: =AVERAGE('Input | Exit Fees'!G$12:H$12)*'Calc | Exit Fees'!K63 -> 12.81614073 | L79: =AVERAGE('Input | Exit Fees'!H$12:I$12)*'Calc | Exit Fees'!L63 -> 19.47675808 | M79: =AVERAGE('Input | Exit Fees'!I$12:J$12)*'Calc | Exit Fees'!M63 -> 28.44588529 | N79: =AVERAGE('Input | Exit Fees'!J$12:K$12)*'Calc | Exit Fees'!N63 -> 39.43901016 | O79: =AVERAGE('Input | Exit Fees'!K$12:L$12)*'Calc | Exit Fees'!O63 -> 52.58624176
F80: ='Input | Exit Fees'!$D33 -> Three Phase CT | G80: $m | H80: Nominal | K80: =AVERAGE('Input | Exit Fees'!G$12:H$12)*'Calc | Exit Fees'!K64 -> 0.7570606315 | L80: =AVERAGE('Input | Exit Fees'!H$12:I$12)*'Calc | Exit Fees'!L64 -> 1.091332221 | M80: =AVERAGE('Input | Exit Fees'!I$12:J$12)*'Calc | Exit Fees'!M64 -> 1.519980572 | N80: =AVERAGE('Input | Exit Fees'!J$12:K$12)*'Calc | Exit Fees'!N64 -> 2.024520728 | O80: =AVERAGE('Input | Exit Fees'!K$12:L$12)*'Calc | Exit Fees'!O64 -> 2.608123012
F81: ='Input | Exit Fees'!$D34 -> 0 | G81: $m | H81: Nominal | K81: =AVERAGE('Input | Exit Fees'!G$12:H$12)*'Calc | Exit Fees'!K65 -> 0 | L81: =AVERAGE('Input | Exit Fees'!H$12:I$12)*'Calc | Exit Fees'!L65 -> 0 | M81: =AVERAGE('Input | Exit Fees'!I$12:J$12)*'Calc | Exit Fees'!M65 -> 0 | N81: =AVERAGE('Input | Exit Fees'!J$12:K$12)*'Calc | Exit Fees'!N65 -> 0 | O81: =AVERAGE('Input | Exit Fees'!K$12:L$12)*'Calc | Exit Fees'!O65 -> 0
F82: ='Input | Exit Fees'!$D35 -> 0 | G82: $m | H82: Nominal | K82: =AVERAGE('Input | Exit Fees'!G$12:H$12)*'Calc | Exit Fees'!K66 -> 0 | L82: =AVERAGE('Input | Exit Fees'!H$12:I$12)*'Calc | Exit Fees'!L66 -> 0 | M82: =AVERAGE('Input | Exit Fees'!I$12:J$12)*'Calc | Exit Fees'!M66 -> 0 | N82: =AVERAGE('Input | Exit Fees'!J$12:K$12)*'Calc | Exit Fees'!N66 -> 0 | O82: =AVERAGE('Input | Exit Fees'!K$12:L$12)*'Calc | Exit Fees'!O66 -> 0
F83: ='Input | Exit Fees'!$D36 -> 0 | G83: $m | H83: Nominal | K83: =AVERAGE('Input | Exit Fees'!G$12:H$12)*'Calc | Exit Fees'!K67 -> 0 | L83: =AVERAGE('Input | Exit Fees'!H$12:I$12)*'Calc | Exit Fees'!L67 -> 0 | M83: =AVERAGE('Input | Exit Fees'!I$12:J$12)*'Calc | Exit Fees'!M67 -> 0 | N83: =AVERAGE('Input | Exit Fees'!J$12:K$12)*'Calc | Exit Fees'!N67 -> 0 | O83: =AVERAGE('Input | Exit Fees'!K$12:L$12)*'Calc | Exit Fees'!O67 -> 0
F84: ='Input | Exit Fees'!$D37 -> 0 | G84: $m | H84: Nominal | K84: =AVERAGE('Input | Exit Fees'!G$12:H$12)*'Calc | Exit Fees'!K68 -> 0 | L84: =AVERAGE('Input | Exit Fees'!H$12:I$12)*'Calc | Exit Fees'!L68 -> 0 | M84: =AVERAGE('Input | Exit Fees'!I$12:J$12)*'Calc | Exit Fees'!M68 -> 0 | N84: =AVERAGE('Input | Exit Fees'!J$12:K$12)*'Calc | Exit Fees'!N68 -> 0 | O84: =AVERAGE('Input | Exit Fees'!K$12:L$12)*'Calc | Exit Fees'!O68 -> 0
F85: ='Input | Exit Fees'!$D38 -> 0 | G85: $m | H85: Nominal | K85: =AVERAGE('Input | Exit Fees'!G$12:H$12)*'Calc | Exit Fees'!K69 -> 0 | L85: =AVERAGE('Input | Exit Fees'!H$12:I$12)*'Calc | Exit Fees'!L69 -> 0 | M85: =AVERAGE('Input | Exit Fees'!I$12:J$12)*'Calc | Exit Fees'!M69 -> 0 | N85: =AVERAGE('Input | Exit Fees'!J$12:K$12)*'Calc | Exit Fees'!N69 -> 0 | O85: =AVERAGE('Input | Exit Fees'!K$12:L$12)*'Calc | Exit Fees'!O69 -> 0
F86: ='Input | Exit Fees'!$D39 -> 0 | G86: $m | H86: Nominal | K86: =AVERAGE('Input | Exit Fees'!G$12:H$12)*'Calc | Exit Fees'!K70 -> 0 | L86: =AVERAGE('Input | Exit Fees'!H$12:I$12)*'Calc | Exit Fees'!L70 -> 0 | M86: =AVERAGE('Input | Exit Fees'!I$12:J$12)*'Calc | Exit Fees'!M70 -> 0 | N86: =AVERAGE('Input | Exit Fees'!J$12:K$12)*'Calc | Exit Fees'!N70 -> 0 | O86: =AVERAGE('Input | Exit Fees'!K$12:L$12)*'Calc | Exit Fees'!O70 -> 0
F87: Total | G87: $m | H87: Nominal | K87: =SUM(K77:K86) -> 58.00598956 | L87: =SUM(L77:L86) -> 80.11707859 | M87: =SUM(M77:M86) -> 107.1626267 | N87: =SUM(N77:N86) -> 137.4968667 | O87: =SUM(O77:O86) -> 171.0927992
A88: =PRODUCT(J88:O88) -> 1 | K88: =(ROUND(K87,6)=ROUND(AVERAGE('Input | Exit Fees'!H$9:I$9),6))/1 -> 1 | L88: =(ROUND(L87,6)=ROUND(AVERAGE('Input | Exit Fees'!I$9:J$9),6))/1 -> 1 | M88: =(ROUND(M87,6)=ROUND(AVERAGE('Input | Exit Fees'!J$9:K$9),6))/1 -> 1 | N88: =(ROUND(N87,6)=ROUND(AVERAGE('Input | Exit Fees'!K$9:L$9),6))/1 -> 1 | O88: =(ROUND(O87,6)=ROUND(AVERAGE('Input | Exit Fees'!L$9:M$9),6))/1 -> 1
E90: Allocated Meter RAB by Designated Exit Fee Per Meter | K90: Regulatory period
F91: Exit Fee | G91: Units | H91: Basis | K91: =FPFirstYear -> 2026-27 | L91: =LEFT(K91,4)+1&"-"&RIGHT(K91,2)+1 -> 2027-28 | M91: =LEFT(L91,4)+1&"-"&RIGHT(L91,2)+1 -> 2028-29 | N91: =LEFT(M91,4)+1&"-"&RIGHT(M91,2)+1 -> 2029-30 | O91: =LEFT(N91,4)+1&"-"&RIGHT(N91,2)+1 -> 2030-31
F92: ='Input | Exit Fees'!$D30 -> Single Phase (inc. DC) | G92: $dollars | H92: Nominal | K92: =IFERROR(K77*10^6/K31,0) -> 133.7023956 | L92: =IFERROR(L77*10^6/L31,0) -> 179.8561656 | M92: 234.3372963 | N92: 293.0180267 | O92: 355.4819496
F93: ='Input | Exit Fees'!$D31 -> Single Phase, Two Element | G93: $dollars | H93: Nominal | K93: 144.8978696 | L93: 194.8454702 | M93: 253.7589631 | N93: 317.1550031 | O93: 384.5882769
F94: ='Input | Exit Fees'!$D32 -> Three Phase (inc. DC) | G94: $dollars | H94: Nominal | K94: 187.5094278 | L94: 251.9577264 | M94: 327.8527338 | N94: 409.3662476 | O94: 495.9378124
F95: ='Input | Exit Fees'!$D33 -> Three Phase CT | G95: $dollars | H95: Nominal | K95: 277.2211374 | L95: 372.7705808 | M95: 485.4644518 | N95: 606.7235654 | O95: 735.6968815
F96: ='Input | Exit Fees'!$D34 -> 0 | G96: $dollars | H96: Nominal | K96: 0 | L96: 0 | M96: 0 | N96: 0 | O96: 0
F97: ='Input | Exit Fees'!$D35 -> 0 | G97: $dollars | H97: Nominal | K97: 0 | L97: 0 | M97: 0 | N97: 0 | O97: 0
F98: ='Input | Exit Fees'!$D36 -> 0 | G98: $dollars | H98: Nominal | K98: 0 | L98: 0 | M98: 0 | N98: 0 | O98: 0
F99: ='Input | Exit Fees'!$D37 -> 0 | G99: $dollars | H99: Nominal | K99: 0 | L99: 0 | M99: 0 | N99: 0 | O99: 0
F100: ='Input | Exit Fees'!$D38 -> 0 | G100: $dollars | H100: Nominal | K100: 0 | L100: 0 | M100: 0 | N100: 0 | O100: 0
F101: ='Input | Exit Fees'!$D39 -> 0 | G101: $dollars | H101: Nominal | K101: 0 | L101: 0 | M101: 0 | N101: 0 | O101: 0
B103: Calculations | Comms, IT, Inhouse software & Equity Raising Costs
C105: Calculation of Allocated Comms, IT, Inhouse software & Equity Raising Costs RAB by Designated Exit Fee
K107: Regulatory period
F108: Exit Fee Component | G108: Units | H108: Basis | K108: =FPFirstYear -> 2026-27 | L108: =LEFT(K108,4)+1&"-"&RIGHT(K108,2)+1 -> 2027-28 | M108: =LEFT(L108,4)+1&"-"&RIGHT(L108,2)+1 -> 2028-29 | N108: =LEFT(M108,4)+1&"-"&RIGHT(M108,2)+1 -> 2029-30 | O108: =LEFT(N108,4)+1&"-"&RIGHT(N108,2)+1 -> 2030-31
F109: Comms, IT, Inhouse software & Equity Raising Costs RAB per meter | G109: $dollars | H109: Nominal | K109: =(AVERAGE('Input | Exit Fees'!G$19:H$19)*10^6)/'Calc | Exit Fees'!K$41 -> 27.57839938 | L109: =(AVERAGE('Input | Exit Fees'!H$19:I$19)*10^6)/'Calc | Exit Fees'!L$41 -> 46.52801061 | M109: =(AVERAGE('Input | Exit Fees'!I$19:J$19)*10^6)/'Calc | Exit Fees'!M$41 -> 57.52316098 | N109: =(AVERAGE('Input | Exit Fees'!J$19:K$19)*10^6)/'Calc | Exit Fees'!N$41 -> 67.71198266 | O109: =(AVERAGE('Input | Exit Fees'!K$19:L$19)*10^6)/'Calc | Exit Fees'!O$41 -> 75.42206266
B113: Calculations | Exit Fees with Component Detail
F115: Base Year | G115: Regulatory period
G116: Tariff ($/year) (Nominal)
C117: No. | D117: Exit Fee Name | E117: Component | F117: 2025-26 | G117: 2026-27 | H117: 2027-28 | I117: 2028-29 | J117: 2029-30 | K117: 2030-31
C118: 1 | D118: ='Input | Exit Fees'!D30 -> Single Phase (inc. DC)
E119: Meter RAB | G119: =IF($D118=0,0,SUMIFS('Calc | Exit Fees'!K$92:K$101,'Input | Exit Fees'!$D$30:$D$39,$D118)) -> 133.7023956 | H119: =IF($D118=0,0,SUMIFS('Calc | Exit Fees'!L$92:L$101,'Input | Exit Fees'!$D$30:$D$39,$D118)) -> 179.8561656 | I119: =IF($D118=0,0,SUMIFS('Calc | Exit Fees'!M$92:M$101,'Input | Exit Fees'!$D$30:$D$39,$D118)) -> 234.3372963 | J119: =IF($D118=0,0,SUMIFS('Calc | Exit Fees'!N$92:N$101,'Input | Exit Fees'!$D$30:$D$39,$D118)) -> 293.0180267 | K119: =IF($D118=0,0,SUMIFS('Calc | Exit Fees'!O$92:O$101,'Input | Exit Fees'!$D$30:$D$39,$D118)) -> 355.4819496
E120: Comms, IT, Inhouse software & Equity Raising Costs | G120: =IF($D118=0,0,'Calc | Exit Fees'!K$109) -> 27.57839938 | H120: =IF($D118=0,0,'Calc | Exit Fees'!L$109) -> 46.52801061 | I120: =IF($D118=0,0,'Calc | Exit Fees'!M$109) -> 57.52316098 | J120: =IF($D118=0,0,'Calc | Exit Fees'!N$109) -> 67.71198266 | K120: =IF($D118=0,0,'Calc | Exit Fees'!O$109) -> 75.42206266
E121: Admin cost | G121: =IF($D118=0,0,'Input | Exit Fees'!K$120) -> 78.85926618 | H121: =IF($D118=0,0,'Input | Exit Fees'!L$120) -> 84.07824626 | I121: =IF($D118=0,0,'Input | Exit Fees'!M$120) -> 88.99711282 | J121: =IF($D118=0,0,'Input | Exit Fees'!N$120) -> 93.59208989 | K121: =IF($D118=0,0,'Input | Exit Fees'!O$120) -> 98.41888995
E122: Tax allowance | G122: =IF($D118=0,0,'Calc | Tax Allowance'!G29) -> 6.549421623 | H122: =IF($D118=0,0,'Calc | Tax Allowance'!H29) -> 8.006143264 | I122: =IF($D118=0,0,'Calc | Tax Allowance'!I29) -> 10.56906908 | J122: =IF($D118=0,0,'Calc | Tax Allowance'!J29) -> 13.58386523 | K122: =IF($D118=0,0,'Calc | Tax Allowance'!K29) -> 16.37388785
E123: TOTAL exit fee | F123: =IF(D118=0,0,'Input | Exit Fees'!G30) -> 191.64 | G123: =SUM(G119:G122) -> 246.6894828 | H123: =SUM(H119:H122) -> 318.4685658 | I123: =SUM(I119:I122) -> 391.4266392 | J123: =SUM(J119:J122) -> 467.9059645 | K123: =SUM(K119:K122) -> 545.69679
C124: 2 | D124: ='Input | Exit Fees'!D31 -> Single Phase, Two Element
E125: =IF($D124=0,"",E$119) -> Meter RAB | G125: =IF($D124=0,0,SUMIFS('Calc | Exit Fees'!K$92:K$101,'Input | Exit Fees'!$D$30:$D$39,$D124)) -> 144.8978696 | H125: =IF($D124=0,0,SUMIFS('Calc | Exit Fees'!L$92:L$101,'Input | Exit Fees'!$D$30:$D$39,$D124)) -> 194.8454702 | I125: =IF($D124=0,0,SUMIFS('Calc | Exit Fees'!M$92:M$101,'Input | Exit Fees'!$D$30:$D$39,$D124)) -> 253.7589631 | J125: =IF($D124=0,0,SUMIFS('Calc | Exit Fees'!N$92:N$101,'Input | Exit Fees'!$D$30:$D$39,$D124)) -> 317.1550031 | K125: =IF($D124=0,0,SUMIFS('Calc | Exit Fees'!O$92:O$101,'Input | Exit Fees'!$D$30:$D$39,$D124)) -> 384.5882769
E126: =IF($D124=0,"",E$120) -> Comms, IT, Inhouse software & Equity Raising Costs | G126: =IF($D124=0,0,'Calc | Exit Fees'!K$109) -> 27.57839938 | H126: =IF($D124=0,0,'Calc | Exit Fees'!L$109) -> 46.52801061 | I126: =IF($D124=0,0,'Calc | Exit Fees'!M$109) -> 57.52316098 | J126: =IF($D124=0,0,'Calc | Exit Fees'!N$109) -> 67.71198266 | K126: =IF($D124=0,0,'Calc | Exit Fees'!O$109) -> 75.42206266
E127: =IF($D124=0,"",E$121) -> Admin cost | G127: =IF($D124=0,0,'Input | Exit Fees'!K$120) -> 78.85926618 | H127: =IF($D124=0,0,'Input | Exit Fees'!L$120) -> 84.07824626 | I127: =IF($D124=0,0,'Input | Exit Fees'!M$120) -> 88.99711282 | J127: =IF($D124=0,0,'Input | Exit Fees'!N$120) -> 93.59208989 | K127: =IF($D124=0,0,'Input | Exit Fees'!O$120) -> 98.41888995
E128: =IF($D124=0,"",E$122) -> Tax allowance | G128: =IF($D124=0,0,'Calc | Tax Allowance'!G50) -> 6.990490051 | H128: =IF($D124=0,0,'Calc | Tax Allowance'!H50) -> 8.505676715 | I128: =IF($D124=0,0,'Calc | Tax Allowance'!I50) -> 11.16559943 | J128: =IF($D124=0,0,'Calc | Tax Allowance'!J50) -> 14.31232936 | K128: =IF($D124=0,0,'Calc | Tax Allowance'!K50) -> 17.23701699
E129: =IF($D124=0,"",E$123) -> TOTAL exit fee | F129: =IF(D124=0,0,'Input | Exit Fees'!G31) -> 191.64 | G129: =SUM(G125:G128) -> 258.3260252 | H129: =SUM(H125:H128) -> 333.9574038 | I129: =SUM(I125:I128) -> 411.4448364 | J129: =SUM(J125:J128) -> 492.771405 | K129: =SUM(K125:K128) -> 575.6662465
C130: 3 | D130: ='Input | Exit Fees'!D32 -> Three Phase (inc. DC)
E131: =IF($D130=0,"",E$119) -> Meter RAB | G131: =IF($D130=0,0,SUMIFS('Calc | Exit Fees'!K$92:K$101,'Input | Exit Fees'!$D$30:$D$39,$D130)) -> 187.5094278 | H131: =IF($D130=0,0,SUMIFS('Calc | Exit Fees'!L$92:L$101,'Input | Exit Fees'!$D$30:$D$39,$D130)) -> 251.9577264 | I131: =IF($D130=0,0,SUMIFS('Calc | Exit Fees'!M$92:M$101,'Input | Exit Fees'!$D$30:$D$39,$D130)) -> 327.8527338 | J131: =IF($D130=0,0,SUMIFS('Calc | Exit Fees'!N$92:N$101,'Input | Exit Fees'!$D$30:$D$39,$D130)) -> 409.3662476 | K131: =IF($D130=0,0,SUMIFS('Calc | Exit Fees'!O$92:O$101,'Input | Exit Fees'!$D$30:$D$39,$D130)) -> 495.9378124
E132: =IF($D130=0,"",E$120) -> Comms, IT, Inhouse software & Equity Raising Costs | G132: =IF($D130=0,0,'Calc | Exit Fees'!K$109) -> 27.57839938 | H132: =IF($D130=0,0,'Calc | Exit Fees'!L$109) -> 46.52801061 | I132: =IF($D130=0,0,'Calc | Exit Fees'!M$109) -> 57.52316098 | J132: =IF($D130=0,0,'Calc | Exit Fees'!N$109) -> 67.71198266 | K132: =IF($D130=0,0,'Calc | Exit Fees'!O$109) -> 75.42206266
E133: =IF($D130=0,"",E$121) -> Admin cost | G133: =IF($D130=0,0,'Input | Exit Fees'!K$120) -> 78.85926618 | H133: =IF($D130=0,0,'Input | Exit Fees'!L$120) -> 84.07824626 | I133: =IF($D130=0,0,'Input | Exit Fees'!M$120) -> 88.99711282 | J133: =IF($D130=0,0,'Input | Exit Fees'!N$120) -> 93.59208989 | K133: =IF($D130=0,0,'Input | Exit Fees'!O$120) -> 98.41888995
E134: =IF($D130=0,"",E$122) -> Tax allowance | G134: =IF($D130=0,0,'Calc | Tax Allowance'!G71) -> 8.669258893 | H134: =IF($D130=0,0,'Calc | Tax Allowance'!H71) -> 10.40899933 | I134: =IF($D130=0,0,'Calc | Tax Allowance'!I71) -> 13.44136611 | J134: =IF($D130=0,0,'Calc | Tax Allowance'!J71) -> 17.09530361 | K134: =IF($D130=0,0,'Calc | Tax Allowance'!K71) -> 20.53901479
E135: =IF($D130=0,"",E$123) -> TOTAL exit fee | F135: =IF(D130=0,0,'Input | Exit Fees'!G32) -> 191.64 | G135: =SUM(G131:G134) -> 302.6163522 | H135: =SUM(H131:H134) -> 392.9729826 | I135: =SUM(I131:I134) -> 487.8143737 | J135: =SUM(J131:J134) -> 587.7656237 | K135: =SUM(K131:K134) -> 690.3177798
C136: 4 | D136: ='Input | Exit Fees'!D33 -> Three Phase CT
E137: =IF($D136=0,"",E$119) -> Meter RAB | G137: =IF($D136=0,0,SUMIFS('Calc | Exit Fees'!K$92:K$101,'Input | Exit Fees'!$D$30:$D$39,$D136)) -> 277.2211374 | H137: =IF($D136=0,0,SUMIFS('Calc | Exit Fees'!L$92:L$101,'Input | Exit Fees'!$D$30:$D$39,$D136)) -> 372.7705808 | I137: =IF($D136=0,0,SUMIFS('Calc | Exit Fees'!M$92:M$101,'Input | Exit Fees'!$D$30:$D$39,$D136)) -> 485.4644518 | J137: =IF($D136=0,0,SUMIFS('Calc | Exit Fees'!N$92:N$101,'Input | Exit Fees'!$D$30:$D$39,$D136)) -> 606.7235654 | K137: =IF($D136=0,0,SUMIFS('Calc | Exit Fees'!O$92:O$101,'Input | Exit Fees'!$D$30:$D$39,$D136)) -> 735.6968815
E138: =IF($D136=0,"",E$120) -> Comms, IT, Inhouse software & Equity Raising Costs | G138: =IF($D136=0,0,'Calc | Exit Fees'!K$109) -> 27.57839938 | H138: =IF($D136=0,0,'Calc | Exit Fees'!L$109) -> 46.52801061 | I138: =IF($D136=0,0,'Calc | Exit Fees'!M$109) -> 57.52316098 | J138: =IF($D136=0,0,'Calc | Exit Fees'!N$109) -> 67.71198266 | K138: =IF($D136=0,0,'Calc | Exit Fees'!O$109) -> 75.42206266
E139: =IF($D136=0,"",E$121) -> Admin cost | G139: =IF($D136=0,0,'Input | Exit Fees'!K$120) -> 78.85926618 | H139: =IF($D136=0,0,'Input | Exit Fees'!L$120) -> 84.07824626 | I139: =IF($D136=0,0,'Input | Exit Fees'!M$120) -> 88.99711282 | J139: =IF($D136=0,0,'Input | Exit Fees'!N$120) -> 93.59208989 | K139: =IF($D136=0,0,'Input | Exit Fees'!O$120) -> 98.41888995
E140: =IF($D136=0,"",E$122) -> Tax allowance | G140: =IF($D136=0,0,'Calc | Tax Allowance'!G92) -> 12.20363382 | H140: =IF($D136=0,0,'Calc | Tax Allowance'!H92) -> 14.43520761 | I140: =IF($D136=0,0,'Calc | Tax Allowance'!I92) -> 18.28236008 | J140: =IF($D136=0,0,'Calc | Tax Allowance'!J92) -> 23.05163071 | K140: =IF($D136=0,0,'Calc | Tax Allowance'!K92) -> 27.6489135
E141: =IF($D136=0,"",E$123) -> TOTAL exit fee | F141: =IF(D136=0,0,'Input | Exit Fees'!G33) -> 191.64 | G141: =SUM(G137:G140) -> 395.8624368 | H141: =SUM(H137:H140) -> 517.8120453 | I141: =SUM(I137:I140) -> 650.2670857 | J141: =SUM(J137:J140) -> 791.0792687 | K141: =SUM(K137:K140) -> 937.1867476
C142: 5 | D142: ='Input | Exit Fees'!D34 -> 0
E143: =IF($D142=0,"",E$119) ->  | G143: =IF($D142=0,0,SUMIFS('Calc | Exit Fees'!K$92:K$101,'Input | Exit Fees'!$D$30:$D$39,$D142)) -> 0 | H143: =IF($D142=0,0,SUMIFS('Calc | Exit Fees'!L$92:L$101,'Input | Exit Fees'!$D$30:$D$39,$D142)) -> 0 | I143: =IF($D142=0,0,SUMIFS('Calc | Exit Fees'!M$92:M$101,'Input | Exit Fees'!$D$30:$D$39,$D142)) -> 0 | J143: =IF($D142=0,0,SUMIFS('Calc | Exit Fees'!N$92:N$101,'Input | Exit Fees'!$D$30:$D$39,$D142)) -> 0 | K143: =IF($D142=0,0,SUMIFS('Calc | Exit Fees'!O$92:O$101,'Input | Exit Fees'!$D$30:$D$39,$D142)) -> 0
E144: =IF($D142=0,"",E$120) ->  | G144: =IF($D142=0,0,'Calc | Exit Fees'!K$109) -> 0 | H144: =IF($D142=0,0,'Calc | Exit Fees'!L$109) -> 0 | I144: =IF($D142=0,0,'Calc | Exit Fees'!M$109) -> 0 | J144: =IF($D142=0,0,'Calc | Exit Fees'!N$109) -> 0 | K144: =IF($D142=0,0,'Calc | Exit Fees'!O$109) -> 0
E145: =IF($D142=0,"",E$121) ->  | G145: =IF($D142=0,0,'Input | Exit Fees'!K$120) -> 0 | H145: =IF($D142=0,0,'Input | Exit Fees'!L$120) -> 0 | I145: =IF($D142=0,0,'Input | Exit Fees'!M$120) -> 0 | J145: =IF($D142=0,0,'Input | Exit Fees'!N$120) -> 0 | K145: =IF($D142=0,0,'Input | Exit Fees'!O$120) -> 0
E146: =IF($D142=0,"",E$122) -> 
E147: =IF($D142=0,"",E$123) ->  | F147: =IF(D142=0,0,'Input | Exit Fees'!G34) -> 0 | G147: =SUM(G143:G146) -> 0 | H147: =SUM(H143:H146) -> 0 | I147: =SUM(I143:I146) -> 0 | J147: =SUM(J143:J146) -> 0 | K147: =SUM(K143:K146) -> 0
C148: 6 | D148: ='Input | Exit Fees'!D35 -> 0
E149: =IF($D148=0,"",E$119) ->  | G149: =IF($D148=0,0,SUMIFS('Calc | Exit Fees'!K$92:K$101,'Input | Exit Fees'!$D$30:$D$39,$D148)) -> 0 | H149: =IF($D148=0,0,SUMIFS('Calc | Exit Fees'!L$92:L$101,'Input | Exit Fees'!$D$30:$D$39,$D148)) -> 0 | I149: =IF($D148=0,0,SUMIFS('Calc | Exit Fees'!M$92:M$101,'Input | Exit Fees'!$D$30:$D$39,$D148)) -> 0 | J149: =IF($D148=0,0,SUMIFS('Calc | Exit Fees'!N$92:N$101,'Input | Exit Fees'!$D$30:$D$39,$D148)) -> 0 | K149: =IF($D148=0,0,SUMIFS('Calc | Exit Fees'!O$92:O$101,'Input | Exit Fees'!$D$30:$D$39,$D148)) -> 0
E150: =IF($D148=0,"",E$120) ->  | G150: =IF($D148=0,0,'Calc | Exit Fees'!K$109) -> 0 | H150: =IF($D148=0,0,'Calc | Exit Fees'!L$109) -> 0 | I150: =IF($D148=0,0,'Calc | Exit Fees'!M$109) -> 0 | J150: =IF($D148=0,0,'Calc | Exit Fees'!N$109) -> 0 | K150: =IF($D148=0,0,'Calc | Exit Fees'!O$109) -> 0
E151: =IF($D148=0,"",E$121) ->  | G151: =IF($D148=0,0,'Input | Exit Fees'!K$120) -> 0 | H151: =IF($D148=0,0,'Input | Exit Fees'!L$120) -> 0 | I151: =IF($D148=0,0,'Input | Exit Fees'!M$120) -> 0 | J151: =IF($D148=0,0,'Input | Exit Fees'!N$120) -> 0 | K151: =IF($D148=0,0,'Input | Exit Fees'!O$120) -> 0
E152: =IF($D148=0,"",E$122) -> 
E153: =IF($D148=0,"",E$123) ->  | F153: =IF(D148=0,0,'Input | Exit Fees'!G35) -> 0 | G153: =SUM(G149:G152) -> 0 | H153: =SUM(H149:H152) -> 0 | I153: =SUM(I149:I152) -> 0 | J153: =SUM(J149:J152) -> 0 | K153: =SUM(K149:K152) -> 0
C154: 7 | D154: ='Input | Exit Fees'!D36 -> 0
E155: =IF($D154=0,"",E$119) ->  | G155: =IF($D154=0,0,SUMIFS('Calc | Exit Fees'!K$92:K$101,'Input | Exit Fees'!$D$30:$D$39,$D154)) -> 0 | H155: =IF($D154=0,0,SUMIFS('Calc | Exit Fees'!L$92:L$101,'Input | Exit Fees'!$D$30:$D$39,$D154)) -> 0 | I155: =IF($D154=0,0,SUMIFS('Calc | Exit Fees'!M$92:M$101,'Input | Exit Fees'!$D$30:$D$39,$D154)) -> 0 | J155: =IF($D154=0,0,SUMIFS('Calc | Exit Fees'!N$92:N$101,'Input | Exit Fees'!$D$30:$D$39,$D154)) -> 0 | K155: =IF($D154=0,0,SUMIFS('Calc | Exit Fees'!O$92:O$101,'Input | Exit Fees'!$D$30:$D$39,$D154)) -> 0
E156: =IF($D154=0,"",E$120) ->  | G156: =IF($D154=0,0,'Calc | Exit Fees'!K$109) -> 0 | H156: =IF($D154=0,0,'Calc | Exit Fees'!L$109) -> 0 | I156: =IF($D154=0,0,'Calc | Exit Fees'!M$109) -> 0 | J156: =IF($D154=0,0,'Calc | Exit Fees'!N$109) -> 0 | K156: =IF($D154=0,0,'Calc | Exit Fees'!O$109) -> 0
E157: =IF($D154=0,"",E$121) ->  | G157: =IF($D154=0,0,'Input | Exit Fees'!K$120) -> 0 | H157: =IF($D154=0,0,'Input | Exit Fees'!L$120) -> 0 | I157: =IF($D154=0,0,'Input | Exit Fees'!M$120) -> 0 | J157: =IF($D154=0,0,'Input | Exit Fees'!N$120) -> 0 | K157: =IF($D154=0,0,'Input | Exit Fees'!O$120) -> 0
E158: =IF($D154=0,"",E$122) -> 
E159: =IF($D154=0,"",E$123) ->  | F159: =IF(D154=0,0,'Input | Exit Fees'!G36) -> 0 | G159: =SUM(G155:G158) -> 0 | H159: =SUM(H155:H158) -> 0 | I159: =SUM(I155:I158) -> 0 | J159: =SUM(J155:J158) -> 0 | K159: =SUM(K155:K158) -> 0
C160: 8 | D160: ='Input | Exit Fees'!D37 -> 0
E161: =IF($D160=0,"",E$119) ->  | G161: =IF($D160=0,0,SUMIFS('Calc | Exit Fees'!K$92:K$101,'Input | Exit Fees'!$D$30:$D$39,$D160)) -> 0 | H161: =IF($D160=0,0,SUMIFS('Calc | Exit Fees'!L$92:L$101,'Input | Exit Fees'!$D$30:$D$39,$D160)) -> 0 | I161: =IF($D160=0,0,SUMIFS('Calc | Exit Fees'!M$92:M$101,'Input | Exit Fees'!$D$30:$D$39,$D160)) -> 0 | J161: =IF($D160=0,0,SUMIFS('Calc | Exit Fees'!N$92:N$101,'Input | Exit Fees'!$D$30:$D$39,$D160)) -> 0 | K161: =IF($D160=0,0,SUMIFS('Calc | Exit Fees'!O$92:O$101,'Input | Exit Fees'!$D$30:$D$39,$D160)) -> 0
E162: =IF($D160=0,"",E$120) ->  | G162: =IF($D160=0,0,'Calc | Exit Fees'!K$109) -> 0 | H162: =IF($D160=0,0,'Calc | Exit Fees'!L$109) -> 0 | I162: =IF($D160=0,0,'Calc | Exit Fees'!M$109) -> 0 | J162: =IF($D160=0,0,'Calc | Exit Fees'!N$109) -> 0 | K162: =IF($D160=0,0,'Calc | Exit Fees'!O$109) -> 0
E163: =IF($D160=0,"",E$121) ->  | G163: =IF($D160=0,0,'Input | Exit Fees'!K$120) -> 0 | H163: =IF($D160=0,0,'Input | Exit Fees'!L$120) -> 0 | I163: =IF($D160=0,0,'Input | Exit Fees'!M$120) -> 0 | J163: =IF($D160=0,0,'Input | Exit Fees'!N$120) -> 0 | K163: =IF($D160=0,0,'Input | Exit Fees'!O$120) -> 0
E164: =IF($D160=0,"",E$122) -> 
E165: =IF($D160=0,"",E$123) ->  | F165: =IF(D160=0,0,'Input | Exit Fees'!G37) -> 0 | G165: =SUM(G161:G164) -> 0 | H165: =SUM(H161:H164) -> 0 | I165: =SUM(I161:I164) -> 0 | J165: =SUM(J161:J164) -> 0 | K165: =SUM(K161:K164) -> 0
C166: 9 | D166: ='Input | Exit Fees'!D38 -> 0
E167: =IF($D166=0,"",E$119) ->  | G167: =IF($D166=0,0,SUMIFS('Calc | Exit Fees'!K$92:K$101,'Input | Exit Fees'!$D$30:$D$39,$D166)) -> 0 | H167: =IF($D166=0,0,SUMIFS('Calc | Exit Fees'!L$92:L$101,'Input | Exit Fees'!$D$30:$D$39,$D166)) -> 0 | I167: =IF($D166=0,0,SUMIFS('Calc | Exit Fees'!M$92:M$101,'Input | Exit Fees'!$D$30:$D$39,$D166)) -> 0 | J167: =IF($D166=0,0,SUMIFS('Calc | Exit Fees'!N$92:N$101,'Input | Exit Fees'!$D$30:$D$39,$D166)) -> 0 | K167: =IF($D166=0,0,SUMIFS('Calc | Exit Fees'!O$92:O$101,'Input | Exit Fees'!$D$30:$D$39,$D166)) -> 0
E168: =IF($D166=0,"",E$120) ->  | G168: =IF($D166=0,0,'Calc | Exit Fees'!K$109) -> 0 | H168: =IF($D166=0,0,'Calc | Exit Fees'!L$109) -> 0 | I168: =IF($D166=0,0,'Calc | Exit Fees'!M$109) -> 0 | J168: =IF($D166=0,0,'Calc | Exit Fees'!N$109) -> 0 | K168: =IF($D166=0,0,'Calc | Exit Fees'!O$109) -> 0
E169: =IF($D166=0,"",E$121) ->  | G169: =IF($D166=0,0,'Input | Exit Fees'!K$120) -> 0 | H169: =IF($D166=0,0,'Input | Exit Fees'!L$120) -> 0 | I169: =IF($D166=0,0,'Input | Exit Fees'!M$120) -> 0 | J169: =IF($D166=0,0,'Input | Exit Fees'!N$120) -> 0 | K169: =IF($D166=0,0,'Input | Exit Fees'!O$120) -> 0
E170: =IF($D166=0,"",E$122) -> 
E171: =IF($D166=0,"",E$123) ->  | F171: =IF(D166=0,0,'Input | Exit Fees'!G38) -> 0 | G171: =SUM(G167:G170) -> 0 | H171: =SUM(H167:H170) -> 0 | I171: =SUM(I167:I170) -> 0 | J171: =SUM(J167:J170) -> 0 | K171: =SUM(K167:K170) -> 0
C172: 10 | D172: ='Input | Exit Fees'!D39 -> 0
E173: =IF($D172=0,"",E$119) ->  | G173: =IF($D172=0,0,SUMIFS('Calc | Exit Fees'!K$92:K$101,'Input | Exit Fees'!$D$30:$D$39,$D172)) -> 0 | H173: =IF($D172=0,0,SUMIFS('Calc | Exit Fees'!L$92:L$101,'Input | Exit Fees'!$D$30:$D$39,$D172)) -> 0 | I173: =IF($D172=0,0,SUMIFS('Calc | Exit Fees'!M$92:M$101,'Input | Exit Fees'!$D$30:$D$39,$D172)) -> 0 | J173: =IF($D172=0,0,SUMIFS('Calc | Exit Fees'!N$92:N$101,'Input | Exit Fees'!$D$30:$D$39,$D172)) -> 0 | K173: =IF($D172=0,0,SUMIFS('Calc | Exit Fees'!O$92:O$101,'Input | Exit Fees'!$D$30:$D$39,$D172)) -> 0
E174: =IF($D172=0,"",E$120) ->  | G174: =IF($D172=0,0,'Calc | Exit Fees'!K$109) -> 0 | H174: =IF($D172=0,0,'Calc | Exit Fees'!L$109) -> 0 | I174: =IF($D172=0,0,'Calc | Exit Fees'!M$109) -> 0 | J174: =IF($D172=0,0,'Calc | Exit Fees'!N$109) -> 0 | K174: =IF($D172=0,0,'Calc | Exit Fees'!O$109) -> 0
E175: =IF($D172=0,"",E$121) ->  | G175: =IF($D172=0,0,'Input | Exit Fees'!K$120) -> 0 | H175: =IF($D172=0,0,'Input | Exit Fees'!L$120) -> 0 | I175: =IF($D172=0,0,'Input | Exit Fees'!M$120) -> 0 | J175: =IF($D172=0,0,'Input | Exit Fees'!N$120) -> 0 | K175: =IF($D172=0,0,'Input | Exit Fees'!O$120) -> 0
E176: =IF($D172=0,"",E$122) -> 
E177: =IF($D172=0,"",E$123) ->  | F177: =IF(D172=0,0,'Input | Exit Fees'!G39) -> 0 | G177: =SUM(G173:G176) -> 0 | H177: =SUM(H173:H176) -> 0 | I177: =SUM(I173:I176) -> 0 | J177: =SUM(J173:J176) -> 0 | K177: =SUM(K173:K176) -> 0
B180: CALCULATION | Meters (TAB)
B182: Calculation of Allocated Meters TAB by Designated Exit Fee
E184: Allocated Meter TAB by Designated Exit Fee | K184: Regulatory period
F185: Exit Fee | G185: Units | H185: Basis | K185: =FPFirstYear -> 2026-27 | L185: =LEFT(K185,4)+1&"-"&RIGHT(K185,2)+1 -> 2027-28 | M185: =LEFT(L185,4)+1&"-"&RIGHT(L185,2)+1 -> 2028-29 | N185: =LEFT(M185,4)+1&"-"&RIGHT(M185,2)+1 -> 2029-30 | O185: =LEFT(N185,4)+1&"-"&RIGHT(N185,2)+1 -> 2030-31
F186: ='Input | Exit Fees'!$D30 -> Single Phase (inc. DC) | G186: $m | H186: Nominal | K186: =AVERAGE('Input | Exit Fees'!G$130:H$130)*'Calc | Exit Fees'!K61 -> 30.42116785 | L186: =AVERAGE('Input | Exit Fees'!H$130:I$130)*'Calc | Exit Fees'!L61 -> 43.07754175 | M186: =AVERAGE('Input | Exit Fees'!I$130:J$130)*'Calc | Exit Fees'!M61 -> 57.15011115 | N186: =AVERAGE('Input | Exit Fees'!J$130:K$130)*'Calc | Exit Fees'!N61 -> 71.4645049 | O186: =AVERAGE('Input | Exit Fees'!K$130:L$130)*'Calc | Exit Fees'!O61 -> 86.68873676
F187: ='Input | Exit Fees'!$D31 -> Single Phase, Two Element | G187: $m | H187: Nominal | K187: =AVERAGE('Input | Exit Fees'!G$130:H$130)*'Calc | Exit Fees'!K62 -> 2.192218554 | L187: =AVERAGE('Input | Exit Fees'!H$130:I$130)*'Calc | Exit Fees'!L62 -> 3.07202888 | M187: =AVERAGE('Input | Exit Fees'!I$130:J$130)*'Calc | Exit Fees'!M62 -> 4.037304753 | N187: =AVERAGE('Input | Exit Fees'!J$130:K$130)*'Calc | Exit Fees'!N62 -> 4.999509576 | O187: =AVERAGE('Input | Exit Fees'!K$130:L$130)*'Calc | Exit Fees'!O62 -> 6.004013109
F188: ='Input | Exit Fees'!$D32 -> Three Phase (inc. DC) | G188: $m | H188: Nominal | K188: =AVERAGE('Input | Exit Fees'!G$130:H$130)*'Calc | Exit Fees'!K63 -> 9.4069665 | L188: =AVERAGE('Input | Exit Fees'!H$130:I$130)*'Calc | Exit Fees'!L63 -> 15.09419469 | M188: =AVERAGE('Input | Exit Fees'!I$130:J$130)*'Calc | Exit Fees'!M63 -> 22.54667418 | N188: =AVERAGE('Input | Exit Fees'!J$130:K$130)*'Calc | Exit Fees'!N63 -> 31.40227316 | O188: =AVERAGE('Input | Exit Fees'!K$130:L$130)*'Calc | Exit Fees'!O63 -> 42.05719757
F189: ='Input | Exit Fees'!$D33 -> Three Phase CT | G189: $m | H189: Nominal | K189: =AVERAGE('Input | Exit Fees'!G$130:H$130)*'Calc | Exit Fees'!K64 -> 0.5556777306 | L189: =AVERAGE('Input | Exit Fees'!H$130:I$130)*'Calc | Exit Fees'!L64 -> 0.8457660635 | M189: =AVERAGE('Input | Exit Fees'!I$130:J$130)*'Calc | Exit Fees'!M64 -> 1.204761475 | N189: =AVERAGE('Input | Exit Fees'!J$130:K$130)*'Calc | Exit Fees'!N64 -> 1.611971311 | O189: =AVERAGE('Input | Exit Fees'!K$130:L$130)*'Calc | Exit Fees'!O64 -> 2.085913371
F190: ='Input | Exit Fees'!$D34 -> 0 | G190: $m | H190: Nominal | K190: =AVERAGE('Input | Exit Fees'!G$130:H$130)*'Calc | Exit Fees'!K65 -> 0 | L190: =AVERAGE('Input | Exit Fees'!H$130:I$130)*'Calc | Exit Fees'!L65 -> 0 | M190: =AVERAGE('Input | Exit Fees'!I$130:J$130)*'Calc | Exit Fees'!M65 -> 0 | N190: =AVERAGE('Input | Exit Fees'!J$130:K$130)*'Calc | Exit Fees'!N65 -> 0 | O190: =AVERAGE('Input | Exit Fees'!K$130:L$130)*'Calc | Exit Fees'!O65 -> 0
F191: ='Input | Exit Fees'!$D35 -> 0 | G191: $m | H191: Nominal | K191: =AVERAGE('Input | Exit Fees'!G$130:H$130)*'Calc | Exit Fees'!K66 -> 0 | L191: =AVERAGE('Input | Exit Fees'!H$130:I$130)*'Calc | Exit Fees'!L66 -> 0 | M191: =AVERAGE('Input | Exit Fees'!I$130:J$130)*'Calc | Exit Fees'!M66 -> 0 | N191: =AVERAGE('Input | Exit Fees'!J$130:K$130)*'Calc | Exit Fees'!N66 -> 0 | O191: =AVERAGE('Input | Exit Fees'!K$130:L$130)*'Calc | Exit Fees'!O66 -> 0
F192: ='Input | Exit Fees'!$D36 -> 0 | G192: $m | H192: Nominal | K192: =AVERAGE('Input | Exit Fees'!G$130:H$130)*'Calc | Exit Fees'!K67 -> 0 | L192: =AVERAGE('Input | Exit Fees'!H$130:I$130)*'Calc | Exit Fees'!L67 -> 0 | M192: =AVERAGE('Input | Exit Fees'!I$130:J$130)*'Calc | Exit Fees'!M67 -> 0 | N192: =AVERAGE('Input | Exit Fees'!J$130:K$130)*'Calc | Exit Fees'!N67 -> 0 | O192: =AVERAGE('Input | Exit Fees'!K$130:L$130)*'Calc | Exit Fees'!O67 -> 0
F193: ='Input | Exit Fees'!$D37 -> 0 | G193: $m | H193: Nominal | K193: =AVERAGE('Input | Exit Fees'!G$130:H$130)*'Calc | Exit Fees'!K68 -> 0 | L193: =AVERAGE('Input | Exit Fees'!H$130:I$130)*'Calc | Exit Fees'!L68 -> 0 | M193: =AVERAGE('Input | Exit Fees'!I$130:J$130)*'Calc | Exit Fees'!M68 -> 0 | N193: =AVERAGE('Input | Exit Fees'!J$130:K$130)*'Calc | Exit Fees'!N68 -> 0 | O193: =AVERAGE('Input | Exit Fees'!K$130:L$130)*'Calc | Exit Fees'!O68 -> 0
F194: ='Input | Exit Fees'!$D38 -> 0 | G194: $m | H194: Nominal | K194: =AVERAGE('Input | Exit Fees'!G$130:H$130)*'Calc | Exit Fees'!K69 -> 0 | L194: =AVERAGE('Input | Exit Fees'!H$130:I$130)*'Calc | Exit Fees'!L69 -> 0 | M194: =AVERAGE('Input | Exit Fees'!I$130:J$130)*'Calc | Exit Fees'!M69 -> 0 | N194: =AVERAGE('Input | Exit Fees'!J$130:K$130)*'Calc | Exit Fees'!N69 -> 0 | O194: =AVERAGE('Input | Exit Fees'!K$130:L$130)*'Calc | Exit Fees'!O69 -> 0
F195: ='Input | Exit Fees'!$D39 -> 0 | G195: $m | H195: Nominal | K195: =AVERAGE('Input | Exit Fees'!G$130:H$130)*'Calc | Exit Fees'!K70 -> 0 | L195: =AVERAGE('Input | Exit Fees'!H$130:I$130)*'Calc | Exit Fees'!L70 -> 0 | M195: =AVERAGE('Input | Exit Fees'!I$130:J$130)*'Calc | Exit Fees'!M70 -> 0 | N195: =AVERAGE('Input | Exit Fees'!J$130:K$130)*'Calc | Exit Fees'!N70 -> 0 | O195: =AVERAGE('Input | Exit Fees'!K$130:L$130)*'Calc | Exit Fees'!O70 -> 0
F196: Total | G196: $m | H196: Nominal | K196: =SUM(K186:K195) -> 42.57603064 | L196: =SUM(L186:L195) -> 62.08953139 | M196: =SUM(M186:M195) -> 84.93885156 | N196: =SUM(N186:N195) -> 109.478259 | O196: =SUM(O186:O195) -> 136.8358608
K197: =(K196=AVERAGE('Input | Exit Fees'!G$130:H$130))/1 -> 1 | L197: =(L196=AVERAGE('Input | Exit Fees'!H$130:I$130))/1 -> 1 | M197: =(M196=AVERAGE('Input | Exit Fees'!I$130:J$130))/1 -> 1 | N197: =(N196=AVERAGE('Input | Exit Fees'!J$130:K$130))/1 -> 1 | O197: =(O196=AVERAGE('Input | Exit Fees'!K$130:L$130))/1 -> 1
E199: Allocated Meter TAB by Designated Exit Fee Per Meter | K199: Regulatory period
F200: Exit Fee | G200: Units | H200: Basis | K200: =FPFirstYear -> 2026-27 | L200: =LEFT(K200,4)+1&"-"&RIGHT(K200,2)+1 -> 2027-28 | M200: =LEFT(L200,4)+1&"-"&RIGHT(L200,2)+1 -> 2028-29 | N200: =LEFT(M200,4)+1&"-"&RIGHT(M200,2)+1 -> 2029-30 | O200: =LEFT(N200,4)+1&"-"&RIGHT(N200,2)+1 -> 2030-31
F201: ='Input | Exit Fees'!$D30 -> Single Phase (inc. DC) | G201: $dollars | H201: Nominal | K201: =IFERROR(K186*10^6/'Calc | Exit Fees'!K31,0) -> 98.13671544 | L201: =IFERROR(L186*10^6/'Calc | Exit Fees'!L31,0) -> 139.3858243 | M201: =IFERROR(M186*10^6/'Calc | Exit Fees'!M31,0) -> 185.7395759 | N201: =IFERROR(N186*10^6/'Calc | Exit Fees'!N31,0) -> 233.3078868 | O201: =IFERROR(O186*10^6/'Calc | Exit Fees'!O31,0) -> 284.3058201
F202: ='Input | Exit Fees'!$D31 -> Single Phase, Two Element | G202: $dollars | H202: Nominal | K202: =IFERROR(K187*10^6/'Calc | Exit Fees'!K32,0) -> 106.3541228 | L202: =IFERROR(L187*10^6/'Calc | Exit Fees'!L32,0) -> 151.00231 | M202: =IFERROR(M187*10^6/'Calc | Exit Fees'!M32,0) -> 201.1335068 | N202: =IFERROR(N187*10^6/'Calc | Exit Fees'!N32,0) -> 252.5263185 | O202: =IFERROR(O187*10^6/'Calc | Exit Fees'!O32,0) -> 307.5843529
F203: ='Input | Exit Fees'!$D32 -> Three Phase (inc. DC) | G203: $dollars | H203: Nominal | K203: =IFERROR(K188*10^6/'Calc | Exit Fees'!K33,0) -> 137.6307378 | L203: =IFERROR(L188*10^6/'Calc | Exit Fees'!L33,0) -> 195.2634499 | M203: =IFERROR(M188*10^6/'Calc | Exit Fees'!M33,0) -> 259.8614419 | N203: =IFERROR(N188*10^6/'Calc | Exit Fees'!N33,0) -> 325.9470934 | O203: =IFERROR(O188*10^6/'Calc | Exit Fees'!O33,0) -> 396.6390041
F204: ='Input | Exit Fees'!$D33 -> Three Phase CT | G204: $dollars | H204: Nominal | K204: =IFERROR(K189*10^6/'Calc | Exit Fees'!K34,0) -> 203.4785671 | L204: =IFERROR(L189*10^6/'Calc | Exit Fees'!L34,0) -> 288.8915957 | M204: =IFERROR(M189*10^6/'Calc | Exit Fees'!M34,0) -> 384.7870689 | N204: =IFERROR(N189*10^6/'Calc | Exit Fees'!N34,0) -> 483.0876601 | O204: =IFERROR(O189*10^6/'Calc | Exit Fees'!O34,0) -> 588.3924781
F205: ='Input | Exit Fees'!$D34 -> 0 | G205: $dollars | H205: Nominal | K205: =IFERROR(K190*10^6/'Calc | Exit Fees'!K35,0) -> 0 | L205: =IFERROR(L190*10^6/'Calc | Exit Fees'!L35,0) -> 0 | M205: =IFERROR(M190*10^6/'Calc | Exit Fees'!M35,0) -> 0 | N205: =IFERROR(N190*10^6/'Calc | Exit Fees'!N35,0) -> 0 | O205: =IFERROR(O190*10^6/'Calc | Exit Fees'!O35,0) -> 0
F206: ='Input | Exit Fees'!$D35 -> 0 | G206: $dollars | H206: Nominal | K206: =IFERROR(K191*10^6/'Calc | Exit Fees'!K36,0) -> 0 | L206: =IFERROR(L191*10^6/'Calc | Exit Fees'!L36,0) -> 0 | M206: =IFERROR(M191*10^6/'Calc | Exit Fees'!M36,0) -> 0 | N206: =IFERROR(N191*10^6/'Calc | Exit Fees'!N36,0) -> 0 | O206: =IFERROR(O191*10^6/'Calc | Exit Fees'!O36,0) -> 0
F207: ='Input | Exit Fees'!$D36 -> 0 | G207: $dollars | H207: Nominal | K207: =IFERROR(K192*10^6/'Calc | Exit Fees'!K37,0) -> 0 | L207: =IFERROR(L192*10^6/'Calc | Exit Fees'!L37,0) -> 0 | M207: =IFERROR(M192*10^6/'Calc | Exit Fees'!M37,0) -> 0 | N207: =IFERROR(N192*10^6/'Calc | Exit Fees'!N37,0) -> 0 | O207: =IFERROR(O192*10^6/'Calc | Exit Fees'!O37,0) -> 0
F208: ='Input | Exit Fees'!$D37 -> 0 | G208: $dollars | H208: Nominal | K208: =IFERROR(K193*10^6/'Calc | Exit Fees'!K38,0) -> 0 | L208: =IFERROR(L193*10^6/'Calc | Exit Fees'!L38,0) -> 0 | M208: =IFERROR(M193*10^6/'Calc | Exit Fees'!M38,0) -> 0 | N208: =IFERROR(N193*10^6/'Calc | Exit Fees'!N38,0) -> 0 | O208: =IFERROR(O193*10^6/'Calc | Exit Fees'!O38,0) -> 0
F209: ='Input | Exit Fees'!$D38 -> 0 | G209: $dollars | H209: Nominal | K209: =IFERROR(K194*10^6/'Calc | Exit Fees'!K39,0) -> 0 | L209: =IFERROR(L194*10^6/'Calc | Exit Fees'!L39,0) -> 0 | M209: =IFERROR(M194*10^6/'Calc | Exit Fees'!M39,0) -> 0 | N209: =IFERROR(N194*10^6/'Calc | Exit Fees'!N39,0) -> 0 | O209: =IFERROR(O194*10^6/'Calc | Exit Fees'!O39,0) -> 0
F210: ='Input | Exit Fees'!$D39 -> 0 | G210: $dollars | H210: Nominal | K210: =IFERROR(K195*10^6/'Calc | Exit Fees'!K40,0) -> 0 | L210: =IFERROR(L195*10^6/'Calc | Exit Fees'!L40,0) -> 0 | M210: =IFERROR(M195*10^6/'Calc | Exit Fees'!M40,0) -> 0 | N210: =IFERROR(N195*10^6/'Calc | Exit Fees'!N40,0) -> 0 | O210: =IFERROR(O195*10^6/'Calc | Exit Fees'!O40,0) -> 0
B212: Calculations | Comms, IT, Inhouse software & Equity Raising Costs (TAB)
C214: Calculation of Allocated Comms, IT, Inhouse software & Equity Raising Costs TAB by Designated Exit Fee
K216: Regulatory period
F217: Exit Fee Component | G217: Units | H217: Basis | K217: =FPFirstYear -> 2026-27 | L217: =LEFT(K217,4)+1&"-"&RIGHT(K217,2)+1 -> 2027-28 | M217: =LEFT(L217,4)+1&"-"&RIGHT(L217,2)+1 -> 2028-29 | N217: =LEFT(M217,4)+1&"-"&RIGHT(M217,2)+1 -> 2029-30 | O217: =LEFT(N217,4)+1&"-"&RIGHT(N217,2)+1 -> 2030-31
F218: Comms, IT, Inhouse software & Equity Raising Costs TAB per meter | G218: $dollars | H218: Nominal | K218: =(AVERAGE('Input | Exit Fees'!G$137:H$137)*10^6)/'Calc | Exit Fees'!K$41 -> 18.92279089 | L218: =(AVERAGE('Input | Exit Fees'!H$137:I$137)*10^6)/'Calc | Exit Fees'!L$41 -> 32.9413691 | M218: =(AVERAGE('Input | Exit Fees'!I$137:J$137)*10^6)/'Calc | Exit Fees'!M$41 -> 34.75918242 | N218: =(AVERAGE('Input | Exit Fees'!J$137:K$137)*10^6)/'Calc | Exit Fees'!N$41 -> 35.70470696 | O218: =(AVERAGE('Input | Exit Fees'!K$137:L$137)*10^6)/'Calc | Exit Fees'!O$41 -> 36.04271682
B222: Calculations | Exit Fees with Component Detail (TAB)
F224: Base Year | G224: Regulatory period
G225: Tariff ($/year) (Nominal)
C226: No. | D226: Exit Fee Name | E226: Component | F226: 2025-26 | G226: 2026-27 | H226: 2027-28 | I226: 2028-29 | J226: 2029-30 | K226: 2030-31
C227: 1 | D227: ='Input | Exit Fees'!D30 -> Single Phase (inc. DC)
E228: WDV - Meter RAB | G228: =IF($D227=0,0,SUMIFS('Calc | Exit Fees'!K$201:K$210,'Input | Exit Fees'!$D$30:$D$39,$D227)) -> 98.13671544 | H228: =IF($D227=0,0,SUMIFS('Calc | Exit Fees'!L$201:L$210,'Input | Exit Fees'!$D$30:$D$39,$D227)) -> 139.3858243 | I228: =IF($D227=0,0,SUMIFS('Calc | Exit Fees'!M$201:M$210,'Input | Exit Fees'!$D$30:$D$39,$D227)) -> 185.7395759 | J228: =IF($D227=0,0,SUMIFS('Calc | Exit Fees'!N$201:N$210,'Input | Exit Fees'!$D$30:$D$39,$D227)) -> 233.3078868 | K228: =IF($D227=0,0,SUMIFS('Calc | Exit Fees'!O$201:O$210,'Input | Exit Fees'!$D$30:$D$39,$D227)) -> 284.3058201
E229: WDV - Comms, IT, Inhouse software & Equity Raising Costs | G229: =IF($D227=0,0,'Calc | Exit Fees'!K$218) -> 18.92279089 | H229: =IF($D227=0,0,'Calc | Exit Fees'!L$218) -> 32.9413691 | I229: =IF($D227=0,0,'Calc | Exit Fees'!M$218) -> 34.75918242 | J229: =IF($D227=0,0,'Calc | Exit Fees'!N$218) -> 35.70470696 | K229: =IF($D227=0,0,'Calc | Exit Fees'!O$218) -> 36.04271682
E232: TOTAL WDV | G232: =SUM(G228:G231) -> 117.0595063 | H232: =SUM(H228:H231) -> 172.3271934 | I232: =SUM(I228:I231) -> 220.4987583 | J232: =SUM(J228:J231) -> 269.0125937 | K232: =SUM(K228:K231) -> 320.3485369
C233: 2 | D233: ='Input | Exit Fees'!D31 -> Single Phase, Two Element
E234: =IF($D233=0,"",E$228) -> WDV - Meter RAB | G234: =IF($D233=0,0,SUMIFS('Calc | Exit Fees'!K$201:K$210,'Input | Exit Fees'!$D$30:$D$39,$D233)) -> 106.3541228 | H234: =IF($D233=0,0,SUMIFS('Calc | Exit Fees'!L$201:L$210,'Input | Exit Fees'!$D$30:$D$39,$D233)) -> 151.00231 | I234: =IF($D233=0,0,SUMIFS('Calc | Exit Fees'!M$201:M$210,'Input | Exit Fees'!$D$30:$D$39,$D233)) -> 201.1335068 | J234: =IF($D233=0,0,SUMIFS('Calc | Exit Fees'!N$201:N$210,'Input | Exit Fees'!$D$30:$D$39,$D233)) -> 252.5263185 | K234: =IF($D233=0,0,SUMIFS('Calc | Exit Fees'!O$201:O$210,'Input | Exit Fees'!$D$30:$D$39,$D233)) -> 307.5843529
... 46 more rows

Sheet Calc | Tax Allowance
B1: ='Title Page'!B8&" v"&'Title Page'!$C$10 -> JEN 2027-31 - ACS Standardised Metering Pricing Model v1.02 | M1: DNSP: | N1: =IF('Inputs | General'!$G$16="Price Cap","NOT USED",NSP) -> JEN - ACS
B2: =MID(CELL("filename",A1),FIND("]",CELL("filename",A1))+1,255) -> Calc | Tax Allowance | H2: Key: | I2: Input | J2: External Link | K2: Internal Link | L2: Jemena added sheet | M2: JEN - RP
B5: CALCULATION | Tax Allowance
F7: Base Year | G7: Regulatory period
G8: Tariff ($/year) (Nominal)
D9: Exit Fee Name | E9: Component | F9: 2025-26 | G9: 2026-27 | H9: 2027-28 | I9: 2028-29 | J9: 2029-30 | K9: 2030-31
D10: Single Phase
E11: Revenue excluding tax allowance
E12: Meter RAB | G12: =+'Calc | Exit Fees'!G119 -> 133.7023956 | H12: =+'Calc | Exit Fees'!H119 -> 179.8561656 | I12: =+'Calc | Exit Fees'!I119 -> 234.3372963 | J12: =+'Calc | Exit Fees'!J119 -> 293.0180267 | K12: =+'Calc | Exit Fees'!K119 -> 355.4819496
E13: Comms, IT, Inhouse software & Equity Raising Costs RAB | G13: =+'Calc | Exit Fees'!G120 -> 27.57839938 | H13: =+'Calc | Exit Fees'!H120 -> 46.52801061 | I13: =+'Calc | Exit Fees'!I120 -> 57.52316098 | J13: =+'Calc | Exit Fees'!J120 -> 67.71198266 | K13: =+'Calc | Exit Fees'!K120 -> 75.42206266
E14: Admin cost | G14: =+'Calc | Exit Fees'!G121 -> 78.85926618 | H14: =+'Calc | Exit Fees'!H121 -> 84.07824626 | I14: =+'Calc | Exit Fees'!I121 -> 88.99711282 | J14: =+'Calc | Exit Fees'!J121 -> 93.59208989 | K14: =+'Calc | Exit Fees'!K121 -> 98.41888995
E15: Revenue for Tax Assessment Subtotal | G15: =SUM(G12:G14) -> 240.1400611 | H15: =SUM(H12:H14) -> 310.4624225 | I15: =SUM(I12:I14) -> 380.8575701 | J15: =SUM(J12:J14) -> 454.3220992 | K15: =SUM(K12:K14) -> 529.3229022
E17: Tax expenses
E18: WDV - Meter TAB | G18: =+'Calc | Exit Fees'!G228 -> 98.13671544 | H18: =+'Calc | Exit Fees'!H228 -> 139.3858243 | I18: =+'Calc | Exit Fees'!I228 -> 185.7395759 | J18: =+'Calc | Exit Fees'!J228 -> 233.3078868 | K18: =+'Calc | Exit Fees'!K228 -> 284.3058201
E19: WDV - Comms, IT, Inhouse software & Equity Raising Costs TAB | G19: =+'Calc | Exit Fees'!G229 -> 18.92279089 | H19: =+'Calc | Exit Fees'!H229 -> 32.9413691 | I19: =+'Calc | Exit Fees'!I229 -> 34.75918242 | J19: =+'Calc | Exit Fees'!J229 -> 35.70470696 | K19: =+'Calc | Exit Fees'!K229 -> 36.04271682
E20: Admin cost | G20: =+'Calc | Exit Fees'!G121 -> 78.85926618 | H20: =+'Calc | Exit Fees'!H121 -> 84.07824626 | I20: =+'Calc | Exit Fees'!I121 -> 88.99711282 | J20: =+'Calc | Exit Fees'!J121 -> 93.59208989 | K20: =+'Calc | Exit Fees'!K121 -> 98.41888995
E21: Interest expense | G21: 0 | H21: 0 | I21: 0 | J21: 0 | K21: 0
E22: Tax expenses | G22: =SUM(G18:G21) -> 195.9187725 | H22: =SUM(H18:H21) -> 256.4054397 | I22: =SUM(I18:I21) -> 309.4958711 | J22: =SUM(J18:J21) -> 362.6046836 | K22: =SUM(K18:K21) -> 418.7674268
E24: Corporate tax rate | G24: =+'Inputs | General'!J$44 -> 0.3 | H24: =+'Inputs | General'!K$44 -> 0.3 | I24: =+'Inputs | General'!L$44 -> 0.3 | J24: =+'Inputs | General'!M$44 -> 0.3 | K24: =+'Inputs | General'!N$44 -> 0.3
E25: Imputation credits rate | G25: =+'Inputs | General'!J$43 -> 0.57 | H25: =+'Inputs | General'!K$43 -> 0.57 | I25: =+'Inputs | General'!L$43 -> 0.57 | J25: =+'Inputs | General'!M$43 -> 0.57 | K25: =+'Inputs | General'!N$43 -> 0.57
E26: Taxable income | G26: =+G15-G22 -> 44.22128863 | H26: =+H15-H22 -> 54.05698282 | I26: =+I15-I22 -> 71.36169901 | J26: =+J15-J22 -> 91.71741563 | K26: =+K15-K22 -> 110.5554753
E27: Tax payable | G27: =+G26*G24/(1-G24*(1-G25)) -> 15.23121308 | H27: =+H26*H24/(1-H24*(1-H25)) -> 18.61893782 | I27: =+I26*I24/(1-I24*(1-I25)) -> 24.57923043 | J27: =+J26*J24/(1-J24*(1-J25)) -> 31.59038426 | K27: =+K26*K24/(1-K24*(1-K25)) -> 38.07880896
E28: Imputation credits | G28: =+G27*G25 -> 8.681791454 | H28: =+H27*H25 -> 10.61279456 | I28: =+I27*I25 -> 14.01016134 | J28: =+J27*J25 -> 18.00651903 | K28: =+K27*K25 -> 21.70492111
E29: Tax allowance | G29: =+G27-G28 -> 6.549421623 | H29: =+H27-H28 -> 8.006143264 | I29: =+I27-I28 -> 10.56906908 | J29: =+J27-J28 -> 13.58386523 | K29: =+K27-K28 -> 16.37388785
D31: ='Input | Exit Fees'!D31 -> Single Phase, Two Element
E32: Revenue for Tax Assessment Subtotal
E33: Meter RAB | G33: =+'Calc | Exit Fees'!G125 -> 144.8978696 | H33: =+'Calc | Exit Fees'!H125 -> 194.8454702 | I33: =+'Calc | Exit Fees'!I125 -> 253.7589631 | J33: =+'Calc | Exit Fees'!J125 -> 317.1550031 | K33: =+'Calc | Exit Fees'!K125 -> 384.5882769
E34: Comms, IT, Inhouse software & Equity Raising Costs RAB | G34: =+'Calc | Exit Fees'!G126 -> 27.57839938 | H34: =+'Calc | Exit Fees'!H126 -> 46.52801061 | I34: =+'Calc | Exit Fees'!I126 -> 57.52316098 | J34: =+'Calc | Exit Fees'!J126 -> 67.71198266 | K34: =+'Calc | Exit Fees'!K126 -> 75.42206266
E35: Admin cost | G35: =+'Calc | Exit Fees'!G127 -> 78.85926618 | H35: =+'Calc | Exit Fees'!H127 -> 84.07824626 | I35: =+'Calc | Exit Fees'!I127 -> 88.99711282 | J35: =+'Calc | Exit Fees'!J127 -> 93.59208989 | K35: =+'Calc | Exit Fees'!K127 -> 98.41888995
E36: Revenue for Tax Assessment Subtotal | G36: =SUM(G33:G35) -> 251.3355352 | H36: =SUM(H33:H35) -> 325.4517271 | I36: =SUM(I33:I35) -> 400.2792369 | J36: =SUM(J33:J35) -> 478.4590757 | K36: =SUM(K33:K35) -> 558.4292295
E38: Tax expenses
E39: Meter TAB | G39: =+'Calc | Exit Fees'!G234 -> 106.3541228 | H39: =+'Calc | Exit Fees'!H234 -> 151.00231 | I39: =+'Calc | Exit Fees'!I234 -> 201.1335068 | J39: =+'Calc | Exit Fees'!J234 -> 252.5263185 | K39: =+'Calc | Exit Fees'!K234 -> 307.5843529
E40: Comms, IT, Inhouse software & Equity Raising Costs TAB | G40: =+'Calc | Exit Fees'!G235 -> 18.92279089 | H40: =+'Calc | Exit Fees'!H235 -> 32.9413691 | I40: =+'Calc | Exit Fees'!I235 -> 34.75918242 | J40: =+'Calc | Exit Fees'!J235 -> 35.70470696 | K40: =+'Calc | Exit Fees'!K235 -> 36.04271682
E41: Admin cost | G41: =+'Calc | Exit Fees'!G127 -> 78.85926618 | H41: =+'Calc | Exit Fees'!H127 -> 84.07824626 | I41: =+'Calc | Exit Fees'!I127 -> 88.99711282 | J41: =+'Calc | Exit Fees'!J127 -> 93.59208989 | K41: =+'Calc | Exit Fees'!K127 -> 98.41888995
E42: Interest expense | G42: 0 | H42: 0 | I42: 0 | J42: 0 | K42: 0
E43: Tax expenses | G43: =SUM(G39:G42) -> 204.1361799 | H43: =SUM(H39:H42) -> 268.0219254 | I43: =SUM(I39:I42) -> 324.8898021 | J43: =SUM(J39:J42) -> 381.8231154 | K43: =SUM(K39:K42) -> 442.0459597
E45: Corporate tax rate | G45: =+'Inputs | General'!J$44 -> 0.3 | H45: =+'Inputs | General'!K$44 -> 0.3 | I45: =+'Inputs | General'!L$44 -> 0.3 | J45: =+'Inputs | General'!M$44 -> 0.3 | K45: =+'Inputs | General'!N$44 -> 0.3
E46: Imputation credits rate | G46: =+'Inputs | General'!J$43 -> 0.57 | H46: =+'Inputs | General'!K$43 -> 0.57 | I46: =+'Inputs | General'!L$43 -> 0.57 | J46: =+'Inputs | General'!M$43 -> 0.57 | K46: =+'Inputs | General'!N$43 -> 0.57
E47: Taxable income | G47: =+G36-G43 -> 47.19935531 | H47: =+H36-H43 -> 57.4298017 | I47: =+I36-I43 -> 75.38943488 | J47: =+J36-J43 -> 96.63596025 | K47: =+K36-K43 -> 116.3832698
E48: Tax payable | G48: =+G47*G45/(1-G45*(1-G46)) -> 16.25695361 | H48: =+H47*H45/(1-H45*(1-H46)) -> 19.78064352 | I48: =+I47*I45/(1-I45*(1-I46)) -> 25.96651029 | J48: =+J47*J45/(1-J45*(1-J46)) -> 33.28448688 | K48: =+K47*K45/(1-K45*(1-K46)) -> 40.08608602
E49: Imputation credits | G49: =+G48*G46 -> 9.266463556 | H49: =+H48*H46 -> 11.27496681 | I49: =+I48*I46 -> 14.80091087 | J49: =+J48*J46 -> 18.97215752 | K49: =+K48*K46 -> 22.84906903
E50: Tax allowance | G50: =+G48-G49 -> 6.990490051 | H50: =+H48-H49 -> 8.505676715 | I50: =+I48-I49 -> 11.16559943 | J50: =+J48-J49 -> 14.31232936 | K50: =+K48-K49 -> 17.23701699
D52: ='Input | Exit Fees'!D32 -> Three Phase (inc. DC)
E53: Revenue for Tax Assessment Subtotal
E54: Meter RAB | G54: =+'Calc | Exit Fees'!G131 -> 187.5094278 | H54: =+'Calc | Exit Fees'!H131 -> 251.9577264 | I54: =+'Calc | Exit Fees'!I131 -> 327.8527338 | J54: =+'Calc | Exit Fees'!J131 -> 409.3662476 | K54: =+'Calc | Exit Fees'!K131 -> 495.9378124
E55: Comms, IT, Inhouse software & Equity Raising Costs RAB | G55: =+'Calc | Exit Fees'!G132 -> 27.57839938 | H55: =+'Calc | Exit Fees'!H132 -> 46.52801061 | I55: =+'Calc | Exit Fees'!I132 -> 57.52316098 | J55: =+'Calc | Exit Fees'!J132 -> 67.71198266 | K55: =+'Calc | Exit Fees'!K132 -> 75.42206266
E56: Admin cost | G56: =+'Calc | Exit Fees'!G133 -> 78.85926618 | H56: =+'Calc | Exit Fees'!H133 -> 84.07824626 | I56: =+'Calc | Exit Fees'!I133 -> 88.99711282 | J56: =+'Calc | Exit Fees'!J133 -> 93.59208989 | K56: =+'Calc | Exit Fees'!K133 -> 98.41888995
E57: Revenue for Tax Assessment Subtotal | G57: =SUM(G54:G56) -> 293.9470933 | H57: =SUM(H54:H56) -> 382.5639832 | I57: =SUM(I54:I56) -> 474.3730076 | J57: =SUM(J54:J56) -> 570.6703201 | K57: =SUM(K54:K56) -> 669.778765
E59: Tax expenses
E60: Meter TAB | G60: =+'Calc | Exit Fees'!G240 -> 137.6307378 | H60: =+'Calc | Exit Fees'!H240 -> 195.2634499 | I60: =+'Calc | Exit Fees'!I240 -> 259.8614419 | J60: =+'Calc | Exit Fees'!J240 -> 325.9470934 | K60: =+'Calc | Exit Fees'!K240 -> 396.6390041
E61: Comms, IT, Inhouse software & Equity Raising Costs TAB | G61: =+'Calc | Exit Fees'!G241 -> 18.92279089 | H61: =+'Calc | Exit Fees'!H241 -> 32.9413691 | I61: =+'Calc | Exit Fees'!I241 -> 34.75918242 | J61: =+'Calc | Exit Fees'!J241 -> 35.70470696 | K61: =+'Calc | Exit Fees'!K241 -> 36.04271682
E62: Admin cost | G62: =+'Calc | Exit Fees'!G133 -> 78.85926618 | H62: =+'Calc | Exit Fees'!H133 -> 84.07824626 | I62: =+'Calc | Exit Fees'!I133 -> 88.99711282 | J62: =+'Calc | Exit Fees'!J133 -> 93.59208989 | K62: =+'Calc | Exit Fees'!K133 -> 98.41888995
E63: Interest expense | G63: 0 | H63: 0 | I63: 0 | J63: 0 | K63: 0
E64: Tax expenses | G64: =SUM(G60:G63) -> 235.4127949 | H64: =SUM(H60:H63) -> 312.2830653 | I64: =SUM(I60:I63) -> 383.6177372 | J64: =SUM(J60:J63) -> 455.2438903 | K64: =SUM(K60:K63) -> 531.1006109
E66: Corporate tax rate | G66: =+'Inputs | General'!J$44 -> 0.3 | H66: =+'Inputs | General'!K$44 -> 0.3 | I66: =+'Inputs | General'!L$44 -> 0.3 | J66: =+'Inputs | General'!M$44 -> 0.3 | K66: =+'Inputs | General'!N$44 -> 0.3
E67: Imputation credits rate | G67: =+'Inputs | General'!J$43 -> 0.57 | H67: =+'Inputs | General'!K$43 -> 0.57 | I67: =+'Inputs | General'!L$43 -> 0.57 | J67: =+'Inputs | General'!M$43 -> 0.57 | K67: =+'Inputs | General'!N$43 -> 0.57
E68: Taxable income | G68: =+G57-G64 -> 58.53429842 | H68: =+H57-H64 -> 70.28091798 | I68: =+I57-I64 -> 90.7552704 | J68: =+J57-J64 -> 115.4264298 | K68: =+K57-K64 -> 138.6781541
E69: Tax payable | G69: =+G68*G66/(1-G66*(1-G67)) -> 20.16106719 | H69: =+H68*H66/(1-H66*(1-H67)) -> 24.2069752 | I69: =+I68*I66/(1-I66*(1-I67)) -> 31.25899095 | J69: =+J68*J66/(1-J66*(1-J67)) -> 39.75652003 | K69: =+K68*K66/(1-K66*(1-K67)) -> 47.76515068
E70: Imputation credits | G70: =+G69*G67 -> 11.4918083 | H70: =+H69*H67 -> 13.79797586 | I70: =+I69*I67 -> 17.81762484 | J70: =+J69*J67 -> 22.66121641 | K70: =+K69*K67 -> 27.22613589
E71: Tax allowance | G71: =+G69-G70 -> 8.669258893 | H71: =+H69-H70 -> 10.40899933 | I71: =+I69-I70 -> 13.44136611 | J71: =+J69-J70 -> 17.09530361 | K71: =+K69-K70 -> 20.53901479
D73: ='Input | Exit Fees'!D33 -> Three Phase CT
E74: Revenue for Tax Assessment Subtotal
E75: Meter RAB | G75: =+'Calc | Exit Fees'!G137 -> 277.2211374 | H75: =+'Calc | Exit Fees'!H137 -> 372.7705808 | I75: =+'Calc | Exit Fees'!I137 -> 485.4644518 | J75: =+'Calc | Exit Fees'!J137 -> 606.7235654 | K75: =+'Calc | Exit Fees'!K137 -> 735.6968815
E76: Comms, IT, Inhouse software & Equity Raising Costs RAB | G76: =+'Calc | Exit Fees'!G138 -> 27.57839938 | H76: =+'Calc | Exit Fees'!H138 -> 46.52801061 | I76: =+'Calc | Exit Fees'!I138 -> 57.52316098 | J76: =+'Calc | Exit Fees'!J138 -> 67.71198266 | K76: =+'Calc | Exit Fees'!K138 -> 75.42206266
E77: Admin cost | G77: =+'Calc | Exit Fees'!G139 -> 78.85926618 | H77: =+'Calc | Exit Fees'!H139 -> 84.07824626 | I77: =+'Calc | Exit Fees'!I139 -> 88.99711282 | J77: =+'Calc | Exit Fees'!J139 -> 93.59208989 | K77: =+'Calc | Exit Fees'!K139 -> 98.41888995
E78: Revenue for Tax Assessment Subtotal | G78: =SUM(G75:G77) -> 383.658803 | H78: =SUM(H75:H77) -> 503.3768377 | I78: =SUM(I75:I77) -> 631.9847256 | J78: =SUM(J75:J77) -> 768.027638 | K78: =SUM(K75:K77) -> 909.5378341
E80: Tax expenses
E81: Meter TAB | G81: =+'Calc | Exit Fees'!G246 -> 203.4785671 | H81: =+'Calc | Exit Fees'!H246 -> 288.8915957 | I81: =+'Calc | Exit Fees'!I246 -> 384.7870689 | J81: =+'Calc | Exit Fees'!J246 -> 483.0876601 | K81: =+'Calc | Exit Fees'!K246 -> 588.3924781
E82: Comms, IT, Inhouse software & Equity Raising Costs TAB | G82: =+'Calc | Exit Fees'!G247 -> 18.92279089 | H82: =+'Calc | Exit Fees'!H247 -> 32.9413691 | I82: =+'Calc | Exit Fees'!I247 -> 34.75918242 | J82: =+'Calc | Exit Fees'!J247 -> 35.70470696 | K82: =+'Calc | Exit Fees'!K247 -> 36.04271682
E83: Admin cost | G83: =+'Calc | Exit Fees'!G139 -> 78.85926618 | H83: =+'Calc | Exit Fees'!H139 -> 84.07824626 | I83: =+'Calc | Exit Fees'!I139 -> 88.99711282 | J83: =+'Calc | Exit Fees'!J139 -> 93.59208989 | K83: =+'Calc | Exit Fees'!K139 -> 98.41888995
E84: Interest expense | G84: 0 | H84: 0 | I84: 0 | J84: 0 | K84: 0
E85: Tax expenses | G85: =SUM(G81:G84) -> 301.2606242 | H85: =SUM(H81:H84) -> 405.9112111 | I85: =SUM(I81:I84) -> 508.5433641 | J85: =SUM(J81:J84) -> 612.384457 | K85: =SUM(K81:K84) -> 722.8540848
E87: Corporate tax rate | G87: =+'Inputs | General'!J$44 -> 0.3 | H87: =+'Inputs | General'!K$44 -> 0.3 | I87: =+'Inputs | General'!L$44 -> 0.3 | J87: =+'Inputs | General'!M$44 -> 0.3 | K87: =+'Inputs | General'!N$44 -> 0.3
E88: Imputation credits rate | G88: =+'Inputs | General'!J$43 -> 0.57 | H88: =+'Inputs | General'!K$43 -> 0.57 | I88: =+'Inputs | General'!L$43 -> 0.57 | J88: =+'Inputs | General'!M$43 -> 0.57 | K88: =+'Inputs | General'!N$43 -> 0.57
E89: Taxable income | G89: =+G78-G85 -> 82.39817877 | H89: =+H78-H85 -> 97.46562658 | I89: =+I78-I85 -> 123.4413615 | J89: =+J78-J85 -> 155.643181 | K89: =+K78-K85 -> 186.6837493
E90: Tax payable | G90: =+G89*G87/(1-G87*(1-G88)) -> 28.38054378 | H90: =+H89*H87/(1-H87*(1-H88)) -> 33.57025026 | I90: =+I89*I87/(1-I87*(1-I88)) -> 42.51711647 | J90: =+J89*J87/(1-J87*(1-J88)) -> 53.6084435 | K90: =+K89*K87/(1-K87*(1-K88)) -> 64.29979883
E91: Imputation credits | G91: =+G90*G88 -> 16.17690995 | H91: =+H90*H88 -> 19.13504265 | I91: =+I90*I88 -> 24.23475639 | J91: =+J90*J88 -> 30.5568128 | K91: =+K90*K88 -> 36.65088533
E92: Tax allowance | G92: =+G90-G91 -> 12.20363382 | H92: =+H90-H91 -> 14.43520761 | I92: =+I90-I91 -> 18.28236008 | J92: =+J90-J91 -> 23.05163071 | K92: =+K90-K91 -> 27.6489135

Sheet Output | Exit Fee price caps
B1: ='Title Page'!B8&" v"&'Title Page'!$C$10 -> JEN 2027-31 - ACS Standardised Metering Pricing Model v1.02 | M1: DNSP: | N1: D
B2: =MID(CELL("filename",A1),FIND("]",CELL("filename",A1))+1,255) -> Output | Exit Fee price caps | H2: Key: | I2: Input | J2: External Link | K2: Internal Link
C5: Applicable Exit Fees Price Caps
H7: Base Year | I7: Regulatory Period
D8: Exit Fee Name | F8: Units | G8: Basis | H8: =LEFT(I8,4)-1&"-"&RIGHT(I8,2)-1 -> 2025-26 | I8: =FPFirstYear -> 2026-27 | J8: =LEFT(I8,4)+1&"-"&RIGHT(I8,2)+1 -> 2027-28 | K8: =LEFT(J8,4)+1&"-"&RIGHT(J8,2)+1 -> 2028-29 | L8: =LEFT(K8,4)+1&"-"&RIGHT(K8,2)+1 -> 2029-30 | M8: =LEFT(L8,4)+1&"-"&RIGHT(L8,2)+1 -> 2030-31
D9: =D25 -> Single Phase (inc. DC) | F9: $dollars | G9: nominal | H9: =ROUND(H25,2) -> 191.64 | I9: =IF(I25=0,0,ROUND(H9*(1-I45)*(1+I$41),2)) -> 246.69 | J9: =IF(J25=0,0,ROUND(I9*(1-J45)*(1+J$41),2)) -> 318.47 | K9: 391.43 | L9: 467.91 | M9: 545.7
D10: =D26 -> Single Phase, Two Element | F10: $dollars | G10: nominal | H10: 191.64 | I10: 258.33 | J10: 333.96 | K10: 411.45 | L10: 492.78 | M10: 575.68
D11: Three Phase (inc. DC) | F11: $dollars | G11: nominal | H11: =ROUND(H27,2) -> 191.64 | I11: =IF(I27=0,0,ROUND(H11*(1-I47)*(1+I$41),2)) -> 302.62 | J11: =IF(J27=0,0,ROUND(I11*(1-J47)*(1+J$41),2)) -> 392.98 | K11: =IF(K27=0,0,ROUND(J11*(1-K47)*(1+K$41),2)) -> 487.82 | L11: =IF(L27=0,0,ROUND(K11*(1-L47)*(1+L$41),2)) -> 587.77 | M11: =IF(M27=0,0,ROUND(L11*(1-M47)*(1+M$41),2)) -> 690.32
D12: Three Phase CT | F12: $dollars | G12: nominal | H12: 191.64 | I12: 395.86 | J12: 517.81 | K12: 650.26 | L12: 791.07 | M12: 937.18
D13: 0 | F13: $dollars | G13: nominal | H13: 0 | I13: 0 | J13: 0 | K13: 0 | L13: 0 | M13: 0
D14: 0 | F14: $dollars | G14: nominal | H14: 0 | I14: 0 | J14: 0 | K14: 0 | L14: 0 | M14: 0
D15: 0 | F15: $dollars | G15: nominal | H15: 0 | I15: 0 | J15: 0 | K15: 0 | L15: 0 | M15: 0
D16: 0 | F16: $dollars | G16: nominal | H16: 0 | I16: 0 | J16: 0 | K16: 0 | L16: 0 | M16: 0
D17: 0 | F17: $dollars | G17: nominal | H17: 0 | I17: 0 | J17: 0 | K17: 0 | L17: 0 | M17: 0
D18: 0 | F18: $dollars | G18: nominal | H18: 0 | I18: 0 | J18: 0 | K18: 0 | L18: 0 | M18: 0
C21: Exit Fees Per Meter
H23: Base Year | I23: Regulatory Period
D24: Exit Fee Name | F24: Units | G24: Basis | H24: =LEFT(I24,4)-1&"-"&RIGHT(I24,2)-1 -> 2025-26 | I24: =FPFirstYear -> 2026-27 | J24: =LEFT(I24,4)+1&"-"&RIGHT(I24,2)+1 -> 2027-28 | K24: =LEFT(J24,4)+1&"-"&RIGHT(J24,2)+1 -> 2028-29 | L24: =LEFT(K24,4)+1&"-"&RIGHT(K24,2)+1 -> 2029-30 | M24: =LEFT(L24,4)+1&"-"&RIGHT(L24,2)+1 -> 2030-31
D25: ='Input | Exit Fees'!$D30 -> Single Phase (inc. DC) | F25: $dollars | G25: nominal | H25: =INDEX(Table3[2025-26],MATCH('Output | Exit Fee price caps'!$D25,Table3[[Exit Fee Name]:[Exit Fee Name]],0)+5) -> 191.64 | I25: =INDEX(Table3[2026-27],MATCH('Output | Exit Fee price caps'!$D25,Table3[[Exit Fee Name]:[Exit Fee Name]],0)+5) -> 246.6894828 | J25: =INDEX(Table3[2027-28],MATCH('Output | Exit Fee price caps'!$D25,Table3[[Exit Fee Name]:[Exit Fee Name]],0)+5) -> 318.4685658 | K25: =INDEX(Table3[2028-29],MATCH('Output | Exit Fee price caps'!$D25,Table3[[Exit Fee Name]:[Exit Fee Name]],0)+5) -> 391.4266392 | L25: =INDEX(Table3[2029-30],MATCH('Output | Exit Fee price caps'!$D25,Table3[[Exit Fee Name]:[Exit Fee Name]],0)+5) -> 467.9059645 | M25: =INDEX(Table3[2030-31],MATCH('Output | Exit Fee price caps'!$D25,Table3[[Exit Fee Name]:[Exit Fee Name]],0)+5) -> 545.69679
D26: ='Input | Exit Fees'!$D31 -> Single Phase, Two Element | F26: $dollars | G26: nominal | H26: =INDEX(Table3[2025-26],MATCH('Output | Exit Fee price caps'!$D26,Table3[[Exit Fee Name]:[Exit Fee Name]],0)+5) -> 191.64 | I26: =INDEX(Table3[2026-27],MATCH('Output | Exit Fee price caps'!$D26,Table3[[Exit Fee Name]:[Exit Fee Name]],0)+5) -> 258.3260252 | J26: =INDEX(Table3[2027-28],MATCH('Output | Exit Fee price caps'!$D26,Table3[[Exit Fee Name]:[Exit Fee Name]],0)+5) -> 333.9574038 | K26: =INDEX(Table3[2028-29],MATCH('Output | Exit Fee price caps'!$D26,Table3[[Exit Fee Name]:[Exit Fee Name]],0)+5) -> 411.4448364 | L26: =INDEX(Table3[2029-30],MATCH('Output | Exit Fee price caps'!$D26,Table3[[Exit Fee Name]:[Exit Fee Name]],0)+5) -> 492.771405 | M26: =INDEX(Table3[2030-31],MATCH('Output | Exit Fee price caps'!$D26,Table3[[Exit Fee Name]:[Exit Fee Name]],0)+5) -> 575.6662465
D27: ='Input | Exit Fees'!$D32 -> Three Phase (inc. DC) | F27: $dollars | G27: nominal | H27: =INDEX(Table3[2025-26],MATCH('Output | Exit Fee price caps'!$D27,Table3[[Exit Fee Name]:[Exit Fee Name]],0)+5) -> 191.64 | I27: =INDEX(Table3[2026-27],MATCH('Output | Exit Fee price caps'!$D27,Table3[[Exit Fee Name]:[Exit Fee Name]],0)+5) -> 302.6163522 | J27: =INDEX(Table3[2027-28],MATCH('Output | Exit Fee price caps'!$D27,Table3[[Exit Fee Name]:[Exit Fee Name]],0)+5) -> 392.9729826 | K27: =INDEX(Table3[2028-29],MATCH('Output | Exit Fee price caps'!$D27,Table3[[Exit Fee Name]:[Exit Fee Name]],0)+5) -> 487.8143737 | L27: =INDEX(Table3[2029-30],MATCH('Output | Exit Fee price caps'!$D27,Table3[[Exit Fee Name]:[Exit Fee Name]],0)+5) -> 587.7656237 | M27: =INDEX(Table3[2030-31],MATCH('Output | Exit Fee price caps'!$D27,Table3[[Exit Fee Name]:[Exit Fee Name]],0)+5) -> 690.3177798
D28: ='Input | Exit Fees'!$D33 -> Three Phase CT | F28: $dollars | G28: nominal | H28: =INDEX(Table3[2025-26],MATCH('Output | Exit Fee price caps'!$D28,Table3[[Exit Fee Name]:[Exit Fee Name]],0)+5) -> 191.64 | I28: =INDEX(Table3[2026-27],MATCH('Output | Exit Fee price caps'!$D28,Table3[[Exit Fee Name]:[Exit Fee Name]],0)+5) -> 395.8624368 | J28: =INDEX(Table3[2027-28],MATCH('Output | Exit Fee price caps'!$D28,Table3[[Exit Fee Name]:[Exit Fee Name]],0)+5) -> 517.8120453 | K28: =INDEX(Table3[2028-29],MATCH('Output | Exit Fee price caps'!$D28,Table3[[Exit Fee Name]:[Exit Fee Name]],0)+5) -> 650.2670857 | L28: =INDEX(Table3[2029-30],MATCH('Output | Exit Fee price caps'!$D28,Table3[[Exit Fee Name]:[Exit Fee Name]],0)+5) -> 791.0792687 | M28: =INDEX(Table3[2030-31],MATCH('Output | Exit Fee price caps'!$D28,Table3[[Exit Fee Name]:[Exit Fee Name]],0)+5) -> 937.1867476
D29: ='Input | Exit Fees'!$D34 -> 0 | F29: $dollars | G29: nominal | H29: =INDEX(Table3[2025-26],MATCH('Output | Exit Fee price caps'!$D29,Table3[[Exit Fee Name]:[Exit Fee Name]],0)+5) -> 0 | I29: =INDEX(Table3[2026-27],MATCH('Output | Exit Fee price caps'!$D29,Table3[[Exit Fee Name]:[Exit Fee Name]],0)+5) -> 0 | J29: =INDEX(Table3[2027-28],MATCH('Output | Exit Fee price caps'!$D29,Table3[[Exit Fee Name]:[Exit Fee Name]],0)+5) -> 0 | K29: =INDEX(Table3[2028-29],MATCH('Output | Exit Fee price caps'!$D29,Table3[[Exit Fee Name]:[Exit Fee Name]],0)+5) -> 0 | L29: =INDEX(Table3[2029-30],MATCH('Output | Exit Fee price caps'!$D29,Table3[[Exit Fee Name]:[Exit Fee Name]],0)+5) -> 0 | M29: =INDEX(Table3[2030-31],MATCH('Output | Exit Fee price caps'!$D29,Table3[[Exit Fee Name]:[Exit Fee Name]],0)+5) -> 0
D30: ='Input | Exit Fees'!$D35 -> 0 | F30: $dollars | G30: nominal | H30: =INDEX(Table3[2025-26],MATCH('Output | Exit Fee price caps'!$D30,Table3[[Exit Fee Name]:[Exit Fee Name]],0)+5) -> 0 | I30: =INDEX(Table3[2026-27],MATCH('Output | Exit Fee price caps'!$D30,Table3[[Exit Fee Name]:[Exit Fee Name]],0)+5) -> 0 | J30: =INDEX(Table3[2027-28],MATCH('Output | Exit Fee price caps'!$D30,Table3[[Exit Fee Name]:[Exit Fee Name]],0)+5) -> 0 | K30: =INDEX(Table3[2028-29],MATCH('Output | Exit Fee price caps'!$D30,Table3[[Exit Fee Name]:[Exit Fee Name]],0)+5) -> 0 | L30: =INDEX(Table3[2029-30],MATCH('Output | Exit Fee price caps'!$D30,Table3[[Exit Fee Name]:[Exit Fee Name]],0)+5) -> 0 | M30: =INDEX(Table3[2030-31],MATCH('Output | Exit Fee price caps'!$D30,Table3[[Exit Fee Name]:[Exit Fee Name]],0)+5) -> 0
D31: ='Input | Exit Fees'!$D36 -> 0 | F31: $dollars | G31: nominal | H31: =INDEX(Table3[2025-26],MATCH('Output | Exit Fee price caps'!$D31,Table3[[Exit Fee Name]:[Exit Fee Name]],0)+5) -> 0 | I31: =INDEX(Table3[2026-27],MATCH('Output | Exit Fee price caps'!$D31,Table3[[Exit Fee Name]:[Exit Fee Name]],0)+5) -> 0 | J31: =INDEX(Table3[2027-28],MATCH('Output | Exit Fee price caps'!$D31,Table3[[Exit Fee Name]:[Exit Fee Name]],0)+5) -> 0 | K31: =INDEX(Table3[2028-29],MATCH('Output | Exit Fee price caps'!$D31,Table3[[Exit Fee Name]:[Exit Fee Name]],0)+5) -> 0 | L31: =INDEX(Table3[2029-30],MATCH('Output | Exit Fee price caps'!$D31,Table3[[Exit Fee Name]:[Exit Fee Name]],0)+5) -> 0 | M31: =INDEX(Table3[2030-31],MATCH('Output | Exit Fee price caps'!$D31,Table3[[Exit Fee Name]:[Exit Fee Name]],0)+5) -> 0
D32: ='Input | Exit Fees'!$D37 -> 0 | F32: $dollars | G32: nominal | H32: =INDEX(Table3[2025-26],MATCH('Output | Exit Fee price caps'!$D32,Table3[[Exit Fee Name]:[Exit Fee Name]],0)+5) -> 0 | I32: =INDEX(Table3[2026-27],MATCH('Output | Exit Fee price caps'!$D32,Table3[[Exit Fee Name]:[Exit Fee Name]],0)+5) -> 0 | J32: =INDEX(Table3[2027-28],MATCH('Output | Exit Fee price caps'!$D32,Table3[[Exit Fee Name]:[Exit Fee Name]],0)+5) -> 0 | K32: =INDEX(Table3[2028-29],MATCH('Output | Exit Fee price caps'!$D32,Table3[[Exit Fee Name]:[Exit Fee Name]],0)+5) -> 0 | L32: =INDEX(Table3[2029-30],MATCH('Output | Exit Fee price caps'!$D32,Table3[[Exit Fee Name]:[Exit Fee Name]],0)+5) -> 0 | M32: =INDEX(Table3[2030-31],MATCH('Output | Exit Fee price caps'!$D32,Table3[[Exit Fee Name]:[Exit Fee Name]],0)+5) -> 0
D33: ='Input | Exit Fees'!$D38 -> 0 | F33: $dollars | G33: nominal | H33: =INDEX(Table3[2025-26],MATCH('Output | Exit Fee price caps'!$D33,Table3[[Exit Fee Name]:[Exit Fee Name]],0)+5) -> 0 | I33: =INDEX(Table3[2026-27],MATCH('Output | Exit Fee price caps'!$D33,Table3[[Exit Fee Name]:[Exit Fee Name]],0)+5) -> 0 | J33: =INDEX(Table3[2027-28],MATCH('Output | Exit Fee price caps'!$D33,Table3[[Exit Fee Name]:[Exit Fee Name]],0)+5) -> 0 | K33: =INDEX(Table3[2028-29],MATCH('Output | Exit Fee price caps'!$D33,Table3[[Exit Fee Name]:[Exit Fee Name]],0)+5) -> 0 | L33: =INDEX(Table3[2029-30],MATCH('Output | Exit Fee price caps'!$D33,Table3[[Exit Fee Name]:[Exit Fee Name]],0)+5) -> 0 | M33: =INDEX(Table3[2030-31],MATCH('Output | Exit Fee price caps'!$D33,Table3[[Exit Fee Name]:[Exit Fee Name]],0)+5) -> 0
D34: ='Input | Exit Fees'!$D39 -> 0 | F34: $dollars | G34: nominal | H34: =INDEX(Table3[2025-26],MATCH('Output | Exit Fee price caps'!$D34,Table3[[Exit Fee Name]:[Exit Fee Name]],0)+5) -> 0 | I34: =INDEX(Table3[2026-27],MATCH('Output | Exit Fee price caps'!$D34,Table3[[Exit Fee Name]:[Exit Fee Name]],0)+5) -> 0 | J34: =INDEX(Table3[2027-28],MATCH('Output | Exit Fee price caps'!$D34,Table3[[Exit Fee Name]:[Exit Fee Name]],0)+5) -> 0 | K34: =INDEX(Table3[2028-29],MATCH('Output | Exit Fee price caps'!$D34,Table3[[Exit Fee Name]:[Exit Fee Name]],0)+5) -> 0 | L34: =INDEX(Table3[2029-30],MATCH('Output | Exit Fee price caps'!$D34,Table3[[Exit Fee Name]:[Exit Fee Name]],0)+5) -> 0 | M34: =INDEX(Table3[2030-31],MATCH('Output | Exit Fee price caps'!$D34,Table3[[Exit Fee Name]:[Exit Fee Name]],0)+5) -> 0
C39: Xfactors
D41: CPI | F41: % | I41: ='Inputs | General'!J26 -> 0.02659759351 | J41: ='Inputs | General'!K26 -> 0.02659759351 | K41: ='Inputs | General'!L26 -> 0.02659759351 | L41: ='Inputs | General'!M26 -> 0.02659759351 | M41: ='Inputs | General'!N26 -> 0.02659759351
I43: =FPFirstYear -> 2026-27 | J43: =LEFT(I43,4)+1&"-"&RIGHT(I43,2)+1 -> 2027-28 | K43: =LEFT(J43,4)+1&"-"&RIGHT(J43,2)+1 -> 2028-29 | L43: =LEFT(K43,4)+1&"-"&RIGHT(K43,2)+1 -> 2029-30 | M43: =LEFT(L43,4)+1&"-"&RIGHT(L43,2)+1 -> 2030-31
D44: Exit Fee Name | F44: Units | I44: P_0 | J44: X_02 | K44: X_03 | L44: X_04 | M44: X_05
D45: ='Input | Exit Fees'!$D30 -> Single Phase (inc. DC) | F45: % | I45: =IFERROR(-1*(((I25/H25)/(1+I$41)-1)),"") -> -0.2539038341 | J45: -0.2575223015 | K45: -0.1972464695 | L45: -0.1644154531 | M45: -0.1360372608
D46: ='Input | Exit Fees'!$D31 -> Single Phase, Two Element | F46: % | I46: -0.3130514922 | J46: -0.2592810634 | K46: -0.2001079101 | L46: -0.1666313429 | M46: -0.1379548358
D47: ='Input | Exit Fees'!$D32 -> Three Phase (inc. DC) | F47: % | I47: -0.5381758478 | J47: -0.2649403879 | K47: -0.2091819563 | L47: -0.1736790362 | M47: -0.1440490246
D48: ='Input | Exit Fees'!$D33 -> Three Phase CT | F48: % | I48: -1.012138587 | J48: -0.2741706972 | K48: -0.2232617089 | L48: -0.1850263012 | M48: -0.1540002251
D49: ='Input | Exit Fees'!$D34 -> 0 | F49: %
D50: ='Input | Exit Fees'!$D35 -> 0 | F50: %
D51: ='Input | Exit Fees'!$D36 -> 0 | F51: %
D52: ='Input | Exit Fees'!$D37 -> 0 | F52: %
D53: ='Input | Exit Fees'!$D38 -> 0 | F53: %
D54: ='Input | Exit Fees'!$D39 -> 0 | F54: %
C58: Cost Metric
H60: Base Year | I60: Regulatory Period
D61: Exit Fee Per Meter | F61: Units | G61: Basis | H61: =LEFT(I61,4)-1&"-"&RIGHT(I61,2)-1 -> 2025-26 | I61: =FPFirstYear -> 2026-27 | J61: =LEFT(I61,4)+1&"-"&RIGHT(I61,2)+1 -> 2027-28 | K61: =LEFT(J61,4)+1&"-"&RIGHT(J61,2)+1 -> 2028-29 | L61: =LEFT(K61,4)+1&"-"&RIGHT(K61,2)+1 -> 2029-30 | M61: =LEFT(L61,4)+1&"-"&RIGHT(L61,2)+1 -> 2030-31
D62: Volume Weighted Average Exit Fee - Per Meter | F62: $dollars | G62: nominal | H62: =SUMPRODUCT(H$25:H$34,'Calc | Exit Fees'!J$31:J$40)/'Calc | Exit Fees'!J$41 -> 191.64 | I62: =SUMPRODUCT(I$25:I$34,'Calc | Exit Fees'!K$31:K$40)/'Calc | Exit Fees'!K$41 -> 257.8172279 | J62: =SUMPRODUCT(J$25:J$34,'Calc | Exit Fees'!L$31:L$40)/'Calc | Exit Fees'!L$41 -> 334.7224838 | K62: =SUMPRODUCT(K$25:K$34,'Calc | Exit Fees'!M$31:M$40)/'Calc | Exit Fees'!M$41 -> 414.3527286 | L62: =SUMPRODUCT(L$25:L$34,'Calc | Exit Fees'!N$31:N$40)/'Calc | Exit Fees'!N$41 -> 498.7151488 | M62: =SUMPRODUCT(M$25:M$34,'Calc | Exit Fees'!O$31:O$40)/'Calc | Exit Fees'!O$41 -> 585.5749095

Sheet LUTs and Dropdowns
B1: ='Title Page'!B8&" v"&'Title Page'!$C$10 -> JEN 2027-31 - ACS Standardised Metering Pricing Model v1.02
B2: =MID(CELL("filename",A1),FIND("]",CELL("filename",A1))+1,255) -> LUTs and Dropdowns
B14: Model Use
B15: Price Cap
B16: Exit Fees (Vic)
B17: Show All Sheets
B20: Admin Charges
B21: Entered
B22: Calc-Fixed
B23: Calc-Hourly
